{"text_format":"1","workbook":"xlsx","n_sheets":4,"sheets":["Конфигуратор","Лист1","Наименование","Списки"],"not_rendered":{"charts":0,"images":2,"macros":1,"external_links":0,"defined_names":4,"comments":0,"pivot_tables":0},"unopened":[],"bounds":{"document_bytes":16777216,"sheet_cells":100000,"rows_first":2000,"rows_last":500,"rows_between":2000,"halvings":0,"cell_chars":16384,"cell_head_chars":4096},"cells_cut":0,"cells_raw":0,"read":"whole","date_system":"1900"}

{"sheet":"Конфигуратор","index":0,"n_rows":1008,"n_cols":12,"rows_kept":1008,"cut":false,"hidden":false,"merged":[[28,4,28,7],[5,4,9,8],[4,4,4,8],[15,4,15,7],[16,4,16,7],[22,4,22,7],[67,0,67,1],[40,0,40,1],[14,0,14,1],[15,0,15,1],[4,0,4,2],[5,0,9,2]]}
[]
[]
[]
[]
["Конфигуратор Светосигнальной арматуры Mitra",null,null,null,"Спецификация"]
["Данный конфигуратор предназначен для подбора компонентов, необходимых для комплектации законченного устройства свтосигнальной арматуры Mitra.\nИнструкция:\n1. Выберите тип устройсва, который вы хотите собрать.\n2. Выберите его характеристики.",null,null,null,"Результат:\nВ разделе Спецификация указаны комплектующие, необходимые для сборки кнопки, переключателя или сигнального индикатора.\n\nНеобходимо подбирать компоненты, только из предложенных вариантов. Старая светосигнальная арматура M22 несовместима с новой."]
[null,null,null,null,null,null,null,null,null,{"$f":"\"\"","v":""}]
[]
[]
[]
[]
[]
[]
[null,null,null,null,null,null,null,null,{"$f":"IFERROR(HYPERLINK(VLOOKUP($F14,Наименование!A:O,15,0),VLOOKUP($F14,Наименование!A:O,15,0)),\"\")","v":""},null,null,"Содержимое заголовка"]
["Выбор параметров",null,null,null,"№ позиции","Артикул","Наименование","Количество","Ссылка",null,null,{"$f":"LEFT(E15,12)","v":"№ позиции"}]
["Кнопка",null,null,null,"Спецификация 1",null,null,null,{"$f":"IFERROR(HYPERLINK(VLOOKUP($F16,Наименование!A:O,15,0),VLOOKUP($F16,Наименование!A:O,15,0)),\"\")","v":""},null,null,{"$f":"LEFT(E16,12)","v":"Спецификация"}]
[null,null,null,null,"Кнопка",null,null,null,{"$f":"IFERROR(HYPERLINK(VLOOKUP($F17,Наименование!A:O,15,0),VLOOKUP($F17,Наименование!A:O,15,0)),\"\")","v":""},null,null,"Кнопка"]
["1. Вид кнопки:","Плоская",{"$f":"IF(B18=\"\",\"Выберите вид кнопки\",\"\")","v":""},null,1,"M22P-FMLWA","Головка кнопки плоская прозрачная без фиксации, белая, алюминий",1,{"$f":"IFERROR(HYPERLINK(VLOOKUP($F18,Наименование!A:O,15,0),VLOOKUP($F18,Наименование!A:O,15,0)),\"\")","v":"https://www.dkc.ru/ru/catalog/2028/M22P-FMLWA/"},null,null,"1"]
[null,null,null,null,2,"M22MF","Монтажное основание для крепления головок кнопок, переключателей и контактных блоков",1,{"$f":"IFERROR(HYPERLINK(VLOOKUP($F19,Наименование!A:O,15,0),VLOOKUP($F19,Наименование!A:O,15,0)),\"\")","v":"https://www.dkc.ru/ru/catalog/2028/M22MF/"},null,null,"2"]
["2. С возможностью подсветки","Да",{"$f":"IF(B18=\"Грибовидная\",IF(B20=\"\",\"Грибовидная кнопка с подсветкой 'Да'\",IF(B20=\"Да\",\"\",\"Выберите возможность подсветки  'Да'\")),IF(B20&B24=\"ДаЧёрный\",\"Чёрная кнопка без подсветки\",IF(B20=\"\",\"Выберите возможность подсветки\",\"\")))","v":""},null,3,"MC-L24WPS","Контактный блок с клеммными зажимами под винт со светодиодом на  9-24В, белый",1,{"$f":"IFERROR(HYPERLINK(VLOOKUP($F20,Наименование!A:O,15,0),VLOOKUP($F20,Наименование!A:O,15,0)),\"\")","v":"https://www.dkc.ru/ru/catalog/2028/MC-L24WPS/"},null,null,"3"]
[null,null,null,null,4,"MC-NOPS","Контактный блок с клеммными зажимами под винт, нормально-открытый",3,{"$f":"IFERROR(HYPERLINK(VLOOKUP($F21,Наименование!A:O,15,0),VLOOKUP($F21,Наименование!A:O,15,0)),\"\")","v":"https://www.dkc.ru/ru/catalog/2028/MC-NOPS/"},null,null,"4"]
["3. Механизм:","Без фиксации",{"$f":"IF(B18=\"Грибовидная\",IF(B22=\"Без фиксации\",\"Выберите механизм кнопки 'С фиксацией'\",IF(B22=\"\",\"Грибовидная кнопка 'С фиксацией'\",\"\")),IF(B22=\"\",IF(B20=\"Нет\",\"Кнопка без подсветки только 'Без фиксации'\",\"Выберите механизм кнопки\"),\"\"))","v":""},null,"",null,null,null,{"$f":"IFERROR(HYPERLINK(VLOOKUP($F22,Наименование!A:O,15,0),VLOOKUP($F22,Наименование!A:O,15,0)),\"\")","v":""},null,null,""]
[null,null,null,null,"Переключатель",null,null,null,{"$f":"IFERROR(HYPERLINK(VLOOKUP($F23,Наименование!A:O,15,0),VLOOKUP($F23,Наименование!A:O,15,0)),\"\")","v":""},null,null,"Переключател"]
["4. Цвет","Белый",{"$f":"IF(B18=\"Грибовидная\",IF(B24=\"Красный\",\"\",IF(B24=\"\",\"Грибовидная кнопка 'Красная'\",\"Выберите цвет 'Красный'\")),IF(B24=\"\",\"Выберите цвет кнопки\",IF(B20&B24=\"ДаЧёрный\",\"Чёрная кнопка без подсветки\",\"\")))","v":""},null,1,"M22S-L3P","Головака переключателя на 3 положения с фиксацией стандартная ручка, черный",1,{"$f":"IFERROR(HYPERLINK(VLOOKUP($F24,Наименование!A:O,15,0),VLOOKUP($F24,Наименование!A:O,15,0)),\"\")","v":"https://www.dkc.ru/ru/catalog/2028/M22S-L3P/"},null,null,"1"]
[null,null,null,null,2,"M22MF","Монтажное основание для крепления головок кнопок, переключателей и контактных блоков",1,{"$f":"IFERROR(HYPERLINK(VLOOKUP($F25,Наименование!A:O,15,0),VLOOKUP($F25,Наименование!A:O,15,0)),\"\")","v":"https://www.dkc.ru/ru/catalog/2028/M22MF/"},null,null,"2"]
["5. Материал кольца","Алюминий",{"$f":"IF(B26=\"\",\"Выберите материал кольца\",\"\")","v":""},null,3,"MC-L220RPP","Контактный  блок с клеммным безвинтовым зажимом со светодиодом на 220В, красный",1,{"$f":"IFERROR(HYPERLINK(VLOOKUP($F26,Наименование!A:O,15,0),VLOOKUP($F26,Наименование!A:O,15,0)),\"\")","v":"https://www.dkc.ru/ru/catalog/2028/MC-L220RPP/"},null,null,"3"]
[null,null,null,null,4,"MC-NOPP","Контактный блок с клеммным безвинтовым  зажимом, нормально-открытый",1,{"$f":"IFERROR(HYPERLINK(VLOOKUP($F27,Наименование!A:O,15,0),VLOOKUP($F27,Наименование!A:O,15,0)),\"\")","v":"https://www.dkc.ru/ru/catalog/2028/MC-NOPP/"},null,null,"4"]
["6. Тип зажима контактного блока","Винтовой",{"$f":"IF(B28=\"\",\"Выберите тип зажима\",\"\")","v":""},null,"",null,null,null,{"$f":"IFERROR(HYPERLINK(VLOOKUP($F28,Наименование!A:O,15,0),VLOOKUP($F28,Наименование!A:O,15,0)),\"\")","v":""},null,null,""]
[null,null,null,null,"Сигнальный индикатор",null,null,null,{"$f":"IFERROR(HYPERLINK(VLOOKUP($F29,Наименование!A:O,15,0),VLOOKUP($F29,Наименование!A:O,15,0)),\"\")","v":""},null,null,"Сигнальный и"]
["7. Наличие NO контактов","Да",{"$f":"IF(B30=\"\",\"Выберите наличие NO контактов\",IF(B30=\"Нет\",IF(B34=\"Нет\",\"Необходимо выбрать блоки с 'NO или NC контактами'\",\"\"),\"\"))","v":""},null,1,"M22L-F220RAP","Сигнальная лампа со встроенным диодом 220В, красная, алюминиевое кольцо, зажим Plug-In",1,{"$f":"IFERROR(HYPERLINK(VLOOKUP($F30,Наименование!A:O,15,0),VLOOKUP($F30,Наименование!A:O,15,0)),\"\")","v":"https://www.dkc.ru/ru/catalog/2028/M22L-F220RAP/"},null,null,"1"]
[null,null,null,null,"",null,null,null,{"$f":"IFERROR(HYPERLINK(VLOOKUP($F31,Наименование!A:O,15,0),VLOOKUP($F31,Наименование!A:O,15,0)),\"\")","v":""},null,null,""]
["8. Количество NO контактов",3,{"$f":"IFERROR(IF(B32&B30=\"Да\",\"Выберите количество NO контактов\",IF(B20&B28&B30&B34=\"НетВинтовойДаДа\",IF((IFERROR(B32,0)+IFERROR(B36,0))<=6,IF(B32=0,\"Выберите количество NO контактов\",\"\"),\"Без подсветки суммарно берем не более 6 блоков с 'NO и NC контактами'\"),IF(B20&B28&B30&B34=\"ДаВинтовойДаДа\",IF(B32<=3,IF((IFERROR(B32,0)+IFERROR(B36,0))<=4,IF(B32=0,\"Выберите количество NO контактов\",\"\"),\"С подсветкой суммарно берем не более 4 блоков с 'NO и NC контактами'\"),\"С подсветкой суммарно берем не более 4 блоков с 'NO и NC контактами'\"),IF(B20&B28&B30&B34=\"НетБезвинтовой Plug-InДаДа\",IF((IFERROR(B32,0)+IFERROR(B36,0))<=3,IF(B32=0,\"Выберите количество NO контактов\",\"\"),\"Без подсветки суммарно берем не более 3 блоков с 'NO и NC контактами'\"),IF(B20&B28&B30&B34=\"ДаБезвинтовой Plug-InДаДа\",IF((IFERROR(B32,0)+IFERROR(B36,0))<=2,IF(B32=0,\"Выберите количество NO контактов\",\"\"),\"С подсветкой суммарно берем не более 2 блоков  с 'NO и NC контактами'\"),IF(B20&B28&B30=\"НетВинтовойДа\",IF(B32<=6,IF(B32=0,\"Выберите количество NO контактов\",\"\"),\"Без подсветки берем не более 6 блоков с 'NO контактами'\"),IF(B20&B28&B30&B34=\"ДаВинтовойДаНет\",IF(B32<=4,IF(B32=0,\"Выберите количество NO контактов\",\"\"),\"С подсветкой берем не более 4 блоков с 'NO контактами'\"),IF(B20&B28&B30=\"НетБезвинтовой Plug-InДа\",IF(B32<=3,IF(B32=0,\"Выберите количество NO контактов\",\"\"),\"Без подсветки берем не более 3 блоков с 'NO контактами'\"),IF(B20&B28&B30=\"ДаБезвинтовой Plug-InДа\",IF(B32<=2,IF(B32=0,\"Выберите количество NO контактов\",\"\"),\"С подсветкой берем не более 2 блоков  с 'NO контактами'\"),IF(B30<>\"Да\",IF(B32>0,IF(B32=\"\",\"\",\"NO контакты не используем\"),\"\"),IF(B30=\"Да\",IF(B32=0,\"Выберите количество NO контактов\",\"\"),\"\"))))))))))),\"\")","v":""},null,null,null,null,null,{"$f":"IFERROR(HYPERLINK(VLOOKUP($F32,Наименование!A:O,15,0),VLOOKUP($F32,Наименование!A:O,15,0)),\"\")","v":""},null,null,""]
[null,null,null,null,null,null,null,null,{"$f":"IFERROR(HYPERLINK(VLOOKUP($F33,Наименование!A:O,15,0),VLOOKUP($F33,Наименование!A:O,15,0)),\"\")","v":""},null,null,""]
["9. Наличие NC контактов","Нет",{"$f":"IF(B34=\"\",\"Выберите наличие NC контактов\",IF(B34=\"Нет\",IF(B30=\"Нет\",\"Необходимо выбрать блоки с 'NO или NC контактами'\",\"\"),\"\"))","v":""},null,null,null,null,null,{"$f":"IFERROR(HYPERLINK(VLOOKUP($F34,Наименование!A:O,15,0),VLOOKUP($F34,Наименование!A:O,15,0)),\"\")","v":""},null,null,""]
[null,null,null,null,null,null,null,null,{"$f":"IFERROR(HYPERLINK(VLOOKUP($F35,Наименование!A:O,15,0),VLOOKUP($F35,Наименование!A:O,15,0)),\"\")","v":""},null,null,""]
["10. Количество NC контактов",{"$f":"IF(Конфигуратор!$B$34=\"Нет\",0,\"\")","v":0},{"$f":"IFERROR(IF(B34&B36=\"Да\",\"Выберите количество NC контактов\",IF(B20&B28&B30&B34=\"НетВинтовойДаДа\",IF((B32+B36)<=6,IF(B36=0,\"Выберите количество NC контактов\",\"\"),\"Без подсветки суммарно берем не более 6 блоков с 'NO и NC контактами'\"),IF(B20&B28&B30&B34=\"ДаВинтовойДаДа\",IF(B36<=3,IF((IFERROR(B32,0)+IFERROR(B36,0))<=4,IF(B36=0,\"Выберите количество NC контактов\",\"\"),\"С подсветкой суммарно берем не более 4 блоков с 'NO и NC контактами'\"),\"С подсветкой суммарно берем не более 4 блоков с 'NO и NC контактами'\"),IF(B20&B28&B30&B34=\"НетБезвинтовой Plug-InДаДа\",IF((B32+B36)<=3,IF(B36=0,\"Выберите количество NC контактов\",\"\"),\"Без подсветки суммарно берем не более 3 блоков с 'NO и NC контактами'\"),IF(B20&B28&B30&B34=\"ДаБезвинтовой Plug-InДаДа\",IF((B32+B36)<=2,IF(B36=0,\"Выберите количество NC контактов\",\"\"),\"С подсветкой суммарно берем не более 2 блоков  с 'NO и NC контактами'\"),IF(B20&B28&B34=\"НетВинтовойДа\",IF(B36<=6,IF(B36=0,\"Выберите количество NC контактов\",\"\"),\"Без подсветки берем не более 6 блоков с 'NC контактами'\"),IF(B20&B28&B34=\"ДаВинтовойДа\",IF(B36<=4,IF(B36=0,\"Выберите количество NC контактов\",\"\"),\"С подсветкой берем не более 4 блоков с 'NC контактами'\"),IF(B20&B28&B34=\"НетБезвинтовой Plug-InДа\",IF(B36<=3,IF(B36=0,\"Выберите количество NC контактов\",\"\"),\"Без подсветки берем не более 3 блоков с 'NC контактами'\"),IF(B20&B28&B34=\"ДаБезвинтовой Plug-InДа\",IF(B36<=2,IF(B36=0,\"Выберите количество NC контактов\",\"\"),\"С подсветкой берем не более 2 блоков  с 'NC контактами'\"),IF(B34<>\"Да\",IF(B36>0,IF(B36=\"\",\"\",\"NC контакты не используем\"),\"\"),IF(B34=\"Да\",IF(B36=0,\"Выберите количество NC контактов\",\"\"),\"\"))))))))))),\"\")","v":""},null,null,null,null,null,{"$f":"IFERROR(HYPERLINK(VLOOKUP($F36,Наименование!A:O,15,0),VLOOKUP($F36,Наименование!A:O,15,0)),\"\")","v":""},null,null,""]
[null,null,null,null,null,null,null,null,{"$f":"IFERROR(HYPERLINK(VLOOKUP($F37,Наименование!A:O,15,0),VLOOKUP($F37,Наименование!A:O,15,0)),\"\")","v":""},null,null,""]
["9. Напряжение сети","9-24 В",{"$f":"IF(B20=\"Нет\",IF(B38<>\"Нет\",\"Кнопка без подсветки Напряжение = 'Нет'\",\"\"),IF(B20=\"Да\",IF(B38=\"\", \"Кнопка с подсветкой выберите Напряжение\",IF(B38=\"Нет\", \"Кнопка с подсветкой выберите Напряжение\",\"\")), \"Выберите Напряжение\"))","v":""},null,null,null,null,null,{"$f":"IFERROR(HYPERLINK(VLOOKUP($F38,Наименование!A:O,15,0),VLOOKUP($F38,Наименование!A:O,15,0)),\"\")","v":""},null,null,""]
[null,null,null,null,null,null,null,null,{"$f":"IFERROR(HYPERLINK(VLOOKUP($F39,Наименование!A:O,15,0),VLOOKUP($F39,Наименование!A:O,15,0)),\"\")","v":""},null,null,""]
[null,null,null,null,null,null,null,null,{"$f":"IFERROR(HYPERLINK(VLOOKUP($F40,Наименование!A:O,15,0),VLOOKUP($F40,Наименование!A:O,15,0)),\"\")","v":""},null,null,""]
["Переключатель",null,null,null,null,null,null,null,{"$f":"IFERROR(HYPERLINK(VLOOKUP($F41,Наименование!A:O,15,0),VLOOKUP($F41,Наименование!A:O,15,0)),\"\")","v":""},null,null,""]
[null,null,null,null,null,null,null,null,{"$f":"IFERROR(HYPERLINK(VLOOKUP($F42,Наименование!A:O,15,0),VLOOKUP($F42,Наименование!A:O,15,0)),\"\")","v":""},null,null,""]
["1. Тип переключателя","Без ключа",{"$f":"IF(B43=\"\",\"Выберите тип переключателя\",\"\")","v":""},null,null,null,null,null,{"$f":"IFERROR(HYPERLINK(VLOOKUP($F43,Наименование!A:O,15,0),VLOOKUP($F43,Наименование!A:O,15,0)),\"\")","v":""},null,null,""]
[null,null,null,null,null,null,null,null,{"$f":"IFERROR(HYPERLINK(VLOOKUP($F44,Наименование!A:O,15,0),VLOOKUP($F44,Наименование!A:O,15,0)),\"\")","v":""},null,null,""]
["2. Количество положений",3,{"$f":"IF(B45=\"\",\"Выберите количество положений переключателя\",\"\")","v":""},null,null,null,null,null,{"$f":"IFERROR(HYPERLINK(VLOOKUP($F45,Наименование!A:O,15,0),VLOOKUP($F45,Наименование!A:O,15,0)),\"\")","v":""},null,null,""]
[null,null,null,null,null,null,null,null,{"$f":"IFERROR(HYPERLINK(VLOOKUP($F46,Наименование!A:O,15,0),VLOOKUP($F46,Наименование!A:O,15,0)),\"\")","v":""},null,null,""]
["3. Механизм","С фиксацией",{"$f":"IF(B47=\"\",\"Выберите механизм переключателя\",\"\")","v":""},null,null,null,null,null,{"$f":"IFERROR(HYPERLINK(VLOOKUP($F47,Наименование!A:O,15,0),VLOOKUP($F47,Наименование!A:O,15,0)),\"\")","v":""},null,null,""]
[null,null,null,null,null,null,null,null,{"$f":"IFERROR(HYPERLINK(VLOOKUP($F48,Наименование!A:O,15,0),VLOOKUP($F48,Наименование!A:O,15,0)),\"\")","v":""},null,null,""]
["4. Материал","Пластик",{"$f":"IF(B49=\"\",\"Выберите материал переключателя\",\"\")","v":""},null,null,null,null,null,{"$f":"IFERROR(HYPERLINK(VLOOKUP($F49,Наименование!A:O,15,0),VLOOKUP($F49,Наименование!A:O,15,0)),\"\")","v":""},null,null,""]
[null,null,null,null,null,null,null,null,{"$f":"IFERROR(HYPERLINK(VLOOKUP($F50,Наименование!A:O,15,0),VLOOKUP($F50,Наименование!A:O,15,0)),\"\")","v":""},null,null,""]
["5. С возможностью подсветки",{"$f":"IF(Конфигуратор!$B$43<>\"\",\"Да\",\"\")","v":"Да"},{"$f":"IF(B51=\"\",\"Выберите возможность подсветки\",\"\")","v":""},null,null,null,null,null,{"$f":"IFERROR(HYPERLINK(VLOOKUP($F51,Наименование!A:O,15,0),VLOOKUP($F51,Наименование!A:O,15,0)),\"\")","v":""},null,null,""]
[null,null,null,null,null,null,null,null,{"$f":"IFERROR(HYPERLINK(VLOOKUP($F52,Наименование!A:O,15,0),VLOOKUP($F52,Наименование!A:O,15,0)),\"\")","v":""},null,null,""]
["6. Напряжение сети","220 В",{"$f":"IF(B53=\"\",\"Переключатель с подсветкой выберите Напряжение\",\"\")","v":""},null,null,null,null,null,{"$f":"IFERROR(HYPERLINK(VLOOKUP($F53,Наименование!A:O,15,0),VLOOKUP($F53,Наименование!A:O,15,0)),\"\")","v":""},null,null,""]
[null,null,null,null,null,null,null,null,{"$f":"IFERROR(HYPERLINK(VLOOKUP($F54,Наименование!A:O,15,0),VLOOKUP($F54,Наименование!A:O,15,0)),\"\")","v":""},null,null,""]
["7. Цвет подсветки","Красный",{"$f":"IF(B55=\"\",\"Выберите цвет подсветки\",\"\")","v":""},null,null,null,null,null,{"$f":"IFERROR(HYPERLINK(VLOOKUP($F55,Наименование!A:O,15,0),VLOOKUP($F55,Наименование!A:O,15,0)),\"\")","v":""},null,null,""]
[null,null,null,null,null,null,null,null,{"$f":"IFERROR(HYPERLINK(VLOOKUP($F56,Наименование!A:O,15,0),VLOOKUP($F56,Наименование!A:O,15,0)),\"\")","v":""},null,null,""]
["8. Тип зажима контактного блока","Безвинтовой Plug-In",{"$f":"IF(B57=\"\",\"Выберите тип зажима\",\"\")","v":""},null,null,null,null,null,{"$f":"IFERROR(HYPERLINK(VLOOKUP($F57,Наименование!A:O,15,0),VLOOKUP($F57,Наименование!A:O,15,0)),\"\")","v":""},null,null,""]
[null,null,null,null,null,null,null,null,{"$f":"IFERROR(HYPERLINK(VLOOKUP($F58,Наименование!A:O,15,0),VLOOKUP($F58,Наименование!A:O,15,0)),\"\")","v":""},null,null,""]
["9. Наличие NO контактов","Да",{"$f":"IF(B59=\"\",\"Выберите наличие NO контактов\",IF(B59=\"Нет\",IF(B63=\"Нет\",\"Необходимо выбрать блоки с 'NO или NC контактами'\",\"\"),\"\"))","v":""},null,null,null,null,null,{"$f":"IFERROR(HYPERLINK(VLOOKUP($F59,Наименование!A:O,15,0),VLOOKUP($F59,Наименование!A:O,15,0)),\"\")","v":""},null,null,""]
[null,null,null,null,null,null,null,null,{"$f":"IFERROR(HYPERLINK(VLOOKUP($F60,Наименование!A:O,15,0),VLOOKUP($F60,Наименование!A:O,15,0)),\"\")","v":""},null,null,""]
["10. Количество NO контактов",1,{"$f":"IFERROR(IF(B59&B61=\"Да\",\"Выберите количество NO контактов\",IF(B51&B57&B59&B63=\"ДаВинтовойДаДа\",IF((B61+B65)<=4,IF(B61<1,\"Выберите количество NO контактов\",\"\"),\"С подсветкой суммарно берем не более 4 блоков с 'NO и NC контактами'\"),IF(B51&B57&B59&B63=\"ДаБезвинтовой Plug-InДаДа\",IF((B61+B65)<=2,IF(B59=\"Да\",IF(B61=0,\"Выберите количество NO контактов\",\"\"),\"\"),\"С подсветкой суммарно берем не более 2 блоков  с 'NO и NC контактами'\"),IF(B51&B57&B59=\"ДаВинтовойДа\",IF(B61<=4,IF(B61<1,\"Введите количество NO контактов\",\"\"),\"С подсветкой берем не более 4 блоков с 'NO контактами'\"),IF(B51&B57&B59=\"ДаБезвинтовой Plug-InДа\",IF(B61<=2,IF(B59=\"Да\",IF(B61=0,\"Выберите количество NO контактов\",\"\"),\"\"),\"С подсветкой берем не более 2 блоков  с 'NO контактами'\"),IF(B59<>\"Да\",IF(B61>0,IF(B61=\"\",\"\",\"NO контакты не используем\"),\"\"),IF(B59=\"Да\",IF(B61=0,\"Выберите количество NO контактов\",\"\"),\"\"))))))),\"\")","v":""},null,null,null,null,null,{"$f":"IFERROR(HYPERLINK(VLOOKUP($F61,Наименование!A:O,15,0),VLOOKUP($F61,Наименование!A:O,15,0)),\"\")","v":""},null,null,""]
[null,null,null,null,null,null,null,null,{"$f":"IFERROR(HYPERLINK(VLOOKUP($F62,Наименование!A:O,15,0),VLOOKUP($F62,Наименование!A:O,15,0)),\"\")","v":""},null,null,""]
["11. Наличие NC контактов","Нет",{"$f":"IF(B63=\"\",\"Выберите наличие NC контактов\",IF(B63=\"Нет\",IF(B59=\"Нет\",\"Необходимо выбрать блоки с 'NO или NC контактами'\",\"\"),\"\"))","v":""},null,null,null,null,null,{"$f":"IFERROR(HYPERLINK(VLOOKUP($F63,Наименование!A:O,15,0),VLOOKUP($F63,Наименование!A:O,15,0)),\"\")","v":""},null,null,""]
[null,null,null,null,null,null,null,null,{"$f":"IFERROR(HYPERLINK(VLOOKUP($F64,Наименование!A:O,15,0),VLOOKUP($F64,Наименование!A:O,15,0)),\"\")","v":""},null,null,""]
["12. Количество NC контактов",{"$f":"IF(Конфигуратор!$B$63=\"Нет\",0,$J$7)","v":0},{"$f":"IFERROR(IF(B63&B65=\"Да\",\"Выберите количество NC контактов\",IF(B51&B57&B59&B63=\"ДаВинтовойДаДа\",IF((IFERROR(B61,0)+IFERROR(B65,0))<=4,IF(B65<1,\"Выберите количество NC контактов\",\"\"),\"С подсветкой суммарно берем не более 4 блоков с 'NO и NC контактами'\"),IF(B51&B57&B59&B63=\"ДаБезвинтовой Plug-InДаДа\",IF((IFERROR(B61,0)+IFERROR(B65,0))<=2,IF(B65<1,\"Выберите количество NC контактов\",\"\"),\"С подсветкой суммарно берем не более 2 блоков  с 'NO и NC контактами'\"),IF(B51&B57&B63=\"ДаВинтовойДа\",IF(B65<=4,IF(B65<1,\"Выберите количество NC контактов\",\"\"),\"С подсветкой берем не более 4 блоков с 'NC контактами'\"),IF(B51&B57&B63=\"НетБезвинтовой Plug-InДа\",IF(B65<=3,IF(B65<1,\"Выберите количество NC контактов\",\"\"),\"Без подсветки суммарно берем не более 3 блоков с 'NC контактами'\"),IF(B51&B57&B63=\"ДаБезвинтовой Plug-InДа\",IF(B65<=2,IF(B65<1,\"Выберите количество NC контактов\",\"\"),\"С подсветкой суммарно берем не более 2 блоков  с 'NC контактами'\"),IF(B63<>\"Да\",IF(B65>0,IF(B65=\"\",\"\",\"NC контакты не используем\"),\"\"),IF(B63=\"Да\",IF(B65<1,\"Выберите количество NC контактов\",\"\"),\"\")))))))),\"\")","v":""},null,null,null,null,null,{"$f":"IFERROR(HYPERLINK(VLOOKUP($F65,Наименование!A:O,15,0),VLOOKUP($F65,Наименование!A:O,15,0)),\"\")","v":""},null,null,""]
[null,null,null,null,null,null,null,null,{"$f":"IFERROR(HYPERLINK(VLOOKUP($F66,Наименование!A:O,15,0),VLOOKUP($F66,Наименование!A:O,15,0)),\"\")","v":""},null,null,""]
[null,null,null,null,null,null,null,null,{"$f":"IFERROR(HYPERLINK(VLOOKUP($F67,Наименование!A:O,15,0),VLOOKUP($F67,Наименование!A:O,15,0)),\"\")","v":""},null,null,""]
["Сигнальнальная лампа",null,null,null,null,null,null,null,{"$f":"IFERROR(HYPERLINK(VLOOKUP($F68,Наименование!A:O,15,0),VLOOKUP($F68,Наименование!A:O,15,0)),\"\")","v":""},null,null,""]
[null,null,null,null,null,null,null,null,{"$f":"IFERROR(HYPERLINK(VLOOKUP($F69,Наименование!A:O,15,0),VLOOKUP($F69,Наименование!A:O,15,0)),\"\")","v":""},null,null,""]
["1. Цвет лампы","Красный",{"$f":"IF(B70=\"\",\"Выберите цвет лампы\",\"\")","v":""},null,null,null,null,null,{"$f":"IFERROR(HYPERLINK(VLOOKUP($F70,Наименование!A:O,15,0),VLOOKUP($F70,Наименование!A:O,15,0)),\"\")","v":""},null,null,""]
[null,null,null,null,null,null,null,null,{"$f":"IFERROR(HYPERLINK(VLOOKUP($F71,Наименование!A:O,15,0),VLOOKUP($F71,Наименование!A:O,15,0)),\"\")","v":""},null,null,""]
["2. Напряжение сети","220 В",{"$f":"IF(B72=\"\",\"Выберите напряжение\",\"\")","v":""},null,null,null,null,null,{"$f":"IFERROR(HYPERLINK(VLOOKUP($F72,Наименование!A:O,15,0),VLOOKUP($F72,Наименование!A:O,15,0)),\"\")","v":""},null,null,""]
[null,null,null,null,null,null,null,null,{"$f":"IFERROR(HYPERLINK(VLOOKUP($F73,Наименование!A:O,15,0),VLOOKUP($F73,Наименование!A:O,15,0)),\"\")","v":""},null,null,""]
["3. Тип зажима","Безвинтовой Plug-In",{"$f":"IF(B74=\"\",\"Выберите тип зажима\",\"\")","v":""},null,null,null,null,null,{"$f":"IFERROR(HYPERLINK(VLOOKUP($F74,Наименование!A:O,15,0),VLOOKUP($F74,Наименование!A:O,15,0)),\"\")","v":""},null,null,""]
[null,null,null,null,null,null,null,null,{"$f":"IFERROR(HYPERLINK(VLOOKUP($F75,Наименование!A:O,15,0),VLOOKUP($F75,Наименование!A:O,15,0)),\"\")","v":""},null,null,""]
["4. Материал кольца","Алюминий",{"$f":"IF(B76=\"\",\"Выберите материал кольца\",\"\")","v":""},null,null,null,null,null,{"$f":"IFERROR(HYPERLINK(VLOOKUP($F76,Наименование!A:O,15,0),VLOOKUP($F76,Наименование!A:O,15,0)),\"\")","v":""},null,null,""]
[null,null,null,null,null,null,null,null,{"$f":"IFERROR(HYPERLINK(VLOOKUP($F77,Наименование!A:O,15,0),VLOOKUP($F77,Наименование!A:O,15,0)),\"\")","v":""},null,null,""]
[null,null,null,null,null,null,null,null,{"$f":"IFERROR(HYPERLINK(VLOOKUP($F78,Наименование!A:O,15,0),VLOOKUP($F78,Наименование!A:O,15,0)),\"\")","v":""},null,null,""]
[null,null,null,null,null,null,null,null,{"$f":"IFERROR(HYPERLINK(VLOOKUP($F79,Наименование!A:O,15,0),VLOOKUP($F79,Наименование!A:O,15,0)),\"\")","v":""},null,null,""]
[null,null,null,null,null,null,null,null,{"$f":"IFERROR(HYPERLINK(VLOOKUP($F80,Наименование!A:O,15,0),VLOOKUP($F80,Наименование!A:O,15,0)),\"\")","v":""},null,null,{"$f":"LEFT(E80,12)","v":""}]
[null,null,null,null,null,null,null,null,{"$f":"IFERROR(HYPERLINK(VLOOKUP($F81,Наименование!A:O,15,0),VLOOKUP($F81,Наименование!A:O,15,0)),\"\")","v":""},null,null,""]
[null,null,null,null,null,null,null,null,{"$f":"IFERROR(HYPERLINK(VLOOKUP($F82,Наименование!A:O,15,0),VLOOKUP($F82,Наименование!A:O,15,0)),\"\")","v":""},null,null,""]
[null,null,null,null,null,null,null,null,{"$f":"IFERROR(HYPERLINK(VLOOKUP($F83,Наименование!A:O,15,0),VLOOKUP($F83,Наименование!A:O,15,0)),\"\")","v":""},null,null,""]
[null,null,null,null,null,null,null,null,{"$f":"IFERROR(HYPERLINK(VLOOKUP($F84,Наименование!A:O,15,0),VLOOKUP($F84,Наименование!A:O,15,0)),\"\")","v":""},null,null,""]
[null,null,null,null,null,null,null,null,{"$f":"IFERROR(HYPERLINK(VLOOKUP($F85,Наименование!A:O,15,0),VLOOKUP($F85,Наименование!A:O,15,0)),\"\")","v":""},null,null,""]
[null,null,null,null,null,null,null,null,{"$f":"IFERROR(HYPERLINK(VLOOKUP($F86,Наименование!A:O,15,0),VLOOKUP($F86,Наименование!A:O,15,0)),\"\")","v":""},null,null,""]
[null,null,null,null,null,null,null,null,{"$f":"IFERROR(HYPERLINK(VLOOKUP($F87,Наименование!A:O,15,0),VLOOKUP($F87,Наименование!A:O,15,0)),\"\")","v":""},null,null,""]
[null,null,null,null,null,null,null,null,{"$f":"IFERROR(HYPERLINK(VLOOKUP($F88,Наименование!A:O,15,0),VLOOKUP($F88,Наименование!A:O,15,0)),\"\")","v":""},null,null,""]
[null,null,null,null,null,null,null,null,{"$f":"IFERROR(HYPERLINK(VLOOKUP($F89,Наименование!A:O,15,0),VLOOKUP($F89,Наименование!A:O,15,0)),\"\")","v":""},null,null,""]
[null,null,null,null,null,null,null,null,{"$f":"IFERROR(HYPERLINK(VLOOKUP($F90,Наименование!A:O,15,0),VLOOKUP($F90,Наименование!A:O,15,0)),\"\")","v":""},null,null,""]
[null,null,null,null,null,null,null,null,{"$f":"IFERROR(HYPERLINK(VLOOKUP($F91,Наименование!A:O,15,0),VLOOKUP($F91,Наименование!A:O,15,0)),\"\")","v":""},null,null,""]
[null,null,null,null,null,null,null,null,{"$f":"IFERROR(HYPERLINK(VLOOKUP($F92,Наименование!A:O,15,0),VLOOKUP($F92,Наименование!A:O,15,0)),\"\")","v":""},null,null,""]
[null,null,null,null,null,null,null,null,{"$f":"IFERROR(HYPERLINK(VLOOKUP($F93,Наименование!A:O,15,0),VLOOKUP($F93,Наименование!A:O,15,0)),\"\")","v":""},null,null,""]
[null,null,null,null,null,null,null,null,{"$f":"IFERROR(HYPERLINK(VLOOKUP($F94,Наименование!A:O,15,0),VLOOKUP($F94,Наименование!A:O,15,0)),\"\")","v":""},null,null,""]
[null,null,null,null,null,null,null,null,{"$f":"IFERROR(HYPERLINK(VLOOKUP($F95,Наименование!A:O,15,0),VLOOKUP($F95,Наименование!A:O,15,0)),\"\")","v":""},null,null,""]
[null,null,null,null,null,null,null,null,{"$f":"IFERROR(HYPERLINK(VLOOKUP($F96,Наименование!A:O,15,0),VLOOKUP($F96,Наименование!A:O,15,0)),\"\")","v":""},null,null,""]
[null,null,null,null,null,null,null,null,{"$f":"IFERROR(HYPERLINK(VLOOKUP($F97,Наименование!A:O,15,0),VLOOKUP($F97,Наименование!A:O,15,0)),\"\")","v":""},null,null,""]
[null,null,null,null,null,null,null,null,{"$f":"IFERROR(HYPERLINK(VLOOKUP($F98,Наименование!A:O,15,0),VLOOKUP($F98,Наименование!A:O,15,0)),\"\")","v":""},null,null,""]
[null,null,null,null,null,null,null,null,{"$f":"IFERROR(HYPERLINK(VLOOKUP($F99,Наименование!A:O,15,0),VLOOKUP($F99,Наименование!A:O,15,0)),\"\")","v":""},null,null,""]
[null,null,null,null,null,null,null,null,{"$f":"IFERROR(HYPERLINK(VLOOKUP($F100,Наименование!A:O,15,0),VLOOKUP($F100,Наименование!A:O,15,0)),\"\")","v":""},null,null,""]
[null,null,null,null,null,null,null,null,{"$f":"IFERROR(HYPERLINK(VLOOKUP($F101,Наименование!A:O,15,0),VLOOKUP($F101,Наименование!A:O,15,0)),\"\")","v":""},null,null,""]
[null,null,null,null,null,null,null,null,{"$f":"IFERROR(HYPERLINK(VLOOKUP($F102,Наименование!A:O,15,0),VLOOKUP($F102,Наименование!A:O,15,0)),\"\")","v":""},null,null,""]
[null,null,null,null,null,null,null,null,{"$f":"IFERROR(HYPERLINK(VLOOKUP($F103,Наименование!A:O,15,0),VLOOKUP($F103,Наименование!A:O,15,0)),\"\")","v":""},null,null,""]
[null,null,null,null,null,null,null,null,{"$f":"IFERROR(HYPERLINK(VLOOKUP($F104,Наименование!A:O,15,0),VLOOKUP($F104,Наименование!A:O,15,0)),\"\")","v":""},null,null,""]
[null,null,null,null,null,null,null,null,{"$f":"IFERROR(HYPERLINK(VLOOKUP($F105,Наименование!A:O,15,0),VLOOKUP($F105,Наименование!A:O,15,0)),\"\")","v":""},null,null,""]
[null,null,null,null,null,null,null,null,{"$f":"IFERROR(HYPERLINK(VLOOKUP($F106,Наименование!A:O,15,0),VLOOKUP($F106,Наименование!A:O,15,0)),\"\")","v":""},null,null,""]
[null,null,null,null,null,null,null,null,{"$f":"IFERROR(HYPERLINK(VLOOKUP($F107,Наименование!A:O,15,0),VLOOKUP($F107,Наименование!A:O,15,0)),\"\")","v":""},null,null,""]
[null,null,null,null,null,null,null,null,{"$f":"IFERROR(HYPERLINK(VLOOKUP($F108,Наименование!A:O,15,0),VLOOKUP($F108,Наименование!A:O,15,0)),\"\")","v":""},null,null,""]
[null,null,null,null,null,null,null,null,{"$f":"IFERROR(HYPERLINK(VLOOKUP($F109,Наименование!A:O,15,0),VLOOKUP($F109,Наименование!A:O,15,0)),\"\")","v":""},null,null,""]
[null,null,null,null,null,null,null,null,{"$f":"IFERROR(HYPERLINK(VLOOKUP($F110,Наименование!A:O,15,0),VLOOKUP($F110,Наименование!A:O,15,0)),\"\")","v":""},null,null,""]
[null,null,null,null,null,null,null,null,{"$f":"IFERROR(HYPERLINK(VLOOKUP($F111,Наименование!A:O,15,0),VLOOKUP($F111,Наименование!A:O,15,0)),\"\")","v":""},null,null,""]
[null,null,null,null,null,null,null,null,{"$f":"IFERROR(HYPERLINK(VLOOKUP($F112,Наименование!A:O,15,0),VLOOKUP($F112,Наименование!A:O,15,0)),\"\")","v":""},null,null,""]
[null,null,null,null,null,null,null,null,{"$f":"IFERROR(HYPERLINK(VLOOKUP($F113,Наименование!A:O,15,0),VLOOKUP($F113,Наименование!A:O,15,0)),\"\")","v":""},null,null,""]
[null,null,null,null,null,null,null,null,{"$f":"IFERROR(HYPERLINK(VLOOKUP($F114,Наименование!A:O,15,0),VLOOKUP($F114,Наименование!A:O,15,0)),\"\")","v":""},null,null,""]
[null,null,null,null,null,null,null,null,{"$f":"IFERROR(HYPERLINK(VLOOKUP($F115,Наименование!A:O,15,0),VLOOKUP($F115,Наименование!A:O,15,0)),\"\")","v":""},null,null,""]
[null,null,null,null,null,null,null,null,{"$f":"IFERROR(HYPERLINK(VLOOKUP($F116,Наименование!A:O,15,0),VLOOKUP($F116,Наименование!A:O,15,0)),\"\")","v":""},null,null,""]
[null,null,null,null,null,null,null,null,{"$f":"IFERROR(HYPERLINK(VLOOKUP($F117,Наименование!A:O,15,0),VLOOKUP($F117,Наименование!A:O,15,0)),\"\")","v":""},null,null,""]
[null,null,null,null,null,null,null,null,{"$f":"IFERROR(HYPERLINK(VLOOKUP($F118,Наименование!A:O,15,0),VLOOKUP($F118,Наименование!A:O,15,0)),\"\")","v":""},null,null,""]
[null,null,null,null,null,null,null,null,{"$f":"IFERROR(HYPERLINK(VLOOKUP($F119,Наименование!A:O,15,0),VLOOKUP($F119,Наименование!A:O,15,0)),\"\")","v":""},null,null,""]
[null,null,null,null,null,null,null,null,{"$f":"IFERROR(HYPERLINK(VLOOKUP($F120,Наименование!A:O,15,0),VLOOKUP($F120,Наименование!A:O,15,0)),\"\")","v":""},null,null,""]
[null,null,null,null,null,null,null,null,{"$f":"IFERROR(HYPERLINK(VLOOKUP($F121,Наименование!A:O,15,0),VLOOKUP($F121,Наименование!A:O,15,0)),\"\")","v":""},null,null,""]
[null,null,null,null,null,null,null,null,{"$f":"IFERROR(HYPERLINK(VLOOKUP($F122,Наименование!A:O,15,0),VLOOKUP($F122,Наименование!A:O,15,0)),\"\")","v":""},null,null,""]
[null,null,null,null,null,null,null,null,{"$f":"IFERROR(HYPERLINK(VLOOKUP($F123,Наименование!A:O,15,0),VLOOKUP($F123,Наименование!A:O,15,0)),\"\")","v":""},null,null,""]
[null,null,null,null,null,null,null,null,{"$f":"IFERROR(HYPERLINK(VLOOKUP($F124,Наименование!A:O,15,0),VLOOKUP($F124,Наименование!A:O,15,0)),\"\")","v":""},null,null,""]
[null,null,null,null,null,null,null,null,{"$f":"IFERROR(HYPERLINK(VLOOKUP($F125,Наименование!A:O,15,0),VLOOKUP($F125,Наименование!A:O,15,0)),\"\")","v":""},null,null,""]
[null,null,null,null,null,null,null,null,{"$f":"IFERROR(HYPERLINK(VLOOKUP($F126,Наименование!A:O,15,0),VLOOKUP($F126,Наименование!A:O,15,0)),\"\")","v":""},null,null,""]
[null,null,null,null,null,null,null,null,{"$f":"IFERROR(HYPERLINK(VLOOKUP($F127,Наименование!A:O,15,0),VLOOKUP($F127,Наименование!A:O,15,0)),\"\")","v":""},null,null,""]
[null,null,null,null,null,null,null,null,{"$f":"IFERROR(HYPERLINK(VLOOKUP($F128,Наименование!A:O,15,0),VLOOKUP($F128,Наименование!A:O,15,0)),\"\")","v":""},null,null,""]
[null,null,null,null,null,null,null,null,{"$f":"IFERROR(HYPERLINK(VLOOKUP($F129,Наименование!A:O,15,0),VLOOKUP($F129,Наименование!A:O,15,0)),\"\")","v":""},null,null,""]
[null,null,null,null,null,null,null,null,{"$f":"IFERROR(HYPERLINK(VLOOKUP($F130,Наименование!A:O,15,0),VLOOKUP($F130,Наименование!A:O,15,0)),\"\")","v":""},null,null,""]
[null,null,null,null,null,null,null,null,{"$f":"IFERROR(HYPERLINK(VLOOKUP($F131,Наименование!A:O,15,0),VLOOKUP($F131,Наименование!A:O,15,0)),\"\")","v":""},null,null,""]
[null,null,null,null,null,null,null,null,{"$f":"IFERROR(HYPERLINK(VLOOKUP($F132,Наименование!A:O,15,0),VLOOKUP($F132,Наименование!A:O,15,0)),\"\")","v":""},null,null,""]
[null,null,null,null,null,null,null,null,{"$f":"IFERROR(HYPERLINK(VLOOKUP($F133,Наименование!A:O,15,0),VLOOKUP($F133,Наименование!A:O,15,0)),\"\")","v":""},null,null,""]
[null,null,null,null,null,null,null,null,{"$f":"IFERROR(HYPERLINK(VLOOKUP($F134,Наименование!A:O,15,0),VLOOKUP($F134,Наименование!A:O,15,0)),\"\")","v":""},null,null,""]
[null,null,null,null,null,null,null,null,{"$f":"IFERROR(HYPERLINK(VLOOKUP($F135,Наименование!A:O,15,0),VLOOKUP($F135,Наименование!A:O,15,0)),\"\")","v":""},null,null,""]
[null,null,null,null,null,null,null,null,{"$f":"IFERROR(HYPERLINK(VLOOKUP($F136,Наименование!A:O,15,0),VLOOKUP($F136,Наименование!A:O,15,0)),\"\")","v":""},null,null,""]
[null,null,null,null,null,null,null,null,{"$f":"IFERROR(HYPERLINK(VLOOKUP($F137,Наименование!A:O,15,0),VLOOKUP($F137,Наименование!A:O,15,0)),\"\")","v":""},null,null,""]
[null,null,null,null,null,null,null,null,{"$f":"IFERROR(HYPERLINK(VLOOKUP($F138,Наименование!A:O,15,0),VLOOKUP($F138,Наименование!A:O,15,0)),\"\")","v":""},null,null,""]
[null,null,null,null,null,null,null,null,{"$f":"IFERROR(HYPERLINK(VLOOKUP($F139,Наименование!A:O,15,0),VLOOKUP($F139,Наименование!A:O,15,0)),\"\")","v":""},null,null,""]
[null,null,null,null,null,null,null,null,{"$f":"IFERROR(HYPERLINK(VLOOKUP($F140,Наименование!A:O,15,0),VLOOKUP($F140,Наименование!A:O,15,0)),\"\")","v":""},null,null,""]
[null,null,null,null,null,null,null,null,{"$f":"IFERROR(HYPERLINK(VLOOKUP($F141,Наименование!A:O,15,0),VLOOKUP($F141,Наименование!A:O,15,0)),\"\")","v":""},null,null,""]
[null,null,null,null,null,null,null,null,{"$f":"IFERROR(HYPERLINK(VLOOKUP($F142,Наименование!A:O,15,0),VLOOKUP($F142,Наименование!A:O,15,0)),\"\")","v":""},null,null,""]
[null,null,null,null,null,null,null,null,{"$f":"IFERROR(HYPERLINK(VLOOKUP($F143,Наименование!A:O,15,0),VLOOKUP($F143,Наименование!A:O,15,0)),\"\")","v":""},null,null,""]
[null,null,null,null,null,null,null,null,{"$f":"IFERROR(HYPERLINK(VLOOKUP($F144,Наименование!A:O,15,0),VLOOKUP($F144,Наименование!A:O,15,0)),\"\")","v":""},null,null,{"$f":"LEFT(E144,12)","v":""}]
[null,null,null,null,null,null,null,null,{"$f":"IFERROR(HYPERLINK(VLOOKUP($F145,Наименование!A:O,15,0),VLOOKUP($F145,Наименование!A:O,15,0)),\"\")","v":""},null,null,""]
[null,null,null,null,null,null,null,null,{"$f":"IFERROR(HYPERLINK(VLOOKUP($F146,Наименование!A:O,15,0),VLOOKUP($F146,Наименование!A:O,15,0)),\"\")","v":""},null,null,""]
[null,null,null,null,null,null,null,null,{"$f":"IFERROR(HYPERLINK(VLOOKUP($F147,Наименование!A:O,15,0),VLOOKUP($F147,Наименование!A:O,15,0)),\"\")","v":""},null,null,""]
[null,null,null,null,null,null,null,null,{"$f":"IFERROR(HYPERLINK(VLOOKUP($F148,Наименование!A:O,15,0),VLOOKUP($F148,Наименование!A:O,15,0)),\"\")","v":""},null,null,""]
[null,null,null,null,null,null,null,null,{"$f":"IFERROR(HYPERLINK(VLOOKUP($F149,Наименование!A:O,15,0),VLOOKUP($F149,Наименование!A:O,15,0)),\"\")","v":""},null,null,""]
[null,null,null,null,null,null,null,null,{"$f":"IFERROR(HYPERLINK(VLOOKUP($F150,Наименование!A:O,15,0),VLOOKUP($F150,Наименование!A:O,15,0)),\"\")","v":""},null,null,""]
[null,null,null,null,null,null,null,null,{"$f":"IFERROR(HYPERLINK(VLOOKUP($F151,Наименование!A:O,15,0),VLOOKUP($F151,Наименование!A:O,15,0)),\"\")","v":""},null,null,""]
[null,null,null,null,null,null,null,null,{"$f":"IFERROR(HYPERLINK(VLOOKUP($F152,Наименование!A:O,15,0),VLOOKUP($F152,Наименование!A:O,15,0)),\"\")","v":""},null,null,""]
[null,null,null,null,null,null,null,null,{"$f":"IFERROR(HYPERLINK(VLOOKUP($F153,Наименование!A:O,15,0),VLOOKUP($F153,Наименование!A:O,15,0)),\"\")","v":""},null,null,""]
[null,null,null,null,null,null,null,null,{"$f":"IFERROR(HYPERLINK(VLOOKUP($F154,Наименование!A:O,15,0),VLOOKUP($F154,Наименование!A:O,15,0)),\"\")","v":""},null,null,""]
[null,null,null,null,null,null,null,null,{"$f":"IFERROR(HYPERLINK(VLOOKUP($F155,Наименование!A:O,15,0),VLOOKUP($F155,Наименование!A:O,15,0)),\"\")","v":""},null,null,""]
[null,null,null,null,null,null,null,null,{"$f":"IFERROR(HYPERLINK(VLOOKUP($F156,Наименование!A:O,15,0),VLOOKUP($F156,Наименование!A:O,15,0)),\"\")","v":""},null,null,""]
[null,null,null,null,null,null,null,null,{"$f":"IFERROR(HYPERLINK(VLOOKUP($F157,Наименование!A:O,15,0),VLOOKUP($F157,Наименование!A:O,15,0)),\"\")","v":""},null,null,""]
[null,null,null,null,null,null,null,null,{"$f":"IFERROR(HYPERLINK(VLOOKUP($F158,Наименование!A:O,15,0),VLOOKUP($F158,Наименование!A:O,15,0)),\"\")","v":""},null,null,""]
[null,null,null,null,null,null,null,null,{"$f":"IFERROR(HYPERLINK(VLOOKUP($F159,Наименование!A:O,15,0),VLOOKUP($F159,Наименование!A:O,15,0)),\"\")","v":""},null,null,""]
[null,null,null,null,null,null,null,null,{"$f":"IFERROR(HYPERLINK(VLOOKUP($F160,Наименование!A:O,15,0),VLOOKUP($F160,Наименование!A:O,15,0)),\"\")","v":""},null,null,""]
[null,null,null,null,null,null,null,null,{"$f":"IFERROR(HYPERLINK(VLOOKUP($F161,Наименование!A:O,15,0),VLOOKUP($F161,Наименование!A:O,15,0)),\"\")","v":""},null,null,""]
[null,null,null,null,null,null,null,null,{"$f":"IFERROR(HYPERLINK(VLOOKUP($F162,Наименование!A:O,15,0),VLOOKUP($F162,Наименование!A:O,15,0)),\"\")","v":""},null,null,""]
[null,null,null,null,null,null,null,null,{"$f":"IFERROR(HYPERLINK(VLOOKUP($F163,Наименование!A:O,15,0),VLOOKUP($F163,Наименование!A:O,15,0)),\"\")","v":""},null,null,""]
[null,null,null,null,null,null,null,null,{"$f":"IFERROR(HYPERLINK(VLOOKUP($F164,Наименование!A:O,15,0),VLOOKUP($F164,Наименование!A:O,15,0)),\"\")","v":""},null,null,""]
[null,null,null,null,null,null,null,null,{"$f":"IFERROR(HYPERLINK(VLOOKUP($F165,Наименование!A:O,15,0),VLOOKUP($F165,Наименование!A:O,15,0)),\"\")","v":""},null,null,""]
[null,null,null,null,null,null,null,null,{"$f":"IFERROR(HYPERLINK(VLOOKUP($F166,Наименование!A:O,15,0),VLOOKUP($F166,Наименование!A:O,15,0)),\"\")","v":""},null,null,""]
[null,null,null,null,null,null,null,null,{"$f":"IFERROR(HYPERLINK(VLOOKUP($F167,Наименование!A:O,15,0),VLOOKUP($F167,Наименование!A:O,15,0)),\"\")","v":""},null,null,""]
[null,null,null,null,null,null,null,null,{"$f":"IFERROR(HYPERLINK(VLOOKUP($F168,Наименование!A:O,15,0),VLOOKUP($F168,Наименование!A:O,15,0)),\"\")","v":""},null,null,""]
[null,null,null,null,null,null,null,null,{"$f":"IFERROR(HYPERLINK(VLOOKUP($F169,Наименование!A:O,15,0),VLOOKUP($F169,Наименование!A:O,15,0)),\"\")","v":""},null,null,""]
[null,null,null,null,null,null,null,null,{"$f":"IFERROR(HYPERLINK(VLOOKUP($F170,Наименование!A:O,15,0),VLOOKUP($F170,Наименование!A:O,15,0)),\"\")","v":""},null,null,""]
[null,null,null,null,null,null,null,null,{"$f":"IFERROR(HYPERLINK(VLOOKUP($F171,Наименование!A:O,15,0),VLOOKUP($F171,Наименование!A:O,15,0)),\"\")","v":""},null,null,""]
[null,null,null,null,null,null,null,null,{"$f":"IFERROR(HYPERLINK(VLOOKUP($F172,Наименование!A:O,15,0),VLOOKUP($F172,Наименование!A:O,15,0)),\"\")","v":""},null,null,""]
[null,null,null,null,null,null,null,null,{"$f":"IFERROR(HYPERLINK(VLOOKUP($F173,Наименование!A:O,15,0),VLOOKUP($F173,Наименование!A:O,15,0)),\"\")","v":""},null,null,""]
[null,null,null,null,null,null,null,null,{"$f":"IFERROR(HYPERLINK(VLOOKUP($F174,Наименование!A:O,15,0),VLOOKUP($F174,Наименование!A:O,15,0)),\"\")","v":""},null,null,""]
[null,null,null,null,null,null,null,null,{"$f":"IFERROR(HYPERLINK(VLOOKUP($F175,Наименование!A:O,15,0),VLOOKUP($F175,Наименование!A:O,15,0)),\"\")","v":""},null,null,""]
[null,null,null,null,null,null,null,null,{"$f":"IFERROR(HYPERLINK(VLOOKUP($F176,Наименование!A:O,15,0),VLOOKUP($F176,Наименование!A:O,15,0)),\"\")","v":""},null,null,""]
[null,null,null,null,null,null,null,null,{"$f":"IFERROR(HYPERLINK(VLOOKUP($F177,Наименование!A:O,15,0),VLOOKUP($F177,Наименование!A:O,15,0)),\"\")","v":""},null,null,""]
[null,null,null,null,null,null,null,null,{"$f":"IFERROR(HYPERLINK(VLOOKUP($F178,Наименование!A:O,15,0),VLOOKUP($F178,Наименование!A:O,15,0)),\"\")","v":""},null,null,""]
[null,null,null,null,null,null,null,null,{"$f":"IFERROR(HYPERLINK(VLOOKUP($F179,Наименование!A:O,15,0),VLOOKUP($F179,Наименование!A:O,15,0)),\"\")","v":""},null,null,""]
[null,null,null,null,null,null,null,null,{"$f":"IFERROR(HYPERLINK(VLOOKUP($F180,Наименование!A:O,15,0),VLOOKUP($F180,Наименование!A:O,15,0)),\"\")","v":""},null,null,""]
[null,null,null,null,null,null,null,null,{"$f":"IFERROR(HYPERLINK(VLOOKUP($F181,Наименование!A:O,15,0),VLOOKUP($F181,Наименование!A:O,15,0)),\"\")","v":""},null,null,""]
[null,null,null,null,null,null,null,null,{"$f":"IFERROR(HYPERLINK(VLOOKUP($F182,Наименование!A:O,15,0),VLOOKUP($F182,Наименование!A:O,15,0)),\"\")","v":""},null,null,""]
[null,null,null,null,null,null,null,null,{"$f":"IFERROR(HYPERLINK(VLOOKUP($F183,Наименование!A:O,15,0),VLOOKUP($F183,Наименование!A:O,15,0)),\"\")","v":""},null,null,""]
[null,null,null,null,null,null,null,null,{"$f":"IFERROR(HYPERLINK(VLOOKUP($F184,Наименование!A:O,15,0),VLOOKUP($F184,Наименование!A:O,15,0)),\"\")","v":""},null,null,""]
[null,null,null,null,null,null,null,null,{"$f":"IFERROR(HYPERLINK(VLOOKUP($F185,Наименование!A:O,15,0),VLOOKUP($F185,Наименование!A:O,15,0)),\"\")","v":""},null,null,""]
[null,null,null,null,null,null,null,null,{"$f":"IFERROR(HYPERLINK(VLOOKUP($F186,Наименование!A:O,15,0),VLOOKUP($F186,Наименование!A:O,15,0)),\"\")","v":""},null,null,""]
[null,null,null,null,null,null,null,null,{"$f":"IFERROR(HYPERLINK(VLOOKUP($F187,Наименование!A:O,15,0),VLOOKUP($F187,Наименование!A:O,15,0)),\"\")","v":""},null,null,""]
[null,null,null,null,null,null,null,null,{"$f":"IFERROR(HYPERLINK(VLOOKUP($F188,Наименование!A:O,15,0),VLOOKUP($F188,Наименование!A:O,15,0)),\"\")","v":""},null,null,""]
[null,null,null,null,null,null,null,null,{"$f":"IFERROR(HYPERLINK(VLOOKUP($F189,Наименование!A:O,15,0),VLOOKUP($F189,Наименование!A:O,15,0)),\"\")","v":""},null,null,""]
[null,null,null,null,null,null,null,null,{"$f":"IFERROR(HYPERLINK(VLOOKUP($F190,Наименование!A:O,15,0),VLOOKUP($F190,Наименование!A:O,15,0)),\"\")","v":""},null,null,""]
[null,null,null,null,null,null,null,null,{"$f":"IFERROR(HYPERLINK(VLOOKUP($F191,Наименование!A:O,15,0),VLOOKUP($F191,Наименование!A:O,15,0)),\"\")","v":""},null,null,""]
[null,null,null,null,null,null,null,null,{"$f":"IFERROR(HYPERLINK(VLOOKUP($F192,Наименование!A:O,15,0),VLOOKUP($F192,Наименование!A:O,15,0)),\"\")","v":""},null,null,""]
[null,null,null,null,null,null,null,null,{"$f":"IFERROR(HYPERLINK(VLOOKUP($F193,Наименование!A:O,15,0),VLOOKUP($F193,Наименование!A:O,15,0)),\"\")","v":""},null,null,""]
[null,null,null,null,null,null,null,null,{"$f":"IFERROR(HYPERLINK(VLOOKUP($F194,Наименование!A:O,15,0),VLOOKUP($F194,Наименование!A:O,15,0)),\"\")","v":""},null,null,""]
[null,null,null,null,null,null,null,null,{"$f":"IFERROR(HYPERLINK(VLOOKUP($F195,Наименование!A:O,15,0),VLOOKUP($F195,Наименование!A:O,15,0)),\"\")","v":""},null,null,""]
[null,null,null,null,null,null,null,null,{"$f":"IFERROR(HYPERLINK(VLOOKUP($F196,Наименование!A:O,15,0),VLOOKUP($F196,Наименование!A:O,15,0)),\"\")","v":""},null,null,""]
[null,null,null,null,null,null,null,null,{"$f":"IFERROR(HYPERLINK(VLOOKUP($F197,Наименование!A:O,15,0),VLOOKUP($F197,Наименование!A:O,15,0)),\"\")","v":""},null,null,""]
[null,null,null,null,null,null,null,null,{"$f":"IFERROR(HYPERLINK(VLOOKUP($F198,Наименование!A:O,15,0),VLOOKUP($F198,Наименование!A:O,15,0)),\"\")","v":""},null,null,""]
[null,null,null,null,null,null,null,null,{"$f":"IFERROR(HYPERLINK(VLOOKUP($F199,Наименование!A:O,15,0),VLOOKUP($F199,Наименование!A:O,15,0)),\"\")","v":""},null,null,""]
[null,null,null,null,null,null,null,null,{"$f":"IFERROR(HYPERLINK(VLOOKUP($F200,Наименование!A:O,15,0),VLOOKUP($F200,Наименование!A:O,15,0)),\"\")","v":""},null,null,""]
[null,null,null,null,null,null,null,null,{"$f":"IFERROR(HYPERLINK(VLOOKUP($F201,Наименование!A:O,15,0),VLOOKUP($F201,Наименование!A:O,15,0)),\"\")","v":""},null,null,""]
[null,null,null,null,null,null,null,null,{"$f":"IFERROR(HYPERLINK(VLOOKUP($F202,Наименование!A:O,15,0),VLOOKUP($F202,Наименование!A:O,15,0)),\"\")","v":""},null,null,""]
[null,null,null,null,null,null,null,null,{"$f":"IFERROR(HYPERLINK(VLOOKUP($F203,Наименование!A:O,15,0),VLOOKUP($F203,Наименование!A:O,15,0)),\"\")","v":""},null,null,""]
[null,null,null,null,null,null,null,null,{"$f":"IFERROR(HYPERLINK(VLOOKUP($F204,Наименование!A:O,15,0),VLOOKUP($F204,Наименование!A:O,15,0)),\"\")","v":""},null,null,""]
[null,null,null,null,null,null,null,null,{"$f":"IFERROR(HYPERLINK(VLOOKUP($F205,Наименование!A:O,15,0),VLOOKUP($F205,Наименование!A:O,15,0)),\"\")","v":""},null,null,""]
[null,null,null,null,null,null,null,null,{"$f":"IFERROR(HYPERLINK(VLOOKUP($F206,Наименование!A:O,15,0),VLOOKUP($F206,Наименование!A:O,15,0)),\"\")","v":""},null,null,""]
[null,null,null,null,null,null,null,null,{"$f":"IFERROR(HYPERLINK(VLOOKUP($F207,Наименование!A:O,15,0),VLOOKUP($F207,Наименование!A:O,15,0)),\"\")","v":""},null,null,""]
[null,null,null,null,null,null,null,null,{"$f":"IFERROR(HYPERLINK(VLOOKUP($F208,Наименование!A:O,15,0),VLOOKUP($F208,Наименование!A:O,15,0)),\"\")","v":""},null,null,{"$f":"LEFT(E208,12)","v":""}]
[null,null,null,null,null,null,null,null,{"$f":"IFERROR(HYPERLINK(VLOOKUP($F209,Наименование!A:O,15,0),VLOOKUP($F209,Наименование!A:O,15,0)),\"\")","v":""},null,null,""]
[null,null,null,null,null,null,null,null,{"$f":"IFERROR(HYPERLINK(VLOOKUP($F210,Наименование!A:O,15,0),VLOOKUP($F210,Наименование!A:O,15,0)),\"\")","v":""},null,null,""]
[null,null,null,null,null,null,null,null,{"$f":"IFERROR(HYPERLINK(VLOOKUP($F211,Наименование!A:O,15,0),VLOOKUP($F211,Наименование!A:O,15,0)),\"\")","v":""},null,null,""]
[null,null,null,null,null,null,null,null,{"$f":"IFERROR(HYPERLINK(VLOOKUP($F212,Наименование!A:O,15,0),VLOOKUP($F212,Наименование!A:O,15,0)),\"\")","v":""},null,null,""]
[null,null,null,null,null,null,null,null,{"$f":"IFERROR(HYPERLINK(VLOOKUP($F213,Наименование!A:O,15,0),VLOOKUP($F213,Наименование!A:O,15,0)),\"\")","v":""},null,null,""]
[null,null,null,null,null,null,null,null,{"$f":"IFERROR(HYPERLINK(VLOOKUP($F214,Наименование!A:O,15,0),VLOOKUP($F214,Наименование!A:O,15,0)),\"\")","v":""},null,null,""]
[null,null,null,null,null,null,null,null,{"$f":"IFERROR(HYPERLINK(VLOOKUP($F215,Наименование!A:O,15,0),VLOOKUP($F215,Наименование!A:O,15,0)),\"\")","v":""},null,null,""]
[null,null,null,null,null,null,null,null,{"$f":"IFERROR(HYPERLINK(VLOOKUP($F216,Наименование!A:O,15,0),VLOOKUP($F216,Наименование!A:O,15,0)),\"\")","v":""},null,null,""]
[null,null,null,null,null,null,null,null,{"$f":"IFERROR(HYPERLINK(VLOOKUP($F217,Наименование!A:O,15,0),VLOOKUP($F217,Наименование!A:O,15,0)),\"\")","v":""},null,null,""]
[null,null,null,null,null,null,null,null,{"$f":"IFERROR(HYPERLINK(VLOOKUP($F218,Наименование!A:O,15,0),VLOOKUP($F218,Наименование!A:O,15,0)),\"\")","v":""},null,null,""]
[null,null,null,null,null,null,null,null,{"$f":"IFERROR(HYPERLINK(VLOOKUP($F219,Наименование!A:O,15,0),VLOOKUP($F219,Наименование!A:O,15,0)),\"\")","v":""},null,null,""]
[null,null,null,null,null,null,null,null,{"$f":"IFERROR(HYPERLINK(VLOOKUP($F220,Наименование!A:O,15,0),VLOOKUP($F220,Наименование!A:O,15,0)),\"\")","v":""},null,null,""]
[null,null,null,null,null,null,null,null,{"$f":"IFERROR(HYPERLINK(VLOOKUP($F221,Наименование!A:O,15,0),VLOOKUP($F221,Наименование!A:O,15,0)),\"\")","v":""},null,null,""]
[null,null,null,null,null,null,null,null,{"$f":"IFERROR(HYPERLINK(VLOOKUP($F222,Наименование!A:O,15,0),VLOOKUP($F222,Наименование!A:O,15,0)),\"\")","v":""},null,null,""]
[null,null,null,null,null,null,null,null,{"$f":"IFERROR(HYPERLINK(VLOOKUP($F223,Наименование!A:O,15,0),VLOOKUP($F223,Наименование!A:O,15,0)),\"\")","v":""},null,null,""]
[null,null,null,null,null,null,null,null,{"$f":"IFERROR(HYPERLINK(VLOOKUP($F224,Наименование!A:O,15,0),VLOOKUP($F224,Наименование!A:O,15,0)),\"\")","v":""},null,null,""]
[null,null,null,null,null,null,null,null,{"$f":"IFERROR(HYPERLINK(VLOOKUP($F225,Наименование!A:O,15,0),VLOOKUP($F225,Наименование!A:O,15,0)),\"\")","v":""},null,null,""]
[null,null,null,null,null,null,null,null,{"$f":"IFERROR(HYPERLINK(VLOOKUP($F226,Наименование!A:O,15,0),VLOOKUP($F226,Наименование!A:O,15,0)),\"\")","v":""},null,null,""]
[null,null,null,null,null,null,null,null,{"$f":"IFERROR(HYPERLINK(VLOOKUP($F227,Наименование!A:O,15,0),VLOOKUP($F227,Наименование!A:O,15,0)),\"\")","v":""},null,null,""]
[null,null,null,null,null,null,null,null,{"$f":"IFERROR(HYPERLINK(VLOOKUP($F228,Наименование!A:O,15,0),VLOOKUP($F228,Наименование!A:O,15,0)),\"\")","v":""},null,null,""]
[null,null,null,null,null,null,null,null,{"$f":"IFERROR(HYPERLINK(VLOOKUP($F229,Наименование!A:O,15,0),VLOOKUP($F229,Наименование!A:O,15,0)),\"\")","v":""},null,null,""]
[null,null,null,null,null,null,null,null,{"$f":"IFERROR(HYPERLINK(VLOOKUP($F230,Наименование!A:O,15,0),VLOOKUP($F230,Наименование!A:O,15,0)),\"\")","v":""},null,null,""]
[null,null,null,null,null,null,null,null,{"$f":"IFERROR(HYPERLINK(VLOOKUP($F231,Наименование!A:O,15,0),VLOOKUP($F231,Наименование!A:O,15,0)),\"\")","v":""},null,null,""]
[null,null,null,null,null,null,null,null,{"$f":"IFERROR(HYPERLINK(VLOOKUP($F232,Наименование!A:O,15,0),VLOOKUP($F232,Наименование!A:O,15,0)),\"\")","v":""},null,null,""]
[null,null,null,null,null,null,null,null,{"$f":"IFERROR(HYPERLINK(VLOOKUP($F233,Наименование!A:O,15,0),VLOOKUP($F233,Наименование!A:O,15,0)),\"\")","v":""},null,null,""]
[null,null,null,null,null,null,null,null,{"$f":"IFERROR(HYPERLINK(VLOOKUP($F234,Наименование!A:O,15,0),VLOOKUP($F234,Наименование!A:O,15,0)),\"\")","v":""},null,null,""]
[null,null,null,null,null,null,null,null,{"$f":"IFERROR(HYPERLINK(VLOOKUP($F235,Наименование!A:O,15,0),VLOOKUP($F235,Наименование!A:O,15,0)),\"\")","v":""},null,null,""]
[null,null,null,null,null,null,null,null,{"$f":"IFERROR(HYPERLINK(VLOOKUP($F236,Наименование!A:O,15,0),VLOOKUP($F236,Наименование!A:O,15,0)),\"\")","v":""},null,null,""]
[null,null,null,null,null,null,null,null,{"$f":"IFERROR(HYPERLINK(VLOOKUP($F237,Наименование!A:O,15,0),VLOOKUP($F237,Наименование!A:O,15,0)),\"\")","v":""},null,null,""]
[null,null,null,null,null,null,null,null,{"$f":"IFERROR(HYPERLINK(VLOOKUP($F238,Наименование!A:O,15,0),VLOOKUP($F238,Наименование!A:O,15,0)),\"\")","v":""},null,null,""]
[null,null,null,null,null,null,null,null,{"$f":"IFERROR(HYPERLINK(VLOOKUP($F239,Наименование!A:O,15,0),VLOOKUP($F239,Наименование!A:O,15,0)),\"\")","v":""},null,null,""]
[null,null,null,null,null,null,null,null,{"$f":"IFERROR(HYPERLINK(VLOOKUP($F240,Наименование!A:O,15,0),VLOOKUP($F240,Наименование!A:O,15,0)),\"\")","v":""},null,null,""]
[null,null,null,null,null,null,null,null,{"$f":"IFERROR(HYPERLINK(VLOOKUP($F241,Наименование!A:O,15,0),VLOOKUP($F241,Наименование!A:O,15,0)),\"\")","v":""},null,null,""]
[null,null,null,null,null,null,null,null,{"$f":"IFERROR(HYPERLINK(VLOOKUP($F242,Наименование!A:O,15,0),VLOOKUP($F242,Наименование!A:O,15,0)),\"\")","v":""},null,null,""]
[null,null,null,null,null,null,null,null,{"$f":"IFERROR(HYPERLINK(VLOOKUP($F243,Наименование!A:O,15,0),VLOOKUP($F243,Наименование!A:O,15,0)),\"\")","v":""},null,null,""]
[null,null,null,null,null,null,null,null,{"$f":"IFERROR(HYPERLINK(VLOOKUP($F244,Наименование!A:O,15,0),VLOOKUP($F244,Наименование!A:O,15,0)),\"\")","v":""},null,null,""]
[null,null,null,null,null,null,null,null,{"$f":"IFERROR(HYPERLINK(VLOOKUP($F245,Наименование!A:O,15,0),VLOOKUP($F245,Наименование!A:O,15,0)),\"\")","v":""},null,null,""]
[null,null,null,null,null,null,null,null,{"$f":"IFERROR(HYPERLINK(VLOOKUP($F246,Наименование!A:O,15,0),VLOOKUP($F246,Наименование!A:O,15,0)),\"\")","v":""},null,null,""]
[null,null,null,null,null,null,null,null,{"$f":"IFERROR(HYPERLINK(VLOOKUP($F247,Наименование!A:O,15,0),VLOOKUP($F247,Наименование!A:O,15,0)),\"\")","v":""},null,null,""]
[null,null,null,null,null,null,null,null,{"$f":"IFERROR(HYPERLINK(VLOOKUP($F248,Наименование!A:O,15,0),VLOOKUP($F248,Наименование!A:O,15,0)),\"\")","v":""},null,null,""]
[null,null,null,null,null,null,null,null,{"$f":"IFERROR(HYPERLINK(VLOOKUP($F249,Наименование!A:O,15,0),VLOOKUP($F249,Наименование!A:O,15,0)),\"\")","v":""},null,null,""]
[null,null,null,null,null,null,null,null,{"$f":"IFERROR(HYPERLINK(VLOOKUP($F250,Наименование!A:O,15,0),VLOOKUP($F250,Наименование!A:O,15,0)),\"\")","v":""},null,null,""]
[null,null,null,null,null,null,null,null,{"$f":"IFERROR(HYPERLINK(VLOOKUP($F251,Наименование!A:O,15,0),VLOOKUP($F251,Наименование!A:O,15,0)),\"\")","v":""},null,null,""]
[null,null,null,null,null,null,null,null,{"$f":"IFERROR(HYPERLINK(VLOOKUP($F252,Наименование!A:O,15,0),VLOOKUP($F252,Наименование!A:O,15,0)),\"\")","v":""},null,null,""]
[null,null,null,null,null,null,null,null,{"$f":"IFERROR(HYPERLINK(VLOOKUP($F253,Наименование!A:O,15,0),VLOOKUP($F253,Наименование!A:O,15,0)),\"\")","v":""},null,null,""]
[null,null,null,null,null,null,null,null,{"$f":"IFERROR(HYPERLINK(VLOOKUP($F254,Наименование!A:O,15,0),VLOOKUP($F254,Наименование!A:O,15,0)),\"\")","v":""},null,null,""]
[null,null,null,null,null,null,null,null,{"$f":"IFERROR(HYPERLINK(VLOOKUP($F255,Наименование!A:O,15,0),VLOOKUP($F255,Наименование!A:O,15,0)),\"\")","v":""},null,null,""]
[null,null,null,null,null,null,null,null,{"$f":"IFERROR(HYPERLINK(VLOOKUP($F256,Наименование!A:O,15,0),VLOOKUP($F256,Наименование!A:O,15,0)),\"\")","v":""},null,null,""]
[null,null,null,null,null,null,null,null,{"$f":"IFERROR(HYPERLINK(VLOOKUP($F257,Наименование!A:O,15,0),VLOOKUP($F257,Наименование!A:O,15,0)),\"\")","v":""},null,null,""]
[null,null,null,null,null,null,null,null,{"$f":"IFERROR(HYPERLINK(VLOOKUP($F258,Наименование!A:O,15,0),VLOOKUP($F258,Наименование!A:O,15,0)),\"\")","v":""},null,null,""]
[null,null,null,null,null,null,null,null,{"$f":"IFERROR(HYPERLINK(VLOOKUP($F259,Наименование!A:O,15,0),VLOOKUP($F259,Наименование!A:O,15,0)),\"\")","v":""},null,null,""]
[null,null,null,null,null,null,null,null,{"$f":"IFERROR(HYPERLINK(VLOOKUP($F260,Наименование!A:O,15,0),VLOOKUP($F260,Наименование!A:O,15,0)),\"\")","v":""},null,null,""]
[null,null,null,null,null,null,null,null,{"$f":"IFERROR(HYPERLINK(VLOOKUP($F261,Наименование!A:O,15,0),VLOOKUP($F261,Наименование!A:O,15,0)),\"\")","v":""},null,null,""]
[null,null,null,null,null,null,null,null,{"$f":"IFERROR(HYPERLINK(VLOOKUP($F262,Наименование!A:O,15,0),VLOOKUP($F262,Наименование!A:O,15,0)),\"\")","v":""},null,null,""]
[null,null,null,null,null,null,null,null,{"$f":"IFERROR(HYPERLINK(VLOOKUP($F263,Наименование!A:O,15,0),VLOOKUP($F263,Наименование!A:O,15,0)),\"\")","v":""},null,null,""]
[null,null,null,null,null,null,null,null,{"$f":"IFERROR(HYPERLINK(VLOOKUP($F264,Наименование!A:O,15,0),VLOOKUP($F264,Наименование!A:O,15,0)),\"\")","v":""},null,null,""]
[null,null,null,null,null,null,null,null,{"$f":"IFERROR(HYPERLINK(VLOOKUP($F265,Наименование!A:O,15,0),VLOOKUP($F265,Наименование!A:O,15,0)),\"\")","v":""},null,null,""]
[null,null,null,null,null,null,null,null,{"$f":"IFERROR(HYPERLINK(VLOOKUP($F266,Наименование!A:O,15,0),VLOOKUP($F266,Наименование!A:O,15,0)),\"\")","v":""},null,null,""]
[null,null,null,null,null,null,null,null,{"$f":"IFERROR(HYPERLINK(VLOOKUP($F267,Наименование!A:O,15,0),VLOOKUP($F267,Наименование!A:O,15,0)),\"\")","v":""},null,null,""]
[null,null,null,null,null,null,null,null,{"$f":"IFERROR(HYPERLINK(VLOOKUP($F268,Наименование!A:O,15,0),VLOOKUP($F268,Наименование!A:O,15,0)),\"\")","v":""},null,null,""]
[null,null,null,null,null,null,null,null,{"$f":"IFERROR(HYPERLINK(VLOOKUP($F269,Наименование!A:O,15,0),VLOOKUP($F269,Наименование!A:O,15,0)),\"\")","v":""},null,null,""]
[null,null,null,null,null,null,null,null,{"$f":"IFERROR(HYPERLINK(VLOOKUP($F270,Наименование!A:O,15,0),VLOOKUP($F270,Наименование!A:O,15,0)),\"\")","v":""},null,null,""]
[null,null,null,null,null,null,null,null,{"$f":"IFERROR(HYPERLINK(VLOOKUP($F271,Наименование!A:O,15,0),VLOOKUP($F271,Наименование!A:O,15,0)),\"\")","v":""},null,null,""]
[null,null,null,null,null,null,null,null,{"$f":"IFERROR(HYPERLINK(VLOOKUP($F272,Наименование!A:O,15,0),VLOOKUP($F272,Наименование!A:O,15,0)),\"\")","v":""},null,null,{"$f":"LEFT(E272,12)","v":""}]
[null,null,null,null,null,null,null,null,{"$f":"IFERROR(HYPERLINK(VLOOKUP($F273,Наименование!A:O,15,0),VLOOKUP($F273,Наименование!A:O,15,0)),\"\")","v":""},null,null,""]
[null,null,null,null,null,null,null,null,{"$f":"IFERROR(HYPERLINK(VLOOKUP($F274,Наименование!A:O,15,0),VLOOKUP($F274,Наименование!A:O,15,0)),\"\")","v":""},null,null,""]
[null,null,null,null,null,null,null,null,{"$f":"IFERROR(HYPERLINK(VLOOKUP($F275,Наименование!A:O,15,0),VLOOKUP($F275,Наименование!A:O,15,0)),\"\")","v":""},null,null,""]
[null,null,null,null,null,null,null,null,{"$f":"IFERROR(HYPERLINK(VLOOKUP($F276,Наименование!A:O,15,0),VLOOKUP($F276,Наименование!A:O,15,0)),\"\")","v":""},null,null,""]
[null,null,null,null,null,null,null,null,{"$f":"IFERROR(HYPERLINK(VLOOKUP($F277,Наименование!A:O,15,0),VLOOKUP($F277,Наименование!A:O,15,0)),\"\")","v":""},null,null,""]
[null,null,null,null,null,null,null,null,{"$f":"IFERROR(HYPERLINK(VLOOKUP($F278,Наименование!A:O,15,0),VLOOKUP($F278,Наименование!A:O,15,0)),\"\")","v":""},null,null,""]
[null,null,null,null,null,null,null,null,{"$f":"IFERROR(HYPERLINK(VLOOKUP($F279,Наименование!A:O,15,0),VLOOKUP($F279,Наименование!A:O,15,0)),\"\")","v":""},null,null,""]
[null,null,null,null,null,null,null,null,{"$f":"IFERROR(HYPERLINK(VLOOKUP($F280,Наименование!A:O,15,0),VLOOKUP($F280,Наименование!A:O,15,0)),\"\")","v":""},null,null,""]
[null,null,null,null,null,null,null,null,{"$f":"IFERROR(HYPERLINK(VLOOKUP($F281,Наименование!A:O,15,0),VLOOKUP($F281,Наименование!A:O,15,0)),\"\")","v":""},null,null,""]
[null,null,null,null,null,null,null,null,{"$f":"IFERROR(HYPERLINK(VLOOKUP($F282,Наименование!A:O,15,0),VLOOKUP($F282,Наименование!A:O,15,0)),\"\")","v":""},null,null,""]
[null,null,null,null,null,null,null,null,{"$f":"IFERROR(HYPERLINK(VLOOKUP($F283,Наименование!A:O,15,0),VLOOKUP($F283,Наименование!A:O,15,0)),\"\")","v":""},null,null,""]
[null,null,null,null,null,null,null,null,{"$f":"IFERROR(HYPERLINK(VLOOKUP($F284,Наименование!A:O,15,0),VLOOKUP($F284,Наименование!A:O,15,0)),\"\")","v":""},null,null,""]
[null,null,null,null,null,null,null,null,{"$f":"IFERROR(HYPERLINK(VLOOKUP($F285,Наименование!A:O,15,0),VLOOKUP($F285,Наименование!A:O,15,0)),\"\")","v":""},null,null,""]
[null,null,null,null,null,null,null,null,{"$f":"IFERROR(HYPERLINK(VLOOKUP($F286,Наименование!A:O,15,0),VLOOKUP($F286,Наименование!A:O,15,0)),\"\")","v":""},null,null,""]
[null,null,null,null,null,null,null,null,{"$f":"IFERROR(HYPERLINK(VLOOKUP($F287,Наименование!A:O,15,0),VLOOKUP($F287,Наименование!A:O,15,0)),\"\")","v":""},null,null,""]
[null,null,null,null,null,null,null,null,{"$f":"IFERROR(HYPERLINK(VLOOKUP($F288,Наименование!A:O,15,0),VLOOKUP($F288,Наименование!A:O,15,0)),\"\")","v":""},null,null,""]
[null,null,null,null,null,null,null,null,{"$f":"IFERROR(HYPERLINK(VLOOKUP($F289,Наименование!A:O,15,0),VLOOKUP($F289,Наименование!A:O,15,0)),\"\")","v":""},null,null,""]
[null,null,null,null,null,null,null,null,{"$f":"IFERROR(HYPERLINK(VLOOKUP($F290,Наименование!A:O,15,0),VLOOKUP($F290,Наименование!A:O,15,0)),\"\")","v":""},null,null,""]
[null,null,null,null,null,null,null,null,{"$f":"IFERROR(HYPERLINK(VLOOKUP($F291,Наименование!A:O,15,0),VLOOKUP($F291,Наименование!A:O,15,0)),\"\")","v":""},null,null,""]
[null,null,null,null,null,null,null,null,{"$f":"IFERROR(HYPERLINK(VLOOKUP($F292,Наименование!A:O,15,0),VLOOKUP($F292,Наименование!A:O,15,0)),\"\")","v":""},null,null,""]
[null,null,null,null,null,null,null,null,{"$f":"IFERROR(HYPERLINK(VLOOKUP($F293,Наименование!A:O,15,0),VLOOKUP($F293,Наименование!A:O,15,0)),\"\")","v":""},null,null,""]
[null,null,null,null,null,null,null,null,{"$f":"IFERROR(HYPERLINK(VLOOKUP($F294,Наименование!A:O,15,0),VLOOKUP($F294,Наименование!A:O,15,0)),\"\")","v":""},null,null,""]
[null,null,null,null,null,null,null,null,{"$f":"IFERROR(HYPERLINK(VLOOKUP($F295,Наименование!A:O,15,0),VLOOKUP($F295,Наименование!A:O,15,0)),\"\")","v":""},null,null,""]
[null,null,null,null,null,null,null,null,{"$f":"IFERROR(HYPERLINK(VLOOKUP($F296,Наименование!A:O,15,0),VLOOKUP($F296,Наименование!A:O,15,0)),\"\")","v":""},null,null,""]
[null,null,null,null,null,null,null,null,{"$f":"IFERROR(HYPERLINK(VLOOKUP($F297,Наименование!A:O,15,0),VLOOKUP($F297,Наименование!A:O,15,0)),\"\")","v":""},null,null,""]
[null,null,null,null,null,null,null,null,{"$f":"IFERROR(HYPERLINK(VLOOKUP($F298,Наименование!A:O,15,0),VLOOKUP($F298,Наименование!A:O,15,0)),\"\")","v":""},null,null,""]
[null,null,null,null,null,null,null,null,{"$f":"IFERROR(HYPERLINK(VLOOKUP($F299,Наименование!A:O,15,0),VLOOKUP($F299,Наименование!A:O,15,0)),\"\")","v":""},null,null,""]
[null,null,null,null,null,null,null,null,{"$f":"IFERROR(HYPERLINK(VLOOKUP($F300,Наименование!A:O,15,0),VLOOKUP($F300,Наименование!A:O,15,0)),\"\")","v":""},null,null,""]
[null,null,null,null,null,null,null,null,{"$f":"IFERROR(HYPERLINK(VLOOKUP($F301,Наименование!A:O,15,0),VLOOKUP($F301,Наименование!A:O,15,0)),\"\")","v":""},null,null,""]
[null,null,null,null,null,null,null,null,{"$f":"IFERROR(HYPERLINK(VLOOKUP($F302,Наименование!A:O,15,0),VLOOKUP($F302,Наименование!A:O,15,0)),\"\")","v":""},null,null,""]
[null,null,null,null,null,null,null,null,{"$f":"IFERROR(HYPERLINK(VLOOKUP($F303,Наименование!A:O,15,0),VLOOKUP($F303,Наименование!A:O,15,0)),\"\")","v":""},null,null,""]
[null,null,null,null,null,null,null,null,{"$f":"IFERROR(HYPERLINK(VLOOKUP($F304,Наименование!A:O,15,0),VLOOKUP($F304,Наименование!A:O,15,0)),\"\")","v":""},null,null,""]
[null,null,null,null,null,null,null,null,{"$f":"IFERROR(HYPERLINK(VLOOKUP($F305,Наименование!A:O,15,0),VLOOKUP($F305,Наименование!A:O,15,0)),\"\")","v":""},null,null,""]
[null,null,null,null,null,null,null,null,{"$f":"IFERROR(HYPERLINK(VLOOKUP($F306,Наименование!A:O,15,0),VLOOKUP($F306,Наименование!A:O,15,0)),\"\")","v":""},null,null,""]
[null,null,null,null,null,null,null,null,{"$f":"IFERROR(HYPERLINK(VLOOKUP($F307,Наименование!A:O,15,0),VLOOKUP($F307,Наименование!A:O,15,0)),\"\")","v":""},null,null,""]
[null,null,null,null,null,null,null,null,{"$f":"IFERROR(HYPERLINK(VLOOKUP($F308,Наименование!A:O,15,0),VLOOKUP($F308,Наименование!A:O,15,0)),\"\")","v":""},null,null,""]
[null,null,null,null,null,null,null,null,{"$f":"IFERROR(HYPERLINK(VLOOKUP($F309,Наименование!A:O,15,0),VLOOKUP($F309,Наименование!A:O,15,0)),\"\")","v":""},null,null,""]
[null,null,null,null,null,null,null,null,{"$f":"IFERROR(HYPERLINK(VLOOKUP($F310,Наименование!A:O,15,0),VLOOKUP($F310,Наименование!A:O,15,0)),\"\")","v":""},null,null,""]
[null,null,null,null,null,null,null,null,{"$f":"IFERROR(HYPERLINK(VLOOKUP($F311,Наименование!A:O,15,0),VLOOKUP($F311,Наименование!A:O,15,0)),\"\")","v":""},null,null,""]
[null,null,null,null,null,null,null,null,{"$f":"IFERROR(HYPERLINK(VLOOKUP($F312,Наименование!A:O,15,0),VLOOKUP($F312,Наименование!A:O,15,0)),\"\")","v":""},null,null,""]
[null,null,null,null,null,null,null,null,{"$f":"IFERROR(HYPERLINK(VLOOKUP($F313,Наименование!A:O,15,0),VLOOKUP($F313,Наименование!A:O,15,0)),\"\")","v":""},null,null,""]
[null,null,null,null,null,null,null,null,{"$f":"IFERROR(HYPERLINK(VLOOKUP($F314,Наименование!A:O,15,0),VLOOKUP($F314,Наименование!A:O,15,0)),\"\")","v":""},null,null,""]
[null,null,null,null,null,null,null,null,{"$f":"IFERROR(HYPERLINK(VLOOKUP($F315,Наименование!A:O,15,0),VLOOKUP($F315,Наименование!A:O,15,0)),\"\")","v":""},null,null,""]
[null,null,null,null,null,null,null,null,{"$f":"IFERROR(HYPERLINK(VLOOKUP($F316,Наименование!A:O,15,0),VLOOKUP($F316,Наименование!A:O,15,0)),\"\")","v":""},null,null,""]
[null,null,null,null,null,null,null,null,{"$f":"IFERROR(HYPERLINK(VLOOKUP($F317,Наименование!A:O,15,0),VLOOKUP($F317,Наименование!A:O,15,0)),\"\")","v":""},null,null,""]
[null,null,null,null,null,null,null,null,{"$f":"IFERROR(HYPERLINK(VLOOKUP($F318,Наименование!A:O,15,0),VLOOKUP($F318,Наименование!A:O,15,0)),\"\")","v":""},null,null,""]
[null,null,null,null,null,null,null,null,{"$f":"IFERROR(HYPERLINK(VLOOKUP($F319,Наименование!A:O,15,0),VLOOKUP($F319,Наименование!A:O,15,0)),\"\")","v":""},null,null,""]
[null,null,null,null,null,null,null,null,{"$f":"IFERROR(HYPERLINK(VLOOKUP($F320,Наименование!A:O,15,0),VLOOKUP($F320,Наименование!A:O,15,0)),\"\")","v":""},null,null,""]
[null,null,null,null,null,null,null,null,{"$f":"IFERROR(HYPERLINK(VLOOKUP($F321,Наименование!A:O,15,0),VLOOKUP($F321,Наименование!A:O,15,0)),\"\")","v":""},null,null,""]
[null,null,null,null,null,null,null,null,{"$f":"IFERROR(HYPERLINK(VLOOKUP($F322,Наименование!A:O,15,0),VLOOKUP($F322,Наименование!A:O,15,0)),\"\")","v":""},null,null,""]
[null,null,null,null,null,null,null,null,{"$f":"IFERROR(HYPERLINK(VLOOKUP($F323,Наименование!A:O,15,0),VLOOKUP($F323,Наименование!A:O,15,0)),\"\")","v":""},null,null,""]
[null,null,null,null,null,null,null,null,{"$f":"IFERROR(HYPERLINK(VLOOKUP($F324,Наименование!A:O,15,0),VLOOKUP($F324,Наименование!A:O,15,0)),\"\")","v":""},null,null,""]
[null,null,null,null,null,null,null,null,{"$f":"IFERROR(HYPERLINK(VLOOKUP($F325,Наименование!A:O,15,0),VLOOKUP($F325,Наименование!A:O,15,0)),\"\")","v":""},null,null,""]
[null,null,null,null,null,null,null,null,{"$f":"IFERROR(HYPERLINK(VLOOKUP($F326,Наименование!A:O,15,0),VLOOKUP($F326,Наименование!A:O,15,0)),\"\")","v":""},null,null,""]
[null,null,null,null,null,null,null,null,{"$f":"IFERROR(HYPERLINK(VLOOKUP($F327,Наименование!A:O,15,0),VLOOKUP($F327,Наименование!A:O,15,0)),\"\")","v":""},null,null,""]
[null,null,null,null,null,null,null,null,{"$f":"IFERROR(HYPERLINK(VLOOKUP($F328,Наименование!A:O,15,0),VLOOKUP($F328,Наименование!A:O,15,0)),\"\")","v":""},null,null,""]
[null,null,null,null,null,null,null,null,{"$f":"IFERROR(HYPERLINK(VLOOKUP($F329,Наименование!A:O,15,0),VLOOKUP($F329,Наименование!A:O,15,0)),\"\")","v":""},null,null,""]
[null,null,null,null,null,null,null,null,{"$f":"IFERROR(HYPERLINK(VLOOKUP($F330,Наименование!A:O,15,0),VLOOKUP($F330,Наименование!A:O,15,0)),\"\")","v":""},null,null,""]
[null,null,null,null,null,null,null,null,{"$f":"IFERROR(HYPERLINK(VLOOKUP($F331,Наименование!A:O,15,0),VLOOKUP($F331,Наименование!A:O,15,0)),\"\")","v":""},null,null,""]
[null,null,null,null,null,null,null,null,{"$f":"IFERROR(HYPERLINK(VLOOKUP($F332,Наименование!A:O,15,0),VLOOKUP($F332,Наименование!A:O,15,0)),\"\")","v":""},null,null,""]
[null,null,null,null,null,null,null,null,{"$f":"IFERROR(HYPERLINK(VLOOKUP($F333,Наименование!A:O,15,0),VLOOKUP($F333,Наименование!A:O,15,0)),\"\")","v":""},null,null,""]
[null,null,null,null,null,null,null,null,{"$f":"IFERROR(HYPERLINK(VLOOKUP($F334,Наименование!A:O,15,0),VLOOKUP($F334,Наименование!A:O,15,0)),\"\")","v":""},null,null,""]
[null,null,null,null,null,null,null,null,{"$f":"IFERROR(HYPERLINK(VLOOKUP($F335,Наименование!A:O,15,0),VLOOKUP($F335,Наименование!A:O,15,0)),\"\")","v":""},null,null,""]
[null,null,null,null,null,null,null,null,{"$f":"IFERROR(HYPERLINK(VLOOKUP($F336,Наименование!A:O,15,0),VLOOKUP($F336,Наименование!A:O,15,0)),\"\")","v":""},null,null,{"$f":"LEFT(E336,12)","v":""}]
[null,null,null,null,null,null,null,null,{"$f":"IFERROR(HYPERLINK(VLOOKUP($F337,Наименование!A:O,15,0),VLOOKUP($F337,Наименование!A:O,15,0)),\"\")","v":""},null,null,""]
[null,null,null,null,null,null,null,null,{"$f":"IFERROR(HYPERLINK(VLOOKUP($F338,Наименование!A:O,15,0),VLOOKUP($F338,Наименование!A:O,15,0)),\"\")","v":""},null,null,""]
[null,null,null,null,null,null,null,null,{"$f":"IFERROR(HYPERLINK(VLOOKUP($F339,Наименование!A:O,15,0),VLOOKUP($F339,Наименование!A:O,15,0)),\"\")","v":""},null,null,""]
[null,null,null,null,null,null,null,null,{"$f":"IFERROR(HYPERLINK(VLOOKUP($F340,Наименование!A:O,15,0),VLOOKUP($F340,Наименование!A:O,15,0)),\"\")","v":""},null,null,""]
[null,null,null,null,null,null,null,null,{"$f":"IFERROR(HYPERLINK(VLOOKUP($F341,Наименование!A:O,15,0),VLOOKUP($F341,Наименование!A:O,15,0)),\"\")","v":""},null,null,""]
[null,null,null,null,null,null,null,null,{"$f":"IFERROR(HYPERLINK(VLOOKUP($F342,Наименование!A:O,15,0),VLOOKUP($F342,Наименование!A:O,15,0)),\"\")","v":""},null,null,""]
[null,null,null,null,null,null,null,null,{"$f":"IFERROR(HYPERLINK(VLOOKUP($F343,Наименование!A:O,15,0),VLOOKUP($F343,Наименование!A:O,15,0)),\"\")","v":""},null,null,""]
[null,null,null,null,null,null,null,null,{"$f":"IFERROR(HYPERLINK(VLOOKUP($F344,Наименование!A:O,15,0),VLOOKUP($F344,Наименование!A:O,15,0)),\"\")","v":""},null,null,""]
[null,null,null,null,null,null,null,null,{"$f":"IFERROR(HYPERLINK(VLOOKUP($F345,Наименование!A:O,15,0),VLOOKUP($F345,Наименование!A:O,15,0)),\"\")","v":""},null,null,""]
[null,null,null,null,null,null,null,null,{"$f":"IFERROR(HYPERLINK(VLOOKUP($F346,Наименование!A:O,15,0),VLOOKUP($F346,Наименование!A:O,15,0)),\"\")","v":""},null,null,""]
[null,null,null,null,null,null,null,null,{"$f":"IFERROR(HYPERLINK(VLOOKUP($F347,Наименование!A:O,15,0),VLOOKUP($F347,Наименование!A:O,15,0)),\"\")","v":""},null,null,""]
[null,null,null,null,null,null,null,null,{"$f":"IFERROR(HYPERLINK(VLOOKUP($F348,Наименование!A:O,15,0),VLOOKUP($F348,Наименование!A:O,15,0)),\"\")","v":""},null,null,""]
[null,null,null,null,null,null,null,null,{"$f":"IFERROR(HYPERLINK(VLOOKUP($F349,Наименование!A:O,15,0),VLOOKUP($F349,Наименование!A:O,15,0)),\"\")","v":""},null,null,""]
[null,null,null,null,null,null,null,null,{"$f":"IFERROR(HYPERLINK(VLOOKUP($F350,Наименование!A:O,15,0),VLOOKUP($F350,Наименование!A:O,15,0)),\"\")","v":""},null,null,""]
[null,null,null,null,null,null,null,null,{"$f":"IFERROR(HYPERLINK(VLOOKUP($F351,Наименование!A:O,15,0),VLOOKUP($F351,Наименование!A:O,15,0)),\"\")","v":""},null,null,""]
[null,null,null,null,null,null,null,null,{"$f":"IFERROR(HYPERLINK(VLOOKUP($F352,Наименование!A:O,15,0),VLOOKUP($F352,Наименование!A:O,15,0)),\"\")","v":""},null,null,""]
[null,null,null,null,null,null,null,null,{"$f":"IFERROR(HYPERLINK(VLOOKUP($F353,Наименование!A:O,15,0),VLOOKUP($F353,Наименование!A:O,15,0)),\"\")","v":""},null,null,""]
[null,null,null,null,null,null,null,null,{"$f":"IFERROR(HYPERLINK(VLOOKUP($F354,Наименование!A:O,15,0),VLOOKUP($F354,Наименование!A:O,15,0)),\"\")","v":""},null,null,""]
[null,null,null,null,null,null,null,null,{"$f":"IFERROR(HYPERLINK(VLOOKUP($F355,Наименование!A:O,15,0),VLOOKUP($F355,Наименование!A:O,15,0)),\"\")","v":""},null,null,""]
[null,null,null,null,null,null,null,null,{"$f":"IFERROR(HYPERLINK(VLOOKUP($F356,Наименование!A:O,15,0),VLOOKUP($F356,Наименование!A:O,15,0)),\"\")","v":""},null,null,""]
[null,null,null,null,null,null,null,null,{"$f":"IFERROR(HYPERLINK(VLOOKUP($F357,Наименование!A:O,15,0),VLOOKUP($F357,Наименование!A:O,15,0)),\"\")","v":""},null,null,""]
[null,null,null,null,null,null,null,null,{"$f":"IFERROR(HYPERLINK(VLOOKUP($F358,Наименование!A:O,15,0),VLOOKUP($F358,Наименование!A:O,15,0)),\"\")","v":""},null,null,""]
[null,null,null,null,null,null,null,null,{"$f":"IFERROR(HYPERLINK(VLOOKUP($F359,Наименование!A:O,15,0),VLOOKUP($F359,Наименование!A:O,15,0)),\"\")","v":""},null,null,""]
[null,null,null,null,null,null,null,null,{"$f":"IFERROR(HYPERLINK(VLOOKUP($F360,Наименование!A:O,15,0),VLOOKUP($F360,Наименование!A:O,15,0)),\"\")","v":""},null,null,""]
[null,null,null,null,null,null,null,null,{"$f":"IFERROR(HYPERLINK(VLOOKUP($F361,Наименование!A:O,15,0),VLOOKUP($F361,Наименование!A:O,15,0)),\"\")","v":""},null,null,""]
[null,null,null,null,null,null,null,null,{"$f":"IFERROR(HYPERLINK(VLOOKUP($F362,Наименование!A:O,15,0),VLOOKUP($F362,Наименование!A:O,15,0)),\"\")","v":""},null,null,""]
[null,null,null,null,null,null,null,null,{"$f":"IFERROR(HYPERLINK(VLOOKUP($F363,Наименование!A:O,15,0),VLOOKUP($F363,Наименование!A:O,15,0)),\"\")","v":""},null,null,""]
[null,null,null,null,null,null,null,null,{"$f":"IFERROR(HYPERLINK(VLOOKUP($F364,Наименование!A:O,15,0),VLOOKUP($F364,Наименование!A:O,15,0)),\"\")","v":""},null,null,""]
[null,null,null,null,null,null,null,null,{"$f":"IFERROR(HYPERLINK(VLOOKUP($F365,Наименование!A:O,15,0),VLOOKUP($F365,Наименование!A:O,15,0)),\"\")","v":""},null,null,""]
[null,null,null,null,null,null,null,null,{"$f":"IFERROR(HYPERLINK(VLOOKUP($F366,Наименование!A:O,15,0),VLOOKUP($F366,Наименование!A:O,15,0)),\"\")","v":""},null,null,""]
[null,null,null,null,null,null,null,null,{"$f":"IFERROR(HYPERLINK(VLOOKUP($F367,Наименование!A:O,15,0),VLOOKUP($F367,Наименование!A:O,15,0)),\"\")","v":""},null,null,""]
[null,null,null,null,null,null,null,null,{"$f":"IFERROR(HYPERLINK(VLOOKUP($F368,Наименование!A:O,15,0),VLOOKUP($F368,Наименование!A:O,15,0)),\"\")","v":""},null,null,""]
[null,null,null,null,null,null,null,null,{"$f":"IFERROR(HYPERLINK(VLOOKUP($F369,Наименование!A:O,15,0),VLOOKUP($F369,Наименование!A:O,15,0)),\"\")","v":""},null,null,""]
[null,null,null,null,null,null,null,null,{"$f":"IFERROR(HYPERLINK(VLOOKUP($F370,Наименование!A:O,15,0),VLOOKUP($F370,Наименование!A:O,15,0)),\"\")","v":""},null,null,""]
[null,null,null,null,null,null,null,null,{"$f":"IFERROR(HYPERLINK(VLOOKUP($F371,Наименование!A:O,15,0),VLOOKUP($F371,Наименование!A:O,15,0)),\"\")","v":""},null,null,""]
[null,null,null,null,null,null,null,null,{"$f":"IFERROR(HYPERLINK(VLOOKUP($F372,Наименование!A:O,15,0),VLOOKUP($F372,Наименование!A:O,15,0)),\"\")","v":""},null,null,""]
[null,null,null,null,null,null,null,null,{"$f":"IFERROR(HYPERLINK(VLOOKUP($F373,Наименование!A:O,15,0),VLOOKUP($F373,Наименование!A:O,15,0)),\"\")","v":""},null,null,""]
[null,null,null,null,null,null,null,null,{"$f":"IFERROR(HYPERLINK(VLOOKUP($F374,Наименование!A:O,15,0),VLOOKUP($F374,Наименование!A:O,15,0)),\"\")","v":""},null,null,""]
[null,null,null,null,null,null,null,null,{"$f":"IFERROR(HYPERLINK(VLOOKUP($F375,Наименование!A:O,15,0),VLOOKUP($F375,Наименование!A:O,15,0)),\"\")","v":""},null,null,""]
[null,null,null,null,null,null,null,null,{"$f":"IFERROR(HYPERLINK(VLOOKUP($F376,Наименование!A:O,15,0),VLOOKUP($F376,Наименование!A:O,15,0)),\"\")","v":""},null,null,""]
[null,null,null,null,null,null,null,null,{"$f":"IFERROR(HYPERLINK(VLOOKUP($F377,Наименование!A:O,15,0),VLOOKUP($F377,Наименование!A:O,15,0)),\"\")","v":""},null,null,""]
[null,null,null,null,null,null,null,null,{"$f":"IFERROR(HYPERLINK(VLOOKUP($F378,Наименование!A:O,15,0),VLOOKUP($F378,Наименование!A:O,15,0)),\"\")","v":""},null,null,""]
[null,null,null,null,null,null,null,null,{"$f":"IFERROR(HYPERLINK(VLOOKUP($F379,Наименование!A:O,15,0),VLOOKUP($F379,Наименование!A:O,15,0)),\"\")","v":""},null,null,""]
[null,null,null,null,null,null,null,null,{"$f":"IFERROR(HYPERLINK(VLOOKUP($F380,Наименование!A:O,15,0),VLOOKUP($F380,Наименование!A:O,15,0)),\"\")","v":""},null,null,""]
[null,null,null,null,null,null,null,null,{"$f":"IFERROR(HYPERLINK(VLOOKUP($F381,Наименование!A:O,15,0),VLOOKUP($F381,Наименование!A:O,15,0)),\"\")","v":""},null,null,""]
[null,null,null,null,null,null,null,null,{"$f":"IFERROR(HYPERLINK(VLOOKUP($F382,Наименование!A:O,15,0),VLOOKUP($F382,Наименование!A:O,15,0)),\"\")","v":""},null,null,""]
[null,null,null,null,null,null,null,null,{"$f":"IFERROR(HYPERLINK(VLOOKUP($F383,Наименование!A:O,15,0),VLOOKUP($F383,Наименование!A:O,15,0)),\"\")","v":""},null,null,""]
[null,null,null,null,null,null,null,null,{"$f":"IFERROR(HYPERLINK(VLOOKUP($F384,Наименование!A:O,15,0),VLOOKUP($F384,Наименование!A:O,15,0)),\"\")","v":""},null,null,""]
[null,null,null,null,null,null,null,null,{"$f":"IFERROR(HYPERLINK(VLOOKUP($F385,Наименование!A:O,15,0),VLOOKUP($F385,Наименование!A:O,15,0)),\"\")","v":""},null,null,""]
[null,null,null,null,null,null,null,null,{"$f":"IFERROR(HYPERLINK(VLOOKUP($F386,Наименование!A:O,15,0),VLOOKUP($F386,Наименование!A:O,15,0)),\"\")","v":""},null,null,""]
[null,null,null,null,null,null,null,null,{"$f":"IFERROR(HYPERLINK(VLOOKUP($F387,Наименование!A:O,15,0),VLOOKUP($F387,Наименование!A:O,15,0)),\"\")","v":""},null,null,""]
[null,null,null,null,null,null,null,null,{"$f":"IFERROR(HYPERLINK(VLOOKUP($F388,Наименование!A:O,15,0),VLOOKUP($F388,Наименование!A:O,15,0)),\"\")","v":""},null,null,""]
[null,null,null,null,null,null,null,null,{"$f":"IFERROR(HYPERLINK(VLOOKUP($F389,Наименование!A:O,15,0),VLOOKUP($F389,Наименование!A:O,15,0)),\"\")","v":""},null,null,""]
[null,null,null,null,null,null,null,null,{"$f":"IFERROR(HYPERLINK(VLOOKUP($F390,Наименование!A:O,15,0),VLOOKUP($F390,Наименование!A:O,15,0)),\"\")","v":""},null,null,""]
[null,null,null,null,null,null,null,null,{"$f":"IFERROR(HYPERLINK(VLOOKUP($F391,Наименование!A:O,15,0),VLOOKUP($F391,Наименование!A:O,15,0)),\"\")","v":""},null,null,""]
[null,null,null,null,null,null,null,null,{"$f":"IFERROR(HYPERLINK(VLOOKUP($F392,Наименование!A:O,15,0),VLOOKUP($F392,Наименование!A:O,15,0)),\"\")","v":""},null,null,""]
[null,null,null,null,null,null,null,null,{"$f":"IFERROR(HYPERLINK(VLOOKUP($F393,Наименование!A:O,15,0),VLOOKUP($F393,Наименование!A:O,15,0)),\"\")","v":""},null,null,""]
[null,null,null,null,null,null,null,null,{"$f":"IFERROR(HYPERLINK(VLOOKUP($F394,Наименование!A:O,15,0),VLOOKUP($F394,Наименование!A:O,15,0)),\"\")","v":""},null,null,""]
[null,null,null,null,null,null,null,null,{"$f":"IFERROR(HYPERLINK(VLOOKUP($F395,Наименование!A:O,15,0),VLOOKUP($F395,Наименование!A:O,15,0)),\"\")","v":""},null,null,""]
[null,null,null,null,null,null,null,null,{"$f":"IFERROR(HYPERLINK(VLOOKUP($F396,Наименование!A:O,15,0),VLOOKUP($F396,Наименование!A:O,15,0)),\"\")","v":""},null,null,""]
[null,null,null,null,null,null,null,null,{"$f":"IFERROR(HYPERLINK(VLOOKUP($F397,Наименование!A:O,15,0),VLOOKUP($F397,Наименование!A:O,15,0)),\"\")","v":""},null,null,""]
[null,null,null,null,null,null,null,null,{"$f":"IFERROR(HYPERLINK(VLOOKUP($F398,Наименование!A:O,15,0),VLOOKUP($F398,Наименование!A:O,15,0)),\"\")","v":""},null,null,""]
[null,null,null,null,null,null,null,null,{"$f":"IFERROR(HYPERLINK(VLOOKUP($F399,Наименование!A:O,15,0),VLOOKUP($F399,Наименование!A:O,15,0)),\"\")","v":""},null,null,""]
[null,null,null,null,null,null,null,null,{"$f":"IFERROR(HYPERLINK(VLOOKUP($F400,Наименование!A:O,15,0),VLOOKUP($F400,Наименование!A:O,15,0)),\"\")","v":""},null,null,{"$f":"LEFT(E400,12)","v":""}]
[null,null,null,null,null,null,null,null,{"$f":"IFERROR(HYPERLINK(VLOOKUP($F401,Наименование!A:O,15,0),VLOOKUP($F401,Наименование!A:O,15,0)),\"\")","v":""},null,null,""]
[null,null,null,null,null,null,null,null,{"$f":"IFERROR(HYPERLINK(VLOOKUP($F402,Наименование!A:O,15,0),VLOOKUP($F402,Наименование!A:O,15,0)),\"\")","v":""},null,null,""]
[null,null,null,null,null,null,null,null,{"$f":"IFERROR(HYPERLINK(VLOOKUP($F403,Наименование!A:O,15,0),VLOOKUP($F403,Наименование!A:O,15,0)),\"\")","v":""},null,null,""]
[null,null,null,null,null,null,null,null,{"$f":"IFERROR(HYPERLINK(VLOOKUP($F404,Наименование!A:O,15,0),VLOOKUP($F404,Наименование!A:O,15,0)),\"\")","v":""},null,null,""]
[null,null,null,null,null,null,null,null,{"$f":"IFERROR(HYPERLINK(VLOOKUP($F405,Наименование!A:O,15,0),VLOOKUP($F405,Наименование!A:O,15,0)),\"\")","v":""},null,null,""]
[null,null,null,null,null,null,null,null,{"$f":"IFERROR(HYPERLINK(VLOOKUP($F406,Наименование!A:O,15,0),VLOOKUP($F406,Наименование!A:O,15,0)),\"\")","v":""},null,null,""]
[null,null,null,null,null,null,null,null,{"$f":"IFERROR(HYPERLINK(VLOOKUP($F407,Наименование!A:O,15,0),VLOOKUP($F407,Наименование!A:O,15,0)),\"\")","v":""},null,null,""]
[null,null,null,null,null,null,null,null,{"$f":"IFERROR(HYPERLINK(VLOOKUP($F408,Наименование!A:O,15,0),VLOOKUP($F408,Наименование!A:O,15,0)),\"\")","v":""},null,null,""]
[null,null,null,null,null,null,null,null,{"$f":"IFERROR(HYPERLINK(VLOOKUP($F409,Наименование!A:O,15,0),VLOOKUP($F409,Наименование!A:O,15,0)),\"\")","v":""},null,null,""]
[null,null,null,null,null,null,null,null,{"$f":"IFERROR(HYPERLINK(VLOOKUP($F410,Наименование!A:O,15,0),VLOOKUP($F410,Наименование!A:O,15,0)),\"\")","v":""},null,null,""]
[null,null,null,null,null,null,null,null,{"$f":"IFERROR(HYPERLINK(VLOOKUP($F411,Наименование!A:O,15,0),VLOOKUP($F411,Наименование!A:O,15,0)),\"\")","v":""},null,null,""]
[null,null,null,null,null,null,null,null,{"$f":"IFERROR(HYPERLINK(VLOOKUP($F412,Наименование!A:O,15,0),VLOOKUP($F412,Наименование!A:O,15,0)),\"\")","v":""},null,null,""]
[null,null,null,null,null,null,null,null,{"$f":"IFERROR(HYPERLINK(VLOOKUP($F413,Наименование!A:O,15,0),VLOOKUP($F413,Наименование!A:O,15,0)),\"\")","v":""},null,null,""]
[null,null,null,null,null,null,null,null,{"$f":"IFERROR(HYPERLINK(VLOOKUP($F414,Наименование!A:O,15,0),VLOOKUP($F414,Наименование!A:O,15,0)),\"\")","v":""},null,null,""]
[null,null,null,null,null,null,null,null,{"$f":"IFERROR(HYPERLINK(VLOOKUP($F415,Наименование!A:O,15,0),VLOOKUP($F415,Наименование!A:O,15,0)),\"\")","v":""},null,null,""]
[null,null,null,null,null,null,null,null,{"$f":"IFERROR(HYPERLINK(VLOOKUP($F416,Наименование!A:O,15,0),VLOOKUP($F416,Наименование!A:O,15,0)),\"\")","v":""},null,null,""]
[null,null,null,null,null,null,null,null,{"$f":"IFERROR(HYPERLINK(VLOOKUP($F417,Наименование!A:O,15,0),VLOOKUP($F417,Наименование!A:O,15,0)),\"\")","v":""},null,null,""]
[null,null,null,null,null,null,null,null,{"$f":"IFERROR(HYPERLINK(VLOOKUP($F418,Наименование!A:O,15,0),VLOOKUP($F418,Наименование!A:O,15,0)),\"\")","v":""},null,null,""]
[null,null,null,null,null,null,null,null,{"$f":"IFERROR(HYPERLINK(VLOOKUP($F419,Наименование!A:O,15,0),VLOOKUP($F419,Наименование!A:O,15,0)),\"\")","v":""},null,null,""]
[null,null,null,null,null,null,null,null,{"$f":"IFERROR(HYPERLINK(VLOOKUP($F420,Наименование!A:O,15,0),VLOOKUP($F420,Наименование!A:O,15,0)),\"\")","v":""},null,null,""]
[null,null,null,null,null,null,null,null,{"$f":"IFERROR(HYPERLINK(VLOOKUP($F421,Наименование!A:O,15,0),VLOOKUP($F421,Наименование!A:O,15,0)),\"\")","v":""},null,null,""]
[null,null,null,null,null,null,null,null,{"$f":"IFERROR(HYPERLINK(VLOOKUP($F422,Наименование!A:O,15,0),VLOOKUP($F422,Наименование!A:O,15,0)),\"\")","v":""},null,null,""]
[null,null,null,null,null,null,null,null,{"$f":"IFERROR(HYPERLINK(VLOOKUP($F423,Наименование!A:O,15,0),VLOOKUP($F423,Наименование!A:O,15,0)),\"\")","v":""},null,null,""]
[null,null,null,null,null,null,null,null,{"$f":"IFERROR(HYPERLINK(VLOOKUP($F424,Наименование!A:O,15,0),VLOOKUP($F424,Наименование!A:O,15,0)),\"\")","v":""},null,null,""]
[null,null,null,null,null,null,null,null,{"$f":"IFERROR(HYPERLINK(VLOOKUP($F425,Наименование!A:O,15,0),VLOOKUP($F425,Наименование!A:O,15,0)),\"\")","v":""},null,null,""]
[null,null,null,null,null,null,null,null,{"$f":"IFERROR(HYPERLINK(VLOOKUP($F426,Наименование!A:O,15,0),VLOOKUP($F426,Наименование!A:O,15,0)),\"\")","v":""},null,null,""]
[null,null,null,null,null,null,null,null,{"$f":"IFERROR(HYPERLINK(VLOOKUP($F427,Наименование!A:O,15,0),VLOOKUP($F427,Наименование!A:O,15,0)),\"\")","v":""},null,null,""]
[null,null,null,null,null,null,null,null,{"$f":"IFERROR(HYPERLINK(VLOOKUP($F428,Наименование!A:O,15,0),VLOOKUP($F428,Наименование!A:O,15,0)),\"\")","v":""},null,null,""]
[null,null,null,null,null,null,null,null,{"$f":"IFERROR(HYPERLINK(VLOOKUP($F429,Наименование!A:O,15,0),VLOOKUP($F429,Наименование!A:O,15,0)),\"\")","v":""},null,null,""]
[null,null,null,null,null,null,null,null,{"$f":"IFERROR(HYPERLINK(VLOOKUP($F430,Наименование!A:O,15,0),VLOOKUP($F430,Наименование!A:O,15,0)),\"\")","v":""},null,null,""]
[null,null,null,null,null,null,null,null,{"$f":"IFERROR(HYPERLINK(VLOOKUP($F431,Наименование!A:O,15,0),VLOOKUP($F431,Наименование!A:O,15,0)),\"\")","v":""},null,null,""]
[null,null,null,null,null,null,null,null,{"$f":"IFERROR(HYPERLINK(VLOOKUP($F432,Наименование!A:O,15,0),VLOOKUP($F432,Наименование!A:O,15,0)),\"\")","v":""},null,null,""]
[null,null,null,null,null,null,null,null,{"$f":"IFERROR(HYPERLINK(VLOOKUP($F433,Наименование!A:O,15,0),VLOOKUP($F433,Наименование!A:O,15,0)),\"\")","v":""},null,null,""]
[null,null,null,null,null,null,null,null,{"$f":"IFERROR(HYPERLINK(VLOOKUP($F434,Наименование!A:O,15,0),VLOOKUP($F434,Наименование!A:O,15,0)),\"\")","v":""},null,null,""]
[null,null,null,null,null,null,null,null,{"$f":"IFERROR(HYPERLINK(VLOOKUP($F435,Наименование!A:O,15,0),VLOOKUP($F435,Наименование!A:O,15,0)),\"\")","v":""},null,null,""]
[null,null,null,null,null,null,null,null,{"$f":"IFERROR(HYPERLINK(VLOOKUP($F436,Наименование!A:O,15,0),VLOOKUP($F436,Наименование!A:O,15,0)),\"\")","v":""},null,null,""]
[null,null,null,null,null,null,null,null,{"$f":"IFERROR(HYPERLINK(VLOOKUP($F437,Наименование!A:O,15,0),VLOOKUP($F437,Наименование!A:O,15,0)),\"\")","v":""},null,null,""]
[null,null,null,null,null,null,null,null,{"$f":"IFERROR(HYPERLINK(VLOOKUP($F438,Наименование!A:O,15,0),VLOOKUP($F438,Наименование!A:O,15,0)),\"\")","v":""},null,null,""]
[null,null,null,null,null,null,null,null,{"$f":"IFERROR(HYPERLINK(VLOOKUP($F439,Наименование!A:O,15,0),VLOOKUP($F439,Наименование!A:O,15,0)),\"\")","v":""},null,null,""]
[null,null,null,null,null,null,null,null,{"$f":"IFERROR(HYPERLINK(VLOOKUP($F440,Наименование!A:O,15,0),VLOOKUP($F440,Наименование!A:O,15,0)),\"\")","v":""},null,null,""]
[null,null,null,null,null,null,null,null,{"$f":"IFERROR(HYPERLINK(VLOOKUP($F441,Наименование!A:O,15,0),VLOOKUP($F441,Наименование!A:O,15,0)),\"\")","v":""},null,null,""]
[null,null,null,null,null,null,null,null,{"$f":"IFERROR(HYPERLINK(VLOOKUP($F442,Наименование!A:O,15,0),VLOOKUP($F442,Наименование!A:O,15,0)),\"\")","v":""},null,null,""]
[null,null,null,null,null,null,null,null,{"$f":"IFERROR(HYPERLINK(VLOOKUP($F443,Наименование!A:O,15,0),VLOOKUP($F443,Наименование!A:O,15,0)),\"\")","v":""},null,null,""]
[null,null,null,null,null,null,null,null,{"$f":"IFERROR(HYPERLINK(VLOOKUP($F444,Наименование!A:O,15,0),VLOOKUP($F444,Наименование!A:O,15,0)),\"\")","v":""},null,null,""]
[null,null,null,null,null,null,null,null,{"$f":"IFERROR(HYPERLINK(VLOOKUP($F445,Наименование!A:O,15,0),VLOOKUP($F445,Наименование!A:O,15,0)),\"\")","v":""},null,null,""]
[null,null,null,null,null,null,null,null,{"$f":"IFERROR(HYPERLINK(VLOOKUP($F446,Наименование!A:O,15,0),VLOOKUP($F446,Наименование!A:O,15,0)),\"\")","v":""},null,null,""]
[null,null,null,null,null,null,null,null,{"$f":"IFERROR(HYPERLINK(VLOOKUP($F447,Наименование!A:O,15,0),VLOOKUP($F447,Наименование!A:O,15,0)),\"\")","v":""},null,null,""]
[null,null,null,null,null,null,null,null,{"$f":"IFERROR(HYPERLINK(VLOOKUP($F448,Наименование!A:O,15,0),VLOOKUP($F448,Наименование!A:O,15,0)),\"\")","v":""},null,null,""]
[null,null,null,null,null,null,null,null,{"$f":"IFERROR(HYPERLINK(VLOOKUP($F449,Наименование!A:O,15,0),VLOOKUP($F449,Наименование!A:O,15,0)),\"\")","v":""},null,null,""]
[null,null,null,null,null,null,null,null,{"$f":"IFERROR(HYPERLINK(VLOOKUP($F450,Наименование!A:O,15,0),VLOOKUP($F450,Наименование!A:O,15,0)),\"\")","v":""},null,null,""]
[null,null,null,null,null,null,null,null,{"$f":"IFERROR(HYPERLINK(VLOOKUP($F451,Наименование!A:O,15,0),VLOOKUP($F451,Наименование!A:O,15,0)),\"\")","v":""},null,null,""]
[null,null,null,null,null,null,null,null,{"$f":"IFERROR(HYPERLINK(VLOOKUP($F452,Наименование!A:O,15,0),VLOOKUP($F452,Наименование!A:O,15,0)),\"\")","v":""},null,null,""]
[null,null,null,null,null,null,null,null,{"$f":"IFERROR(HYPERLINK(VLOOKUP($F453,Наименование!A:O,15,0),VLOOKUP($F453,Наименование!A:O,15,0)),\"\")","v":""},null,null,""]
[null,null,null,null,null,null,null,null,{"$f":"IFERROR(HYPERLINK(VLOOKUP($F454,Наименование!A:O,15,0),VLOOKUP($F454,Наименование!A:O,15,0)),\"\")","v":""},null,null,""]
[null,null,null,null,null,null,null,null,{"$f":"IFERROR(HYPERLINK(VLOOKUP($F455,Наименование!A:O,15,0),VLOOKUP($F455,Наименование!A:O,15,0)),\"\")","v":""},null,null,""]
[null,null,null,null,null,null,null,null,{"$f":"IFERROR(HYPERLINK(VLOOKUP($F456,Наименование!A:O,15,0),VLOOKUP($F456,Наименование!A:O,15,0)),\"\")","v":""},null,null,""]
[null,null,null,null,null,null,null,null,{"$f":"IFERROR(HYPERLINK(VLOOKUP($F457,Наименование!A:O,15,0),VLOOKUP($F457,Наименование!A:O,15,0)),\"\")","v":""},null,null,""]
[null,null,null,null,null,null,null,null,{"$f":"IFERROR(HYPERLINK(VLOOKUP($F458,Наименование!A:O,15,0),VLOOKUP($F458,Наименование!A:O,15,0)),\"\")","v":""},null,null,""]
[null,null,null,null,null,null,null,null,{"$f":"IFERROR(HYPERLINK(VLOOKUP($F459,Наименование!A:O,15,0),VLOOKUP($F459,Наименование!A:O,15,0)),\"\")","v":""},null,null,""]
[null,null,null,null,null,null,null,null,{"$f":"IFERROR(HYPERLINK(VLOOKUP($F460,Наименование!A:O,15,0),VLOOKUP($F460,Наименование!A:O,15,0)),\"\")","v":""},null,null,""]
[null,null,null,null,null,null,null,null,{"$f":"IFERROR(HYPERLINK(VLOOKUP($F461,Наименование!A:O,15,0),VLOOKUP($F461,Наименование!A:O,15,0)),\"\")","v":""},null,null,""]
[null,null,null,null,null,null,null,null,{"$f":"IFERROR(HYPERLINK(VLOOKUP($F462,Наименование!A:O,15,0),VLOOKUP($F462,Наименование!A:O,15,0)),\"\")","v":""},null,null,""]
[null,null,null,null,null,null,null,null,{"$f":"IFERROR(HYPERLINK(VLOOKUP($F463,Наименование!A:O,15,0),VLOOKUP($F463,Наименование!A:O,15,0)),\"\")","v":""},null,null,""]
[null,null,null,null,null,null,null,null,{"$f":"IFERROR(HYPERLINK(VLOOKUP($F464,Наименование!A:O,15,0),VLOOKUP($F464,Наименование!A:O,15,0)),\"\")","v":""},null,null,{"$f":"LEFT(E464,12)","v":""}]
[null,null,null,null,null,null,null,null,{"$f":"IFERROR(HYPERLINK(VLOOKUP($F465,Наименование!A:O,15,0),VLOOKUP($F465,Наименование!A:O,15,0)),\"\")","v":""},null,null,""]
[null,null,null,null,null,null,null,null,{"$f":"IFERROR(HYPERLINK(VLOOKUP($F466,Наименование!A:O,15,0),VLOOKUP($F466,Наименование!A:O,15,0)),\"\")","v":""},null,null,""]
[null,null,null,null,null,null,null,null,{"$f":"IFERROR(HYPERLINK(VLOOKUP($F467,Наименование!A:O,15,0),VLOOKUP($F467,Наименование!A:O,15,0)),\"\")","v":""},null,null,""]
[null,null,null,null,null,null,null,null,{"$f":"IFERROR(HYPERLINK(VLOOKUP($F468,Наименование!A:O,15,0),VLOOKUP($F468,Наименование!A:O,15,0)),\"\")","v":""},null,null,""]
[null,null,null,null,null,null,null,null,{"$f":"IFERROR(HYPERLINK(VLOOKUP($F469,Наименование!A:O,15,0),VLOOKUP($F469,Наименование!A:O,15,0)),\"\")","v":""},null,null,""]
[null,null,null,null,null,null,null,null,{"$f":"IFERROR(HYPERLINK(VLOOKUP($F470,Наименование!A:O,15,0),VLOOKUP($F470,Наименование!A:O,15,0)),\"\")","v":""},null,null,""]
[null,null,null,null,null,null,null,null,{"$f":"IFERROR(HYPERLINK(VLOOKUP($F471,Наименование!A:O,15,0),VLOOKUP($F471,Наименование!A:O,15,0)),\"\")","v":""},null,null,""]
[null,null,null,null,null,null,null,null,{"$f":"IFERROR(HYPERLINK(VLOOKUP($F472,Наименование!A:O,15,0),VLOOKUP($F472,Наименование!A:O,15,0)),\"\")","v":""},null,null,""]
[null,null,null,null,null,null,null,null,{"$f":"IFERROR(HYPERLINK(VLOOKUP($F473,Наименование!A:O,15,0),VLOOKUP($F473,Наименование!A:O,15,0)),\"\")","v":""},null,null,""]
[null,null,null,null,null,null,null,null,{"$f":"IFERROR(HYPERLINK(VLOOKUP($F474,Наименование!A:O,15,0),VLOOKUP($F474,Наименование!A:O,15,0)),\"\")","v":""},null,null,""]
[null,null,null,null,null,null,null,null,{"$f":"IFERROR(HYPERLINK(VLOOKUP($F475,Наименование!A:O,15,0),VLOOKUP($F475,Наименование!A:O,15,0)),\"\")","v":""},null,null,""]
[null,null,null,null,null,null,null,null,{"$f":"IFERROR(HYPERLINK(VLOOKUP($F476,Наименование!A:O,15,0),VLOOKUP($F476,Наименование!A:O,15,0)),\"\")","v":""},null,null,""]
[null,null,null,null,null,null,null,null,{"$f":"IFERROR(HYPERLINK(VLOOKUP($F477,Наименование!A:O,15,0),VLOOKUP($F477,Наименование!A:O,15,0)),\"\")","v":""},null,null,""]
[null,null,null,null,null,null,null,null,{"$f":"IFERROR(HYPERLINK(VLOOKUP($F478,Наименование!A:O,15,0),VLOOKUP($F478,Наименование!A:O,15,0)),\"\")","v":""},null,null,""]
[null,null,null,null,null,null,null,null,{"$f":"IFERROR(HYPERLINK(VLOOKUP($F479,Наименование!A:O,15,0),VLOOKUP($F479,Наименование!A:O,15,0)),\"\")","v":""},null,null,""]
[null,null,null,null,null,null,null,null,{"$f":"IFERROR(HYPERLINK(VLOOKUP($F480,Наименование!A:O,15,0),VLOOKUP($F480,Наименование!A:O,15,0)),\"\")","v":""},null,null,""]
[null,null,null,null,null,null,null,null,{"$f":"IFERROR(HYPERLINK(VLOOKUP($F481,Наименование!A:O,15,0),VLOOKUP($F481,Наименование!A:O,15,0)),\"\")","v":""},null,null,""]
[null,null,null,null,null,null,null,null,{"$f":"IFERROR(HYPERLINK(VLOOKUP($F482,Наименование!A:O,15,0),VLOOKUP($F482,Наименование!A:O,15,0)),\"\")","v":""},null,null,""]
[null,null,null,null,null,null,null,null,{"$f":"IFERROR(HYPERLINK(VLOOKUP($F483,Наименование!A:O,15,0),VLOOKUP($F483,Наименование!A:O,15,0)),\"\")","v":""},null,null,""]
[null,null,null,null,null,null,null,null,{"$f":"IFERROR(HYPERLINK(VLOOKUP($F484,Наименование!A:O,15,0),VLOOKUP($F484,Наименование!A:O,15,0)),\"\")","v":""},null,null,""]
[null,null,null,null,null,null,null,null,{"$f":"IFERROR(HYPERLINK(VLOOKUP($F485,Наименование!A:O,15,0),VLOOKUP($F485,Наименование!A:O,15,0)),\"\")","v":""},null,null,""]
[null,null,null,null,null,null,null,null,{"$f":"IFERROR(HYPERLINK(VLOOKUP($F486,Наименование!A:O,15,0),VLOOKUP($F486,Наименование!A:O,15,0)),\"\")","v":""},null,null,""]
[null,null,null,null,null,null,null,null,{"$f":"IFERROR(HYPERLINK(VLOOKUP($F487,Наименование!A:O,15,0),VLOOKUP($F487,Наименование!A:O,15,0)),\"\")","v":""},null,null,""]
[null,null,null,null,null,null,null,null,{"$f":"IFERROR(HYPERLINK(VLOOKUP($F488,Наименование!A:O,15,0),VLOOKUP($F488,Наименование!A:O,15,0)),\"\")","v":""},null,null,""]
[null,null,null,null,null,null,null,null,{"$f":"IFERROR(HYPERLINK(VLOOKUP($F489,Наименование!A:O,15,0),VLOOKUP($F489,Наименование!A:O,15,0)),\"\")","v":""},null,null,""]
[null,null,null,null,null,null,null,null,{"$f":"IFERROR(HYPERLINK(VLOOKUP($F490,Наименование!A:O,15,0),VLOOKUP($F490,Наименование!A:O,15,0)),\"\")","v":""},null,null,""]
[null,null,null,null,null,null,null,null,{"$f":"IFERROR(HYPERLINK(VLOOKUP($F491,Наименование!A:O,15,0),VLOOKUP($F491,Наименование!A:O,15,0)),\"\")","v":""},null,null,""]
[null,null,null,null,null,null,null,null,{"$f":"IFERROR(HYPERLINK(VLOOKUP($F492,Наименование!A:O,15,0),VLOOKUP($F492,Наименование!A:O,15,0)),\"\")","v":""},null,null,""]
[null,null,null,null,null,null,null,null,{"$f":"IFERROR(HYPERLINK(VLOOKUP($F493,Наименование!A:O,15,0),VLOOKUP($F493,Наименование!A:O,15,0)),\"\")","v":""},null,null,""]
[null,null,null,null,null,null,null,null,{"$f":"IFERROR(HYPERLINK(VLOOKUP($F494,Наименование!A:O,15,0),VLOOKUP($F494,Наименование!A:O,15,0)),\"\")","v":""},null,null,""]
[null,null,null,null,null,null,null,null,{"$f":"IFERROR(HYPERLINK(VLOOKUP($F495,Наименование!A:O,15,0),VLOOKUP($F495,Наименование!A:O,15,0)),\"\")","v":""},null,null,""]
[null,null,null,null,null,null,null,null,{"$f":"IFERROR(HYPERLINK(VLOOKUP($F496,Наименование!A:O,15,0),VLOOKUP($F496,Наименование!A:O,15,0)),\"\")","v":""},null,null,""]
[null,null,null,null,null,null,null,null,{"$f":"IFERROR(HYPERLINK(VLOOKUP($F497,Наименование!A:O,15,0),VLOOKUP($F497,Наименование!A:O,15,0)),\"\")","v":""},null,null,""]
[null,null,null,null,null,null,null,null,{"$f":"IFERROR(HYPERLINK(VLOOKUP($F498,Наименование!A:O,15,0),VLOOKUP($F498,Наименование!A:O,15,0)),\"\")","v":""},null,null,""]
[null,null,null,null,null,null,null,null,{"$f":"IFERROR(HYPERLINK(VLOOKUP($F499,Наименование!A:O,15,0),VLOOKUP($F499,Наименование!A:O,15,0)),\"\")","v":""},null,null,""]
[null,null,null,null,null,null,null,null,{"$f":"IFERROR(HYPERLINK(VLOOKUP($F500,Наименование!A:O,15,0),VLOOKUP($F500,Наименование!A:O,15,0)),\"\")","v":""},null,null,""]
[null,null,null,null,null,null,null,null,{"$f":"IFERROR(HYPERLINK(VLOOKUP($F501,Наименование!A:O,15,0),VLOOKUP($F501,Наименование!A:O,15,0)),\"\")","v":""},null,null,""]
[null,null,null,null,null,null,null,null,{"$f":"IFERROR(HYPERLINK(VLOOKUP($F502,Наименование!A:O,15,0),VLOOKUP($F502,Наименование!A:O,15,0)),\"\")","v":""},null,null,""]
[null,null,null,null,null,null,null,null,{"$f":"IFERROR(HYPERLINK(VLOOKUP($F503,Наименование!A:O,15,0),VLOOKUP($F503,Наименование!A:O,15,0)),\"\")","v":""},null,null,""]
[null,null,null,null,null,null,null,null,{"$f":"IFERROR(HYPERLINK(VLOOKUP($F504,Наименование!A:O,15,0),VLOOKUP($F504,Наименование!A:O,15,0)),\"\")","v":""},null,null,""]
[null,null,null,null,null,null,null,null,{"$f":"IFERROR(HYPERLINK(VLOOKUP($F505,Наименование!A:O,15,0),VLOOKUP($F505,Наименование!A:O,15,0)),\"\")","v":""},null,null,""]
[null,null,null,null,null,null,null,null,{"$f":"IFERROR(HYPERLINK(VLOOKUP($F506,Наименование!A:O,15,0),VLOOKUP($F506,Наименование!A:O,15,0)),\"\")","v":""},null,null,""]
[null,null,null,null,null,null,null,null,{"$f":"IFERROR(HYPERLINK(VLOOKUP($F507,Наименование!A:O,15,0),VLOOKUP($F507,Наименование!A:O,15,0)),\"\")","v":""},null,null,""]
[null,null,null,null,null,null,null,null,{"$f":"IFERROR(HYPERLINK(VLOOKUP($F508,Наименование!A:O,15,0),VLOOKUP($F508,Наименование!A:O,15,0)),\"\")","v":""},null,null,""]
[null,null,null,null,null,null,null,null,{"$f":"IFERROR(HYPERLINK(VLOOKUP($F509,Наименование!A:O,15,0),VLOOKUP($F509,Наименование!A:O,15,0)),\"\")","v":""},null,null,""]
[null,null,null,null,null,null,null,null,{"$f":"IFERROR(HYPERLINK(VLOOKUP($F510,Наименование!A:O,15,0),VLOOKUP($F510,Наименование!A:O,15,0)),\"\")","v":""},null,null,""]
[null,null,null,null,null,null,null,null,{"$f":"IFERROR(HYPERLINK(VLOOKUP($F511,Наименование!A:O,15,0),VLOOKUP($F511,Наименование!A:O,15,0)),\"\")","v":""},null,null,""]
[null,null,null,null,null,null,null,null,{"$f":"IFERROR(HYPERLINK(VLOOKUP($F512,Наименование!A:O,15,0),VLOOKUP($F512,Наименование!A:O,15,0)),\"\")","v":""},null,null,""]
[null,null,null,null,null,null,null,null,{"$f":"IFERROR(HYPERLINK(VLOOKUP($F513,Наименование!A:O,15,0),VLOOKUP($F513,Наименование!A:O,15,0)),\"\")","v":""},null,null,""]
[null,null,null,null,null,null,null,null,{"$f":"IFERROR(HYPERLINK(VLOOKUP($F514,Наименование!A:O,15,0),VLOOKUP($F514,Наименование!A:O,15,0)),\"\")","v":""},null,null,""]
[null,null,null,null,null,null,null,null,{"$f":"IFERROR(HYPERLINK(VLOOKUP($F515,Наименование!A:O,15,0),VLOOKUP($F515,Наименование!A:O,15,0)),\"\")","v":""},null,null,""]
[null,null,null,null,null,null,null,null,{"$f":"IFERROR(HYPERLINK(VLOOKUP($F516,Наименование!A:O,15,0),VLOOKUP($F516,Наименование!A:O,15,0)),\"\")","v":""},null,null,""]
[null,null,null,null,null,null,null,null,{"$f":"IFERROR(HYPERLINK(VLOOKUP($F517,Наименование!A:O,15,0),VLOOKUP($F517,Наименование!A:O,15,0)),\"\")","v":""},null,null,""]
[null,null,null,null,null,null,null,null,{"$f":"IFERROR(HYPERLINK(VLOOKUP($F518,Наименование!A:O,15,0),VLOOKUP($F518,Наименование!A:O,15,0)),\"\")","v":""},null,null,""]
[null,null,null,null,null,null,null,null,{"$f":"IFERROR(HYPERLINK(VLOOKUP($F519,Наименование!A:O,15,0),VLOOKUP($F519,Наименование!A:O,15,0)),\"\")","v":""},null,null,""]
[null,null,null,null,null,null,null,null,{"$f":"IFERROR(HYPERLINK(VLOOKUP($F520,Наименование!A:O,15,0),VLOOKUP($F520,Наименование!A:O,15,0)),\"\")","v":""},null,null,""]
[null,null,null,null,null,null,null,null,{"$f":"IFERROR(HYPERLINK(VLOOKUP($F521,Наименование!A:O,15,0),VLOOKUP($F521,Наименование!A:O,15,0)),\"\")","v":""},null,null,""]
[null,null,null,null,null,null,null,null,{"$f":"IFERROR(HYPERLINK(VLOOKUP($F522,Наименование!A:O,15,0),VLOOKUP($F522,Наименование!A:O,15,0)),\"\")","v":""},null,null,""]
[null,null,null,null,null,null,null,null,{"$f":"IFERROR(HYPERLINK(VLOOKUP($F523,Наименование!A:O,15,0),VLOOKUP($F523,Наименование!A:O,15,0)),\"\")","v":""},null,null,""]
[null,null,null,null,null,null,null,null,{"$f":"IFERROR(HYPERLINK(VLOOKUP($F524,Наименование!A:O,15,0),VLOOKUP($F524,Наименование!A:O,15,0)),\"\")","v":""},null,null,""]
[null,null,null,null,null,null,null,null,{"$f":"IFERROR(HYPERLINK(VLOOKUP($F525,Наименование!A:O,15,0),VLOOKUP($F525,Наименование!A:O,15,0)),\"\")","v":""},null,null,""]
[null,null,null,null,null,null,null,null,{"$f":"IFERROR(HYPERLINK(VLOOKUP($F526,Наименование!A:O,15,0),VLOOKUP($F526,Наименование!A:O,15,0)),\"\")","v":""},null,null,""]
[null,null,null,null,null,null,null,null,{"$f":"IFERROR(HYPERLINK(VLOOKUP($F527,Наименование!A:O,15,0),VLOOKUP($F527,Наименование!A:O,15,0)),\"\")","v":""},null,null,""]
[null,null,null,null,null,null,null,null,{"$f":"IFERROR(HYPERLINK(VLOOKUP($F528,Наименование!A:O,15,0),VLOOKUP($F528,Наименование!A:O,15,0)),\"\")","v":""},null,null,{"$f":"LEFT(E528,12)","v":""}]
[null,null,null,null,null,null,null,null,{"$f":"IFERROR(HYPERLINK(VLOOKUP($F529,Наименование!A:O,15,0),VLOOKUP($F529,Наименование!A:O,15,0)),\"\")","v":""},null,null,""]
[null,null,null,null,null,null,null,null,{"$f":"IFERROR(HYPERLINK(VLOOKUP($F530,Наименование!A:O,15,0),VLOOKUP($F530,Наименование!A:O,15,0)),\"\")","v":""},null,null,""]
[null,null,null,null,null,null,null,null,{"$f":"IFERROR(HYPERLINK(VLOOKUP($F531,Наименование!A:O,15,0),VLOOKUP($F531,Наименование!A:O,15,0)),\"\")","v":""},null,null,""]
[null,null,null,null,null,null,null,null,{"$f":"IFERROR(HYPERLINK(VLOOKUP($F532,Наименование!A:O,15,0),VLOOKUP($F532,Наименование!A:O,15,0)),\"\")","v":""},null,null,""]
[null,null,null,null,null,null,null,null,{"$f":"IFERROR(HYPERLINK(VLOOKUP($F533,Наименование!A:O,15,0),VLOOKUP($F533,Наименование!A:O,15,0)),\"\")","v":""},null,null,""]
[null,null,null,null,null,null,null,null,{"$f":"IFERROR(HYPERLINK(VLOOKUP($F534,Наименование!A:O,15,0),VLOOKUP($F534,Наименование!A:O,15,0)),\"\")","v":""},null,null,""]
[null,null,null,null,null,null,null,null,{"$f":"IFERROR(HYPERLINK(VLOOKUP($F535,Наименование!A:O,15,0),VLOOKUP($F535,Наименование!A:O,15,0)),\"\")","v":""},null,null,""]
[null,null,null,null,null,null,null,null,{"$f":"IFERROR(HYPERLINK(VLOOKUP($F536,Наименование!A:O,15,0),VLOOKUP($F536,Наименование!A:O,15,0)),\"\")","v":""},null,null,""]
[null,null,null,null,null,null,null,null,{"$f":"IFERROR(HYPERLINK(VLOOKUP($F537,Наименование!A:O,15,0),VLOOKUP($F537,Наименование!A:O,15,0)),\"\")","v":""},null,null,""]
[null,null,null,null,null,null,null,null,{"$f":"IFERROR(HYPERLINK(VLOOKUP($F538,Наименование!A:O,15,0),VLOOKUP($F538,Наименование!A:O,15,0)),\"\")","v":""},null,null,""]
[null,null,null,null,null,null,null,null,{"$f":"IFERROR(HYPERLINK(VLOOKUP($F539,Наименование!A:O,15,0),VLOOKUP($F539,Наименование!A:O,15,0)),\"\")","v":""},null,null,""]
[null,null,null,null,null,null,null,null,{"$f":"IFERROR(HYPERLINK(VLOOKUP($F540,Наименование!A:O,15,0),VLOOKUP($F540,Наименование!A:O,15,0)),\"\")","v":""},null,null,""]
[null,null,null,null,null,null,null,null,{"$f":"IFERROR(HYPERLINK(VLOOKUP($F541,Наименование!A:O,15,0),VLOOKUP($F541,Наименование!A:O,15,0)),\"\")","v":""},null,null,""]
[null,null,null,null,null,null,null,null,{"$f":"IFERROR(HYPERLINK(VLOOKUP($F542,Наименование!A:O,15,0),VLOOKUP($F542,Наименование!A:O,15,0)),\"\")","v":""},null,null,""]
[null,null,null,null,null,null,null,null,{"$f":"IFERROR(HYPERLINK(VLOOKUP($F543,Наименование!A:O,15,0),VLOOKUP($F543,Наименование!A:O,15,0)),\"\")","v":""},null,null,""]
[null,null,null,null,null,null,null,null,{"$f":"IFERROR(HYPERLINK(VLOOKUP($F544,Наименование!A:O,15,0),VLOOKUP($F544,Наименование!A:O,15,0)),\"\")","v":""},null,null,""]
[null,null,null,null,null,null,null,null,{"$f":"IFERROR(HYPERLINK(VLOOKUP($F545,Наименование!A:O,15,0),VLOOKUP($F545,Наименование!A:O,15,0)),\"\")","v":""},null,null,""]
[null,null,null,null,null,null,null,null,{"$f":"IFERROR(HYPERLINK(VLOOKUP($F546,Наименование!A:O,15,0),VLOOKUP($F546,Наименование!A:O,15,0)),\"\")","v":""},null,null,""]
[null,null,null,null,null,null,null,null,{"$f":"IFERROR(HYPERLINK(VLOOKUP($F547,Наименование!A:O,15,0),VLOOKUP($F547,Наименование!A:O,15,0)),\"\")","v":""},null,null,""]
[null,null,null,null,null,null,null,null,{"$f":"IFERROR(HYPERLINK(VLOOKUP($F548,Наименование!A:O,15,0),VLOOKUP($F548,Наименование!A:O,15,0)),\"\")","v":""},null,null,""]
[null,null,null,null,null,null,null,null,{"$f":"IFERROR(HYPERLINK(VLOOKUP($F549,Наименование!A:O,15,0),VLOOKUP($F549,Наименование!A:O,15,0)),\"\")","v":""},null,null,""]
[null,null,null,null,null,null,null,null,{"$f":"IFERROR(HYPERLINK(VLOOKUP($F550,Наименование!A:O,15,0),VLOOKUP($F550,Наименование!A:O,15,0)),\"\")","v":""},null,null,""]
[null,null,null,null,null,null,null,null,{"$f":"IFERROR(HYPERLINK(VLOOKUP($F551,Наименование!A:O,15,0),VLOOKUP($F551,Наименование!A:O,15,0)),\"\")","v":""},null,null,""]
[null,null,null,null,null,null,null,null,{"$f":"IFERROR(HYPERLINK(VLOOKUP($F552,Наименование!A:O,15,0),VLOOKUP($F552,Наименование!A:O,15,0)),\"\")","v":""},null,null,""]
[null,null,null,null,null,null,null,null,{"$f":"IFERROR(HYPERLINK(VLOOKUP($F553,Наименование!A:O,15,0),VLOOKUP($F553,Наименование!A:O,15,0)),\"\")","v":""},null,null,""]
[null,null,null,null,null,null,null,null,{"$f":"IFERROR(HYPERLINK(VLOOKUP($F554,Наименование!A:O,15,0),VLOOKUP($F554,Наименование!A:O,15,0)),\"\")","v":""},null,null,""]
[null,null,null,null,null,null,null,null,{"$f":"IFERROR(HYPERLINK(VLOOKUP($F555,Наименование!A:O,15,0),VLOOKUP($F555,Наименование!A:O,15,0)),\"\")","v":""},null,null,""]
[null,null,null,null,null,null,null,null,{"$f":"IFERROR(HYPERLINK(VLOOKUP($F556,Наименование!A:O,15,0),VLOOKUP($F556,Наименование!A:O,15,0)),\"\")","v":""},null,null,""]
[null,null,null,null,null,null,null,null,{"$f":"IFERROR(HYPERLINK(VLOOKUP($F557,Наименование!A:O,15,0),VLOOKUP($F557,Наименование!A:O,15,0)),\"\")","v":""},null,null,""]
[null,null,null,null,null,null,null,null,{"$f":"IFERROR(HYPERLINK(VLOOKUP($F558,Наименование!A:O,15,0),VLOOKUP($F558,Наименование!A:O,15,0)),\"\")","v":""},null,null,""]
[null,null,null,null,null,null,null,null,{"$f":"IFERROR(HYPERLINK(VLOOKUP($F559,Наименование!A:O,15,0),VLOOKUP($F559,Наименование!A:O,15,0)),\"\")","v":""},null,null,""]
[null,null,null,null,null,null,null,null,{"$f":"IFERROR(HYPERLINK(VLOOKUP($F560,Наименование!A:O,15,0),VLOOKUP($F560,Наименование!A:O,15,0)),\"\")","v":""},null,null,""]
[null,null,null,null,null,null,null,null,{"$f":"IFERROR(HYPERLINK(VLOOKUP($F561,Наименование!A:O,15,0),VLOOKUP($F561,Наименование!A:O,15,0)),\"\")","v":""},null,null,""]
[null,null,null,null,null,null,null,null,{"$f":"IFERROR(HYPERLINK(VLOOKUP($F562,Наименование!A:O,15,0),VLOOKUP($F562,Наименование!A:O,15,0)),\"\")","v":""},null,null,""]
[null,null,null,null,null,null,null,null,{"$f":"IFERROR(HYPERLINK(VLOOKUP($F563,Наименование!A:O,15,0),VLOOKUP($F563,Наименование!A:O,15,0)),\"\")","v":""},null,null,""]
[null,null,null,null,null,null,null,null,{"$f":"IFERROR(HYPERLINK(VLOOKUP($F564,Наименование!A:O,15,0),VLOOKUP($F564,Наименование!A:O,15,0)),\"\")","v":""},null,null,""]
[null,null,null,null,null,null,null,null,{"$f":"IFERROR(HYPERLINK(VLOOKUP($F565,Наименование!A:O,15,0),VLOOKUP($F565,Наименование!A:O,15,0)),\"\")","v":""},null,null,""]
[null,null,null,null,null,null,null,null,{"$f":"IFERROR(HYPERLINK(VLOOKUP($F566,Наименование!A:O,15,0),VLOOKUP($F566,Наименование!A:O,15,0)),\"\")","v":""},null,null,""]
[null,null,null,null,null,null,null,null,{"$f":"IFERROR(HYPERLINK(VLOOKUP($F567,Наименование!A:O,15,0),VLOOKUP($F567,Наименование!A:O,15,0)),\"\")","v":""},null,null,""]
[null,null,null,null,null,null,null,null,{"$f":"IFERROR(HYPERLINK(VLOOKUP($F568,Наименование!A:O,15,0),VLOOKUP($F568,Наименование!A:O,15,0)),\"\")","v":""},null,null,""]
[null,null,null,null,null,null,null,null,{"$f":"IFERROR(HYPERLINK(VLOOKUP($F569,Наименование!A:O,15,0),VLOOKUP($F569,Наименование!A:O,15,0)),\"\")","v":""},null,null,""]
[null,null,null,null,null,null,null,null,{"$f":"IFERROR(HYPERLINK(VLOOKUP($F570,Наименование!A:O,15,0),VLOOKUP($F570,Наименование!A:O,15,0)),\"\")","v":""},null,null,""]
[null,null,null,null,null,null,null,null,{"$f":"IFERROR(HYPERLINK(VLOOKUP($F571,Наименование!A:O,15,0),VLOOKUP($F571,Наименование!A:O,15,0)),\"\")","v":""},null,null,""]
[null,null,null,null,null,null,null,null,{"$f":"IFERROR(HYPERLINK(VLOOKUP($F572,Наименование!A:O,15,0),VLOOKUP($F572,Наименование!A:O,15,0)),\"\")","v":""},null,null,""]
[null,null,null,null,null,null,null,null,{"$f":"IFERROR(HYPERLINK(VLOOKUP($F573,Наименование!A:O,15,0),VLOOKUP($F573,Наименование!A:O,15,0)),\"\")","v":""},null,null,""]
[null,null,null,null,null,null,null,null,{"$f":"IFERROR(HYPERLINK(VLOOKUP($F574,Наименование!A:O,15,0),VLOOKUP($F574,Наименование!A:O,15,0)),\"\")","v":""},null,null,""]
[null,null,null,null,null,null,null,null,{"$f":"IFERROR(HYPERLINK(VLOOKUP($F575,Наименование!A:O,15,0),VLOOKUP($F575,Наименование!A:O,15,0)),\"\")","v":""},null,null,""]
[null,null,null,null,null,null,null,null,{"$f":"IFERROR(HYPERLINK(VLOOKUP($F576,Наименование!A:O,15,0),VLOOKUP($F576,Наименование!A:O,15,0)),\"\")","v":""},null,null,""]
[null,null,null,null,null,null,null,null,{"$f":"IFERROR(HYPERLINK(VLOOKUP($F577,Наименование!A:O,15,0),VLOOKUP($F577,Наименование!A:O,15,0)),\"\")","v":""},null,null,""]
[null,null,null,null,null,null,null,null,{"$f":"IFERROR(HYPERLINK(VLOOKUP($F578,Наименование!A:O,15,0),VLOOKUP($F578,Наименование!A:O,15,0)),\"\")","v":""},null,null,""]
[null,null,null,null,null,null,null,null,{"$f":"IFERROR(HYPERLINK(VLOOKUP($F579,Наименование!A:O,15,0),VLOOKUP($F579,Наименование!A:O,15,0)),\"\")","v":""},null,null,""]
[null,null,null,null,null,null,null,null,{"$f":"IFERROR(HYPERLINK(VLOOKUP($F580,Наименование!A:O,15,0),VLOOKUP($F580,Наименование!A:O,15,0)),\"\")","v":""},null,null,""]
[null,null,null,null,null,null,null,null,{"$f":"IFERROR(HYPERLINK(VLOOKUP($F581,Наименование!A:O,15,0),VLOOKUP($F581,Наименование!A:O,15,0)),\"\")","v":""},null,null,""]
[null,null,null,null,null,null,null,null,{"$f":"IFERROR(HYPERLINK(VLOOKUP($F582,Наименование!A:O,15,0),VLOOKUP($F582,Наименование!A:O,15,0)),\"\")","v":""},null,null,""]
[null,null,null,null,null,null,null,null,{"$f":"IFERROR(HYPERLINK(VLOOKUP($F583,Наименование!A:O,15,0),VLOOKUP($F583,Наименование!A:O,15,0)),\"\")","v":""},null,null,""]
[null,null,null,null,null,null,null,null,{"$f":"IFERROR(HYPERLINK(VLOOKUP($F584,Наименование!A:O,15,0),VLOOKUP($F584,Наименование!A:O,15,0)),\"\")","v":""},null,null,""]
[null,null,null,null,null,null,null,null,{"$f":"IFERROR(HYPERLINK(VLOOKUP($F585,Наименование!A:O,15,0),VLOOKUP($F585,Наименование!A:O,15,0)),\"\")","v":""},null,null,""]
[null,null,null,null,null,null,null,null,{"$f":"IFERROR(HYPERLINK(VLOOKUP($F586,Наименование!A:O,15,0),VLOOKUP($F586,Наименование!A:O,15,0)),\"\")","v":""},null,null,""]
[null,null,null,null,null,null,null,null,{"$f":"IFERROR(HYPERLINK(VLOOKUP($F587,Наименование!A:O,15,0),VLOOKUP($F587,Наименование!A:O,15,0)),\"\")","v":""},null,null,""]
[null,null,null,null,null,null,null,null,{"$f":"IFERROR(HYPERLINK(VLOOKUP($F588,Наименование!A:O,15,0),VLOOKUP($F588,Наименование!A:O,15,0)),\"\")","v":""},null,null,""]
[null,null,null,null,null,null,null,null,{"$f":"IFERROR(HYPERLINK(VLOOKUP($F589,Наименование!A:O,15,0),VLOOKUP($F589,Наименование!A:O,15,0)),\"\")","v":""},null,null,""]
[null,null,null,null,null,null,null,null,{"$f":"IFERROR(HYPERLINK(VLOOKUP($F590,Наименование!A:O,15,0),VLOOKUP($F590,Наименование!A:O,15,0)),\"\")","v":""},null,null,""]
[null,null,null,null,null,null,null,null,{"$f":"IFERROR(HYPERLINK(VLOOKUP($F591,Наименование!A:O,15,0),VLOOKUP($F591,Наименование!A:O,15,0)),\"\")","v":""},null,null,""]
[null,null,null,null,null,null,null,null,{"$f":"IFERROR(HYPERLINK(VLOOKUP($F592,Наименование!A:O,15,0),VLOOKUP($F592,Наименование!A:O,15,0)),\"\")","v":""},null,null,{"$f":"LEFT(E592,12)","v":""}]
[null,null,null,null,null,null,null,null,{"$f":"IFERROR(HYPERLINK(VLOOKUP($F593,Наименование!A:O,15,0),VLOOKUP($F593,Наименование!A:O,15,0)),\"\")","v":""},null,null,""]
[null,null,null,null,null,null,null,null,{"$f":"IFERROR(HYPERLINK(VLOOKUP($F594,Наименование!A:O,15,0),VLOOKUP($F594,Наименование!A:O,15,0)),\"\")","v":""},null,null,""]
[null,null,null,null,null,null,null,null,{"$f":"IFERROR(HYPERLINK(VLOOKUP($F595,Наименование!A:O,15,0),VLOOKUP($F595,Наименование!A:O,15,0)),\"\")","v":""},null,null,""]
[null,null,null,null,null,null,null,null,{"$f":"IFERROR(HYPERLINK(VLOOKUP($F596,Наименование!A:O,15,0),VLOOKUP($F596,Наименование!A:O,15,0)),\"\")","v":""},null,null,""]
[null,null,null,null,null,null,null,null,{"$f":"IFERROR(HYPERLINK(VLOOKUP($F597,Наименование!A:O,15,0),VLOOKUP($F597,Наименование!A:O,15,0)),\"\")","v":""},null,null,""]
[null,null,null,null,null,null,null,null,{"$f":"IFERROR(HYPERLINK(VLOOKUP($F598,Наименование!A:O,15,0),VLOOKUP($F598,Наименование!A:O,15,0)),\"\")","v":""},null,null,""]
[null,null,null,null,null,null,null,null,{"$f":"IFERROR(HYPERLINK(VLOOKUP($F599,Наименование!A:O,15,0),VLOOKUP($F599,Наименование!A:O,15,0)),\"\")","v":""},null,null,""]
[null,null,null,null,null,null,null,null,{"$f":"IFERROR(HYPERLINK(VLOOKUP($F600,Наименование!A:O,15,0),VLOOKUP($F600,Наименование!A:O,15,0)),\"\")","v":""},null,null,""]
[null,null,null,null,null,null,null,null,{"$f":"IFERROR(HYPERLINK(VLOOKUP($F601,Наименование!A:O,15,0),VLOOKUP($F601,Наименование!A:O,15,0)),\"\")","v":""},null,null,""]
[null,null,null,null,null,null,null,null,{"$f":"IFERROR(HYPERLINK(VLOOKUP($F602,Наименование!A:O,15,0),VLOOKUP($F602,Наименование!A:O,15,0)),\"\")","v":""},null,null,""]
[null,null,null,null,null,null,null,null,{"$f":"IFERROR(HYPERLINK(VLOOKUP($F603,Наименование!A:O,15,0),VLOOKUP($F603,Наименование!A:O,15,0)),\"\")","v":""},null,null,""]
[null,null,null,null,null,null,null,null,{"$f":"IFERROR(HYPERLINK(VLOOKUP($F604,Наименование!A:O,15,0),VLOOKUP($F604,Наименование!A:O,15,0)),\"\")","v":""},null,null,""]
[null,null,null,null,null,null,null,null,{"$f":"IFERROR(HYPERLINK(VLOOKUP($F605,Наименование!A:O,15,0),VLOOKUP($F605,Наименование!A:O,15,0)),\"\")","v":""},null,null,""]
[null,null,null,null,null,null,null,null,{"$f":"IFERROR(HYPERLINK(VLOOKUP($F606,Наименование!A:O,15,0),VLOOKUP($F606,Наименование!A:O,15,0)),\"\")","v":""},null,null,""]
[null,null,null,null,null,null,null,null,{"$f":"IFERROR(HYPERLINK(VLOOKUP($F607,Наименование!A:O,15,0),VLOOKUP($F607,Наименование!A:O,15,0)),\"\")","v":""},null,null,""]
[null,null,null,null,null,null,null,null,{"$f":"IFERROR(HYPERLINK(VLOOKUP($F608,Наименование!A:O,15,0),VLOOKUP($F608,Наименование!A:O,15,0)),\"\")","v":""},null,null,""]
[null,null,null,null,null,null,null,null,{"$f":"IFERROR(HYPERLINK(VLOOKUP($F609,Наименование!A:O,15,0),VLOOKUP($F609,Наименование!A:O,15,0)),\"\")","v":""},null,null,""]
[null,null,null,null,null,null,null,null,{"$f":"IFERROR(HYPERLINK(VLOOKUP($F610,Наименование!A:O,15,0),VLOOKUP($F610,Наименование!A:O,15,0)),\"\")","v":""},null,null,""]
[null,null,null,null,null,null,null,null,{"$f":"IFERROR(HYPERLINK(VLOOKUP($F611,Наименование!A:O,15,0),VLOOKUP($F611,Наименование!A:O,15,0)),\"\")","v":""},null,null,""]
[null,null,null,null,null,null,null,null,{"$f":"IFERROR(HYPERLINK(VLOOKUP($F612,Наименование!A:O,15,0),VLOOKUP($F612,Наименование!A:O,15,0)),\"\")","v":""},null,null,""]
[null,null,null,null,null,null,null,null,{"$f":"IFERROR(HYPERLINK(VLOOKUP($F613,Наименование!A:O,15,0),VLOOKUP($F613,Наименование!A:O,15,0)),\"\")","v":""},null,null,""]
[null,null,null,null,null,null,null,null,{"$f":"IFERROR(HYPERLINK(VLOOKUP($F614,Наименование!A:O,15,0),VLOOKUP($F614,Наименование!A:O,15,0)),\"\")","v":""},null,null,""]
[null,null,null,null,null,null,null,null,{"$f":"IFERROR(HYPERLINK(VLOOKUP($F615,Наименование!A:O,15,0),VLOOKUP($F615,Наименование!A:O,15,0)),\"\")","v":""},null,null,""]
[null,null,null,null,null,null,null,null,{"$f":"IFERROR(HYPERLINK(VLOOKUP($F616,Наименование!A:O,15,0),VLOOKUP($F616,Наименование!A:O,15,0)),\"\")","v":""},null,null,""]
[null,null,null,null,null,null,null,null,{"$f":"IFERROR(HYPERLINK(VLOOKUP($F617,Наименование!A:O,15,0),VLOOKUP($F617,Наименование!A:O,15,0)),\"\")","v":""},null,null,""]
[null,null,null,null,null,null,null,null,{"$f":"IFERROR(HYPERLINK(VLOOKUP($F618,Наименование!A:O,15,0),VLOOKUP($F618,Наименование!A:O,15,0)),\"\")","v":""},null,null,""]
[null,null,null,null,null,null,null,null,{"$f":"IFERROR(HYPERLINK(VLOOKUP($F619,Наименование!A:O,15,0),VLOOKUP($F619,Наименование!A:O,15,0)),\"\")","v":""},null,null,""]
[null,null,null,null,null,null,null,null,{"$f":"IFERROR(HYPERLINK(VLOOKUP($F620,Наименование!A:O,15,0),VLOOKUP($F620,Наименование!A:O,15,0)),\"\")","v":""},null,null,""]
[null,null,null,null,null,null,null,null,{"$f":"IFERROR(HYPERLINK(VLOOKUP($F621,Наименование!A:O,15,0),VLOOKUP($F621,Наименование!A:O,15,0)),\"\")","v":""},null,null,""]
[null,null,null,null,null,null,null,null,{"$f":"IFERROR(HYPERLINK(VLOOKUP($F622,Наименование!A:O,15,0),VLOOKUP($F622,Наименование!A:O,15,0)),\"\")","v":""},null,null,""]
[null,null,null,null,null,null,null,null,{"$f":"IFERROR(HYPERLINK(VLOOKUP($F623,Наименование!A:O,15,0),VLOOKUP($F623,Наименование!A:O,15,0)),\"\")","v":""},null,null,""]
[null,null,null,null,null,null,null,null,null,null,null,{"$f":"LEFT(E453,12)","v":""}]
[null,null,null,null,null,null,null,null,null,null,null,""]
[null,null,null,null,null,null,null,null,null,null,null,""]
[null,null,null,null,null,null,null,null,null,null,null,""]
[null,null,null,null,null,null,null,null,null,null,null,""]
[null,null,null,null,null,null,null,null,null,null,null,""]
[null,null,null,null,null,null,null,null,null,null,null,""]
[null,null,null,null,null,null,null,null,null,null,null,""]
[null,null,null,null,null,null,null,null,null,null,null,""]
[null,null,null,null,null,null,null,null,null,null,null,""]
[null,null,null,null,null,null,null,null,null,null,null,""]
[null,null,null,null,null,null,null,null,null,null,null,""]
[null,null,null,null,null,null,null,null,null,null,null,""]
[null,null,null,null,null,null,null,null,null,null,null,""]
[null,null,null,null,null,null,null,null,null,null,null,""]
[null,null,null,null,null,null,null,null,null,null,null,""]
[null,null,null,null,null,null,null,null,null,null,null,""]
[null,null,null,null,null,null,null,null,null,null,null,""]
[null,null,null,null,null,null,null,null,null,null,null,""]
[null,null,null,null,null,null,null,null,null,null,null,""]
[null,null,null,null,null,null,null,null,null,null,null,""]
[null,null,null,null,null,null,null,null,null,null,null,""]
[null,null,null,null,null,null,null,null,null,null,null,""]
[null,null,null,null,null,null,null,null,null,null,null,""]
[null,null,null,null,null,null,null,null,null,null,null,""]
[null,null,null,null,null,null,null,null,null,null,null,""]
[null,null,null,null,null,null,null,null,null,null,null,""]
[null,null,null,null,null,null,null,null,null,null,null,""]
[null,null,null,null,null,null,null,null,null,null,null,""]
[null,null,null,null,null,null,null,null,null,null,null,""]
[null,null,null,null,null,null,null,null,null,null,null,""]
[null,null,null,null,null,null,null,null,null,null,null,""]
[null,null,null,null,null,null,null,null,null,null,null,{"$f":"LEFT(E485,12)","v":""}]
[null,null,null,null,null,null,null,null,null,null,null,""]
[null,null,null,null,null,null,null,null,null,null,null,""]
[null,null,null,null,null,null,null,null,null,null,null,""]
[null,null,null,null,null,null,null,null,null,null,null,""]
[null,null,null,null,null,null,null,null,null,null,null,""]
[null,null,null,null,null,null,null,null,null,null,null,""]
[null,null,null,null,null,null,null,null,null,null,null,""]
[null,null,null,null,null,null,null,null,null,null,null,""]
[null,null,null,null,null,null,null,null,null,null,null,""]
[null,null,null,null,null,null,null,null,null,null,null,""]
[null,null,null,null,null,null,null,null,null,null,null,""]
[null,null,null,null,null,null,null,null,null,null,null,""]
[null,null,null,null,null,null,null,null,null,null,null,""]
[null,null,null,null,null,null,null,null,null,null,null,""]
[null,null,null,null,null,null,null,null,null,null,null,""]
[null,null,null,null,null,null,null,null,null,null,null,""]
[null,null,null,null,null,null,null,null,null,null,null,""]
[null,null,null,null,null,null,null,null,null,null,null,""]
[null,null,null,null,null,null,null,null,null,null,null,""]
[null,null,null,null,null,null,null,null,null,null,null,""]
[null,null,null,null,null,null,null,null,null,null,null,""]
[null,null,null,null,null,null,null,null,null,null,null,""]
[null,null,null,null,null,null,null,null,null,null,null,""]
[null,null,null,null,null,null,null,null,null,null,null,""]
[null,null,null,null,null,null,null,null,null,null,null,""]
[null,null,null,null,null,null,null,null,null,null,null,""]
[null,null,null,null,null,null,null,null,null,null,null,""]
[null,null,null,null,null,null,null,null,null,null,null,""]
[null,null,null,null,null,null,null,null,null,null,null,""]
[null,null,null,null,null,null,null,null,null,null,null,""]
[null,null,null,null,null,null,null,null,null,null,null,""]
[null,null,null,null,null,null,null,null,null,null,null,""]
[null,null,null,null,null,null,null,null,null,null,null,""]
[null,null,null,null,null,null,null,null,null,null,null,""]
[null,null,null,null,null,null,null,null,null,null,null,""]
[null,null,null,null,null,null,null,null,null,null,null,""]
[null,null,null,null,null,null,null,null,null,null,null,""]
[null,null,null,null,null,null,null,null,null,null,null,""]
[null,null,null,null,null,null,null,null,null,null,null,""]
[null,null,null,null,null,null,null,null,null,null,null,""]
[null,null,null,null,null,null,null,null,null,null,null,""]
[null,null,null,null,null,null,null,null,null,null,null,""]
[null,null,null,null,null,null,null,null,null,null,null,""]
[null,null,null,null,null,null,null,null,null,null,null,""]
[null,null,null,null,null,null,null,null,null,null,null,""]
[null,null,null,null,null,null,null,null,null,null,null,""]
[null,null,null,null,null,null,null,null,null,null,null,""]
[null,null,null,null,null,null,null,null,null,null,null,""]
[null,null,null,null,null,null,null,null,null,null,null,""]
[null,null,null,null,null,null,null,null,null,null,null,""]
[null,null,null,null,null,null,null,null,null,null,null,""]
[null,null,null,null,null,null,null,null,null,null,null,""]
[null,null,null,null,null,null,null,null,null,null,null,""]
[null,null,null,null,null,null,null,null,null,null,null,""]
[null,null,null,null,null,null,null,null,null,null,null,""]
[null,null,null,null,null,null,null,null,null,null,null,""]
[null,null,null,null,null,null,null,null,null,null,null,""]
[null,null,null,null,null,null,null,null,null,null,null,""]
[null,null,null,null,null,null,null,null,null,null,null,""]
[null,null,null,null,null,null,null,null,null,null,null,""]
[null,null,null,null,null,null,null,null,null,null,null,""]
[null,null,null,null,null,null,null,null,null,null,null,""]
[null,null,null,null,null,null,null,null,null,null,null,""]
[null,null,null,null,null,null,null,null,null,null,null,{"$f":"LEFT(E549,12)","v":""}]
[null,null,null,null,null,null,null,null,null,null,null,""]
[null,null,null,null,null,null,null,null,null,null,null,""]
[null,null,null,null,null,null,null,null,null,null,null,""]
[null,null,null,null,null,null,null,null,null,null,null,""]
[null,null,null,null,null,null,null,null,null,null,null,""]
[null,null,null,null,null,null,null,null,null,null,null,""]
[null,null,null,null,null,null,null,null,null,null,null,""]
[null,null,null,null,null,null,null,null,null,null,null,""]
[null,null,null,null,null,null,null,null,null,null,null,""]
[null,null,null,null,null,null,null,null,null,null,null,""]
[null,null,null,null,null,null,null,null,null,null,null,""]
[null,null,null,null,null,null,null,null,null,null,null,""]
[null,null,null,null,null,null,null,null,null,null,null,""]
[null,null,null,null,null,null,null,null,null,null,null,""]
[null,null,null,null,null,null,null,null,null,null,null,""]
[null,null,null,null,null,null,null,null,null,null,null,""]
[null,null,null,null,null,null,null,null,null,null,null,""]
[null,null,null,null,null,null,null,null,null,null,null,""]
[null,null,null,null,null,null,null,null,null,null,null,""]
[null,null,null,null,null,null,null,null,null,null,null,""]
[null,null,null,null,null,null,null,null,null,null,null,""]
[null,null,null,null,null,null,null,null,null,null,null,""]
[null,null,null,null,null,null,null,null,null,null,null,""]
[null,null,null,null,null,null,null,null,null,null,null,""]
[null,null,null,null,null,null,null,null,null,null,null,""]
[null,null,null,null,null,null,null,null,null,null,null,""]
[null,null,null,null,null,null,null,null,null,null,null,""]
[null,null,null,null,null,null,null,null,null,null,null,""]
[null,null,null,null,null,null,null,null,null,null,null,""]
[null,null,null,null,null,null,null,null,null,null,null,""]
[null,null,null,null,null,null,null,null,null,null,null,""]
[null,null,null,null,null,null,null,null,null,null,null,""]
[null,null,null,null,null,null,null,null,null,null,null,""]
[null,null,null,null,null,null,null,null,null,null,null,""]
[null,null,null,null,null,null,null,null,null,null,null,""]
[null,null,null,null,null,null,null,null,null,null,null,""]
[null,null,null,null,null,null,null,null,null,null,null,""]
[null,null,null,null,null,null,null,null,null,null,null,""]
[null,null,null,null,null,null,null,null,null,null,null,""]
[null,null,null,null,null,null,null,null,null,null,null,""]
[null,null,null,null,null,null,null,null,null,null,null,""]
[null,null,null,null,null,null,null,null,null,null,null,""]
[null,null,null,null,null,null,null,null,null,null,null,""]
[null,null,null,null,null,null,null,null,null,null,null,""]
[null,null,null,null,null,null,null,null,null,null,null,""]
[null,null,null,null,null,null,null,null,null,null,null,""]
[null,null,null,null,null,null,null,null,null,null,null,""]
[null,null,null,null,null,null,null,null,null,null,null,""]
[null,null,null,null,null,null,null,null,null,null,null,""]
[null,null,null,null,null,null,null,null,null,null,null,""]
[null,null,null,null,null,null,null,null,null,null,null,""]
[null,null,null,null,null,null,null,null,null,null,null,""]
[null,null,null,null,null,null,null,null,null,null,null,""]
[null,null,null,null,null,null,null,null,null,null,null,""]
[null,null,null,null,null,null,null,null,null,null,null,""]
[null,null,null,null,null,null,null,null,null,null,null,""]
[null,null,null,null,null,null,null,null,null,null,null,""]
[null,null,null,null,null,null,null,null,null,null,null,""]
[null,null,null,null,null,null,null,null,null,null,null,""]
[null,null,null,null,null,null,null,null,null,null,null,""]
[null,null,null,null,null,null,null,null,null,null,null,""]
[null,null,null,null,null,null,null,null,null,null,null,""]
[null,null,null,null,null,null,null,null,null,null,null,""]
[null,null,null,null,null,null,null,null,null,null,null,{"$f":"LEFT(E613,12)","v":""}]
[null,null,null,null,null,null,null,null,null,null,null,""]
[null,null,null,null,null,null,null,null,null,null,null,""]
[null,null,null,null,null,null,null,null,null,null,null,""]
[null,null,null,null,null,null,null,null,null,null,null,""]
[null,null,null,null,null,null,null,null,null,null,null,""]
[null,null,null,null,null,null,null,null,null,null,null,""]
[null,null,null,null,null,null,null,null,null,null,null,""]
[null,null,null,null,null,null,null,null,null,null,null,""]
[null,null,null,null,null,null,null,null,null,null,null,""]
[null,null,null,null,null,null,null,null,null,null,null,""]
[null,null,null,null,null,null,null,null,null,null,null,""]
[null,null,null,null,null,null,null,null,null,null,null,""]
[null,null,null,null,null,null,null,null,null,null,null,""]
[null,null,null,null,null,null,null,null,null,null,null,""]
[null,null,null,null,null,null,null,null,null,null,null,""]
[null,null,null,null,null,null,null,null,null,null,null,""]
[null,null,null,null,null,null,null,null,null,null,null,""]
[null,null,null,null,null,null,null,null,null,null,null,""]
[null,null,null,null,null,null,null,null,null,null,null,""]
[null,null,null,null,null,null,null,null,null,null,null,""]
[null,null,null,null,null,null,null,null,null,null,null,""]
[null,null,null,null,null,null,null,null,null,null,null,""]
[null,null,null,null,null,null,null,null,null,null,null,""]
[null,null,null,null,null,null,null,null,null,null,null,""]
[null,null,null,null,null,null,null,null,null,null,null,""]
[null,null,null,null,null,null,null,null,null,null,null,""]
[null,null,null,null,null,null,null,null,null,null,null,""]
[null,null,null,null,null,null,null,null,null,null,null,""]
[null,null,null,null,null,null,null,null,null,null,null,""]
[null,null,null,null,null,null,null,null,null,null,null,""]
[null,null,null,null,null,null,null,null,null,null,null,""]
[null,null,null,null,null,null,null,null,null,null,null,""]
[null,null,null,null,null,null,null,null,null,null,null,""]
[null,null,null,null,null,null,null,null,null,null,null,""]
[null,null,null,null,null,null,null,null,null,null,null,""]
[null,null,null,null,null,null,null,null,null,null,null,""]
[null,null,null,null,null,null,null,null,null,null,null,""]
[null,null,null,null,null,null,null,null,null,null,null,""]
[null,null,null,null,null,null,null,null,null,null,null,""]
[null,null,null,null,null,null,null,null,null,null,null,""]
[null,null,null,null,null,null,null,null,null,null,null,""]
[null,null,null,null,null,null,null,null,null,null,null,""]
[null,null,null,null,null,null,null,null,null,null,null,""]
[null,null,null,null,null,null,null,null,null,null,null,""]
[null,null,null,null,null,null,null,null,null,null,null,""]
[null,null,null,null,null,null,null,null,null,null,null,""]
[null,null,null,null,null,null,null,null,null,null,null,""]
[null,null,null,null,null,null,null,null,null,null,null,""]
[null,null,null,null,null,null,null,null,null,null,null,""]
[null,null,null,null,null,null,null,null,null,null,null,""]
[null,null,null,null,null,null,null,null,null,null,null,""]
[null,null,null,null,null,null,null,null,null,null,null,""]
[null,null,null,null,null,null,null,null,null,null,null,""]
[null,null,null,null,null,null,null,null,null,null,null,""]
[null,null,null,null,null,null,null,null,null,null,null,""]
[null,null,null,null,null,null,null,null,null,null,null,""]
[null,null,null,null,null,null,null,null,null,null,null,""]
[null,null,null,null,null,null,null,null,null,null,null,""]
[null,null,null,null,null,null,null,null,null,null,null,""]
[null,null,null,null,null,null,null,null,null,null,null,""]
[null,null,null,null,null,null,null,null,null,null,null,""]
[null,null,null,null,null,null,null,null,null,null,null,""]
[null,null,null,null,null,null,null,null,null,null,null,""]
[null,null,null,null,null,null,null,null,null,null,null,{"$f":"LEFT(E677,12)","v":""}]
[null,null,null,null,null,null,null,null,null,null,null,""]
[null,null,null,null,null,null,null,null,null,null,null,""]
[null,null,null,null,null,null,null,null,null,null,null,""]
[null,null,null,null,null,null,null,null,null,null,null,""]
[null,null,null,null,null,null,null,null,null,null,null,""]
[null,null,null,null,null,null,null,null,null,null,null,""]
[null,null,null,null,null,null,null,null,null,null,null,""]
[null,null,null,null,null,null,null,null,null,null,null,""]
[null,null,null,null,null,null,null,null,null,null,null,""]
[null,null,null,null,null,null,null,null,null,null,null,""]
[null,null,null,null,null,null,null,null,null,null,null,""]
[null,null,null,null,null,null,null,null,null,null,null,""]
[null,null,null,null,null,null,null,null,null,null,null,""]
[null,null,null,null,null,null,null,null,null,null,null,""]
[null,null,null,null,null,null,null,null,null,null,null,""]
[null,null,null,null,null,null,null,null,null,null,null,""]
[null,null,null,null,null,null,null,null,null,null,null,""]
[null,null,null,null,null,null,null,null,null,null,null,""]
[null,null,null,null,null,null,null,null,null,null,null,""]
[null,null,null,null,null,null,null,null,null,null,null,""]
[null,null,null,null,null,null,null,null,null,null,null,""]
[null,null,null,null,null,null,null,null,null,null,null,""]
[null,null,null,null,null,null,null,null,null,null,null,""]
[null,null,null,null,null,null,null,null,null,null,null,""]
[null,null,null,null,null,null,null,null,null,null,null,""]
[null,null,null,null,null,null,null,null,null,null,null,""]
[null,null,null,null,null,null,null,null,null,null,null,""]
[null,null,null,null,null,null,null,null,null,null,null,""]
[null,null,null,null,null,null,null,null,null,null,null,""]
[null,null,null,null,null,null,null,null,null,null,null,""]
[null,null,null,null,null,null,null,null,null,null,null,""]
[null,null,null,null,null,null,null,null,null,null,null,""]
[null,null,null,null,null,null,null,null,null,null,null,""]
[null,null,null,null,null,null,null,null,null,null,null,""]
[null,null,null,null,null,null,null,null,null,null,null,""]
[null,null,null,null,null,null,null,null,null,null,null,""]
[null,null,null,null,null,null,null,null,null,null,null,""]
[null,null,null,null,null,null,null,null,null,null,null,""]
[null,null,null,null,null,null,null,null,null,null,null,""]
[null,null,null,null,null,null,null,null,null,null,null,""]
[null,null,null,null,null,null,null,null,null,null,null,""]
[null,null,null,null,null,null,null,null,null,null,null,""]
[null,null,null,null,null,null,null,null,null,null,null,""]
[null,null,null,null,null,null,null,null,null,null,null,""]
[null,null,null,null,null,null,null,null,null,null,null,""]
[null,null,null,null,null,null,null,null,null,null,null,""]
[null,null,null,null,null,null,null,null,null,null,null,""]
[null,null,null,null,null,null,null,null,null,null,null,""]
[null,null,null,null,null,null,null,null,null,null,null,""]
[null,null,null,null,null,null,null,null,null,null,null,""]
[null,null,null,null,null,null,null,null,null,null,null,""]
[null,null,null,null,null,null,null,null,null,null,null,""]
[null,null,null,null,null,null,null,null,null,null,null,""]
[null,null,null,null,null,null,null,null,null,null,null,""]
[null,null,null,null,null,null,null,null,null,null,null,""]
[null,null,null,null,null,null,null,null,null,null,null,""]
[null,null,null,null,null,null,null,null,null,null,null,""]
[null,null,null,null,null,null,null,null,null,null,null,""]
[null,null,null,null,null,null,null,null,null,null,null,""]
[null,null,null,null,null,null,null,null,null,null,null,""]
[null,null,null,null,null,null,null,null,null,null,null,""]
[null,null,null,null,null,null,null,null,null,null,null,""]
[null,null,null,null,null,null,null,null,null,null,null,""]
[null,null,null,null,null,null,null,null,null,null,null,{"$f":"LEFT(E741,12)","v":""}]
[null,null,null,null,null,null,null,null,null,null,null,""]
[null,null,null,null,null,null,null,null,null,null,null,""]
[null,null,null,null,null,null,null,null,null,null,null,""]
[null,null,null,null,null,null,null,null,null,null,null,""]
[null,null,null,null,null,null,null,null,null,null,null,""]
[null,null,null,null,null,null,null,null,null,null,null,""]
[null,null,null,null,null,null,null,null,null,null,null,""]
[null,null,null,null,null,null,null,null,null,null,null,""]
[null,null,null,null,null,null,null,null,null,null,null,""]
[null,null,null,null,null,null,null,null,null,null,null,""]
[null,null,null,null,null,null,null,null,null,null,null,""]
[null,null,null,null,null,null,null,null,null,null,null,""]
[null,null,null,null,null,null,null,null,null,null,null,""]
[null,null,null,null,null,null,null,null,null,null,null,""]
[null,null,null,null,null,null,null,null,null,null,null,""]
[null,null,null,null,null,null,null,null,null,null,null,""]
[null,null,null,null,null,null,null,null,null,null,null,""]
[null,null,null,null,null,null,null,null,null,null,null,""]
[null,null,null,null,null,null,null,null,null,null,null,""]
[null,null,null,null,null,null,null,null,null,null,null,""]
[null,null,null,null,null,null,null,null,null,null,null,""]
[null,null,null,null,null,null,null,null,null,null,null,""]
[null,null,null,null,null,null,null,null,null,null,null,""]
[null,null,null,null,null,null,null,null,null,null,null,""]
[null,null,null,null,null,null,null,null,null,null,null,""]
[null,null,null,null,null,null,null,null,null,null,null,""]
[null,null,null,null,null,null,null,null,null,null,null,""]
[null,null,null,null,null,null,null,null,null,null,null,""]
[null,null,null,null,null,null,null,null,null,null,null,""]
[null,null,null,null,null,null,null,null,null,null,null,""]
[null,null,null,null,null,null,null,null,null,null,null,""]
[null,null,null,null,null,null,null,null,null,null,null,""]
[null,null,null,null,null,null,null,null,null,null,null,""]
[null,null,null,null,null,null,null,null,null,null,null,""]
[null,null,null,null,null,null,null,null,null,null,null,""]
[null,null,null,null,null,null,null,null,null,null,null,""]
[null,null,null,null,null,null,null,null,null,null,null,""]
[null,null,null,null,null,null,null,null,null,null,null,""]
[null,null,null,null,null,null,null,null,null,null,null,""]
[null,null,null,null,null,null,null,null,null,null,null,""]
[null,null,null,null,null,null,null,null,null,null,null,""]
[null,null,null,null,null,null,null,null,null,null,null,""]
[null,null,null,null,null,null,null,null,null,null,null,""]
[null,null,null,null,null,null,null,null,null,null,null,""]
[null,null,null,null,null,null,null,null,null,null,null,""]
[null,null,null,null,null,null,null,null,null,null,null,""]
[null,null,null,null,null,null,null,null,null,null,null,""]
[null,null,null,null,null,null,null,null,null,null,null,""]
[null,null,null,null,null,null,null,null,null,null,null,""]
[null,null,null,null,null,null,null,null,null,null,null,""]
[null,null,null,null,null,null,null,null,null,null,null,""]
[null,null,null,null,null,null,null,null,null,null,null,""]
[null,null,null,null,null,null,null,null,null,null,null,""]
[null,null,null,null,null,null,null,null,null,null,null,""]
[null,null,null,null,null,null,null,null,null,null,null,""]
[null,null,null,null,null,null,null,null,null,null,null,""]
[null,null,null,null,null,null,null,null,null,null,null,""]
[null,null,null,null,null,null,null,null,null,null,null,""]
[null,null,null,null,null,null,null,null,null,null,null,""]
[null,null,null,null,null,null,null,null,null,null,null,""]
[null,null,null,null,null,null,null,null,null,null,null,""]
[null,null,null,null,null,null,null,null,null,null,null,""]
[null,null,null,null,null,null,null,null,null,null,null,""]
[null,null,null,null,null,null,null,null,null,null,null,{"$f":"LEFT(E805,12)","v":""}]
[null,null,null,null,null,null,null,null,null,null,null,""]
[null,null,null,null,null,null,null,null,null,null,null,""]
[null,null,null,null,null,null,null,null,null,null,null,""]
[null,null,null,null,null,null,null,null,null,null,null,""]
[null,null,null,null,null,null,null,null,null,null,null,""]
[null,null,null,null,null,null,null,null,null,null,null,""]
[null,null,null,null,null,null,null,null,null,null,null,""]
[null,null,null,null,null,null,null,null,null,null,null,""]
[null,null,null,null,null,null,null,null,null,null,null,""]
[null,null,null,null,null,null,null,null,null,null,null,""]
[null,null,null,null,null,null,null,null,null,null,null,""]
[null,null,null,null,null,null,null,null,null,null,null,""]
[null,null,null,null,null,null,null,null,null,null,null,""]
[null,null,null,null,null,null,null,null,null,null,null,""]
[null,null,null,null,null,null,null,null,null,null,null,""]
[null,null,null,null,null,null,null,null,null,null,null,""]
[null,null,null,null,null,null,null,null,null,null,null,""]
[null,null,null,null,null,null,null,null,null,null,null,""]
[null,null,null,null,null,null,null,null,null,null,null,""]
[null,null,null,null,null,null,null,null,null,null,null,""]
[null,null,null,null,null,null,null,null,null,null,null,""]
[null,null,null,null,null,null,null,null,null,null,null,""]
[null,null,null,null,null,null,null,null,null,null,null,""]
[null,null,null,null,null,null,null,null,null,null,null,""]
[null,null,null,null,null,null,null,null,null,null,null,""]
[null,null,null,null,null,null,null,null,null,null,null,""]
[null,null,null,null,null,null,null,null,null,null,null,""]
[null,null,null,null,null,null,null,null,null,null,null,""]
[null,null,null,null,null,null,null,null,null,null,null,""]
[null,null,null,null,null,null,null,null,null,null,null,""]
[null,null,null,null,null,null,null,null,null,null,null,""]
[null,null,null,null,null,null,null,null,null,null,null,""]

{"sheet":"Лист1","index":1,"n_rows":42,"n_cols":10,"rows_kept":42,"cut":false,"hidden":true,"merged":[[2,1,2,4],[9,1,9,4],[16,1,16,4],[1,1,1,4],[6,6,6,8]]}
[{"$f":"COUNTIF(Конфигуратор!L:L,\"Спецификация\")","v":1},"№ позиции","Артикул","Наименование","Количество","Ссылка"]
["Индекс",{"$f":"IF(SUM(B4:B18)=0,0,\"Спецификация \"&A1+1)","v":"Спецификация 2"}]
[{"$f":"IF(OR(C4=\"\",C4=\"Ошибка параметров ввода\",C5=\"Ошибка параметров ввода\",C6=\"Ошибка параметров ввода\",C7=\"Ошибка параметров ввода\",C8=\"Ошибка параметров ввода\"),0,1)","v":1},{"$f":"IF(SUM(A3:A7)=0,,\"Кнопка\")","v":"Кнопка"}]
[{"$f":"IF(OR(C5=\"\",C4=\"Ошибка параметров ввода\",C5=\"Ошибка параметров ввода\",C6=\"Ошибка параметров ввода\",C7=\"Ошибка параметров ввода\",C8=\"Ошибка параметров ввода\"),0,1)","v":1},{"$f":"IF(A3=1,A3,)","v":1},{"$f":"IFERROR(VLOOKUP(Конфигуратор!$B$18&Конфигуратор!$B$22&Конфигуратор!$B$24&Конфигуратор!$B$26&Конфигуратор!$B$20,Наименование!$M:$N,2,0),\"Ошибка параметров ввода\")","v":"M22P-FMLWA"},{"$f":"IFERROR(VLOOKUP(C4,Наименование!$A:$B,2,0),\"\")","v":"Головка кнопки плоская прозрачная без фиксации, белая, алюминий"},{"$f":"IF(C4=\"\",\"\",1)","v":1},{"$f":"HYPERLINK(VLOOKUP($C$4,Наименование!A:O,15,0),VLOOKUP($C$4,Наименование!A:O,15,0))","v":"https://www.dkc.ru/ru/catalog/2028/M22P-FMLWA/"}]
[{"$f":"IF(OR(C6=\"\",C4=\"Ошибка параметров ввода\",C5=\"Ошибка параметров ввода\",C6=\"Ошибка параметров ввода\",C7=\"Ошибка параметров ввода\",C8=\"Ошибка параметров ввода\"),0,1)","v":1},{"$f":"IF(A4>0,A4+B4,)","v":2},{"$f":"IF(C4=\"Ошибка параметров ввода\",\"\",\"M22MF\")","v":"M22MF"},{"$f":"IFERROR(VLOOKUP(C5,Наименование!$A:$B,2,0),\"\")","v":"Монтажное основание для крепления головок кнопок, переключателей и контактных блоков"},{"$f":"IF(C5=\"\",\"\",1)","v":1},{"$f":"HYPERLINK(VLOOKUP($C$5,Наименование!A:O,15,0),VLOOKUP($C$5,Наименование!A:O,15,0))","v":"https://www.dkc.ru/ru/catalog/2028/M22MF/"}]
[{"$f":"IF(OR(C7=\"\",C4=\"Ошибка параметров ввода\",C5=\"Ошибка параметров ввода\",C6=\"Ошибка параметров ввода\",C7=\"Ошибка параметров ввода\",C8=\"Ошибка параметров ввода\"),0,1)","v":1},{"$f":"IF(A5>0,A5+A4+A3,)","v":3},{"$f":"IFERROR(IF(Конфигуратор!$B$20=\"\",VLOOKUP(Конфигуратор!$B$24&Конфигуратор!$B$28&\"Нет\"&Конфигуратор!$B$38,Наименование!$M:$N,2,0),VLOOKUP(Конфигуратор!$B$24&Конфигуратор!$B$28&Конфигуратор!$B$20&Конфигуратор!$B$38,Наименование!$M:$N,2,0)),IF(Конфигуратор!$B$20=\"Да\",\"Ошибка параметров ввода\",\"\"))","v":"MC-L24WPS"},{"$f":"IFERROR(VLOOKUP(C6,Наименование!$A:$B,2,0),\"\")","v":"Контактный блок с клеммными зажимами под винт со светодиодом на  9-24В, белый"},{"$f":"IF(C6=\"\",\"\",1)","v":1},{"$f":"HYPERLINK(VLOOKUP($C$6,Наименование!A:O,15,0),VLOOKUP($C$6,Наименование!A:O,15,0))","v":"https://www.dkc.ru/ru/catalog/2028/MC-L24WPS/"}]
[{"$f":"IF(OR(C8=\"\",C4=\"Ошибка параметров ввода\",C5=\"Ошибка параметров ввода\",C6=\"Ошибка параметров ввода\",C7=\"Ошибка параметров ввода\",C8=\"Ошибка параметров ввода\"),0,1)","v":0},{"$f":"IF(A6>0,A6+A5+A4+A3,)","v":4},{"$f":"IF(Конфигуратор!$B$30=\"Да\",IF(Лист1!E7=0,\"Ошибка параметров ввода\",IFERROR(VLOOKUP(Конфигуратор!$B$28&Конфигуратор!$B$30&\"Нет\",Наименование!$M:$N,2,0),\"\")),IF(Конфигуратор!$B$34=\"Нет\",\"Ошибка параметров ввода\",\"\"))","v":"MC-NOPS"},{"$f":"IFERROR(VLOOKUP(C7,Наименование!$A:$B,2,0),\"\")","v":"Контактный блок с клеммными зажимами под винт, нормально-открытый"},{"$f":"Конфигуратор!$B$32","v":3},{"$f":"HYPERLINK(VLOOKUP($C$7,Наименование!A:O,15,0),VLOOKUP($C$7,Наименование!A:O,15,0))","v":"https://www.dkc.ru/ru/catalog/2028/MC-NOPS/"},"Пустая ячейка для заполнения",null,null," "]
[null,{"$f":"IF(A7>0,A7+A6+A5+A3+A4,)","v":0},{"$f":"IF(Конфигуратор!$B$34=\"Да\",IF(Лист1!E8=0,\"Ошибка параметров ввода\",IFERROR(VLOOKUP(Конфигуратор!$B$28&\"Нет\"&Конфигуратор!$B$34,Наименование!$M:$N,2,0),\"\")),IF(Конфигуратор!$B$30=\"Нет\",\"Ошибка параметров ввода\",\"\"))","v":""},{"$f":"IFERROR(VLOOKUP(C8,Наименование!$A:$B,2,0),\"\")","v":""},{"$f":"Конфигуратор!$B$36","v":0},{"$f":"HYPERLINK(VLOOKUP($C$8,Наименование!A:O,15,0),VLOOKUP($C$8,Наименование!A:O,15,0))","v":{"$error":"#N/A"}}]
[null,{"$f":"IF(B3=0,0,\"\")","v":""}]
[{"$f":"IF(OR(C11=\"\",C11=\"Ошибка параметров ввода\",C12=\"Ошибка параметров ввода\",C13=\"Ошибка параметров ввода\",C14=\"Ошибка параметров ввода\",C15=\"Ошибка параметров ввода\"),0,1)","v":1},{"$f":"IF(SUM(A10:A14)=0,,\"Переключатель\")","v":"Переключатель"}]
[{"$f":"IF(OR(C12=\"\",C11=\"Ошибка параметров ввода\",C12=\"Ошибка параметров ввода\",C13=\"Ошибка параметров ввода\",C14=\"Ошибка параметров ввода\",C15=\"Ошибка параметров ввода\"),0,1)","v":1},{"$f":"IF(A10=1,A10,)","v":1},{"$f":"IFERROR(VLOOKUP(Конфигуратор!$B$43&Конфигуратор!$B$47&Конфигуратор!$B$49&Конфигуратор!$B$45,Наименование!$M:$N,2,0),\"Ошибка параметров ввода\")","v":"M22S-L3P"},{"$f":"IFERROR(VLOOKUP(C11,Наименование!$A:$B,2,0),\"\")","v":"Головака переключателя на 3 положения с фиксацией стандартная ручка, черный"},{"$f":"IF(C11=\"\",\"\",1)","v":1},{"$f":"HYPERLINK(VLOOKUP($C$11,Наименование!A:O,15,0),VLOOKUP($C$11,Наименование!A:O,15,0))","v":"https://www.dkc.ru/ru/catalog/2028/M22S-L3P/"}]
[{"$f":"IF(OR(C13=\"\",C11=\"Ошибка параметров ввода\",C12=\"Ошибка параметров ввода\",C13=\"Ошибка параметров ввода\",C14=\"Ошибка параметров ввода\",C15=\"Ошибка параметров ввода\"),0,1)","v":1},{"$f":"IF(A11>0,A11+B11,)","v":2},{"$f":"IF(C11=\"Ошибка параметров ввода\",\"\",\"M22MF\")","v":"M22MF"},{"$f":"IFERROR(VLOOKUP(C12,Наименование!$A:$B,2,0),\"\")","v":"Монтажное основание для крепления головок кнопок, переключателей и контактных блоков"},{"$f":"IF(C12=\"\",\"\",1)","v":1},{"$f":"HYPERLINK(VLOOKUP($C$12,Наименование!A:O,15,0),VLOOKUP($C$12,Наименование!A:O,15,0))","v":"https://www.dkc.ru/ru/catalog/2028/M22MF/"}]
[{"$f":"IF(OR(C14=\"\",C11=\"Ошибка параметров ввода\",C12=\"Ошибка параметров ввода\",C13=\"Ошибка параметров ввода\",C14=\"Ошибка параметров ввода\",C15=\"Ошибка параметров ввода\"),0,1)","v":1},{"$f":"IF(A12>0,A12+A11+A10,)","v":3},{"$f":"IFERROR(IF(Конфигуратор!$B$51=\"Да\",VLOOKUP(Конфигуратор!$B$55&Конфигуратор!$B$57&Конфигуратор!$B$51&Конфигуратор!$B$53,Наименование!$M:$N,2,0),\"\"),\"\")","v":"MC-L220RPP"},{"$f":"IFERROR(VLOOKUP(C13,Наименование!$A:$B,2,0),\"\")","v":"Контактный  блок с клеммным безвинтовым зажимом со светодиодом на 220В, красный"},{"$f":"IF(C13=\"\",\"\",1)","v":1},{"$f":"HYPERLINK(VLOOKUP($C$13,Наименование!A:O,15,0),VLOOKUP($C$13,Наименование!A:O,15,0))","v":"https://www.dkc.ru/ru/catalog/2028/MC-L220RPP/"}]
[{"$f":"IF(OR(C15=\"\",C11=\"Ошибка параметров ввода\",C12=\"Ошибка параметров ввода\",C13=\"Ошибка параметров ввода\",C14=\"Ошибка параметров ввода\",C15=\"Ошибка параметров ввода\"),0,1)","v":0},{"$f":"IF(A13>0,A13+A12+A11+A10,)","v":4},{"$f":"IF(Конфигуратор!$B$59=\"Да\",IF(Лист1!E14=0,\"Ошибка параметров ввода\",IFERROR(VLOOKUP(Конфигуратор!$B$57&Конфигуратор!$B$59&\"Нет\",Наименование!$M:$N,2,0),\"\")),IF(Конфигуратор!$B$63=\"Нет\",\"Ошибка параметров ввода\",\"\"))","v":"MC-NOPP"},{"$f":"IFERROR(VLOOKUP(C14,Наименование!$A:$B,2,0),\"\")","v":"Контактный блок с клеммным безвинтовым  зажимом, нормально-открытый"},{"$f":"Конфигуратор!$B$61","v":1},{"$f":"HYPERLINK(VLOOKUP($C$14,Наименование!A:O,15,0),VLOOKUP($C$14,Наименование!A:O,15,0))","v":"https://www.dkc.ru/ru/catalog/2028/MC-NOPP/"}]
[null,{"$f":"IF(A14>0,A14+A13+A12+A10+A11,)","v":0},{"$f":"IF(Конфигуратор!$B$63=\"Да\",IF(Лист1!E15=0,\"Ошибка параметров ввода\",IFERROR(VLOOKUP(Конфигуратор!$B$57&\"Нет\"&Конфигуратор!$B$63,Наименование!$M:$N,2,0),\"\")),IF(Конфигуратор!$B$59=\"Нет\",\"Ошибка параметров ввода\",\"\"))","v":""},{"$f":"IFERROR(VLOOKUP(C15,Наименование!$A:$B,2,0),\"\")","v":""},{"$f":"Конфигуратор!$B$65","v":0},{"$f":"HYPERLINK(VLOOKUP($C$15,Наименование!A:O,15,0),VLOOKUP($C$15,Наименование!A:O,15,0))","v":{"$error":"#N/A"}}]
[null,{"$f":"IF(B10=0,0,\"\")","v":""}]
[{"$f":"IF(C18=\"\",0,1)","v":1},{"$f":"IF(A17=0,,\"Сигнальный индикатор\")","v":"Сигнальный индикатор"}]
[null,{"$f":"IF(A17>0,A17,)","v":1},{"$f":"IFERROR(VLOOKUP(Конфигуратор!$B$70&Конфигуратор!$B$76&Конфигуратор!$B$74&Конфигуратор!$B$72,Наименование!$M:$N,2,0),\"\")","v":"M22L-F220RAP"},{"$f":"IFERROR(VLOOKUP(C18,Наименование!A:B,2,0),\"\")","v":"Сигнальная лампа со встроенным диодом 220В, красная, алюминиевое кольцо, зажим Plug-In"},{"$f":"IF(C18=\"\",\"\",1)","v":1},{"$f":"HYPERLINK(VLOOKUP($C$18,Наименование!A:O,15,0),VLOOKUP($C$18,Наименование!A:O,15,0))","v":"https://www.dkc.ru/ru/catalog/2028/M22L-F220RAP/"}]
[{"$f":"MAX(A3:A18)","v":1},{"$f":"IF(B17=0,0,\"\")","v":""},null,null,null,null,null,"J","B","Правила заполнения"]
[null,null,null,null,null,null,null,20,20,{"$f":"IF(Конфигуратор!$B$18=\"Грибовидная\",\"Да\",IF(Конфигуратор!$B$24=\"Чёрный\",\"Нет\",\"\"))","v":""}]
[]
[null,null,null,null,null,null,null,22,22,{"$f":"IF(Конфигуратор!$B$18=\"Грибовидная\",\"С фиксацией\",\"\")","v":""}]
[]
[null,null,null,null,null,null,null,23,24,{"$f":"IF(Конфигуратор!$B$18=\"Грибовидная\",\"Красный\",\"\")","v":""}]
[]
[null,null,null,null,null,null,null,26,26]
[]
[null,null,null,null,null,null,null,28,32,{"$f":"IF(Конфигуратор!$B$30=\"Нет\",0,\"\")","v":""}]
[]
[null,null,null,null,null,null,null,30,36,{"$f":"IF(Конфигуратор!$B$34=\"Нет\",0,\"\")","v":0}]
[]
[null,null,null,null,null,null,null,32,38,{"$f":"IF(Конфигуратор!$B$20=\"Нет\",\"Нет\",$J$7)","v":" "}]
[]
[null,null,null,null,null,null,null,34,49]
[]
[null,null,null,null,null,null,null,36,51,{"$f":"IF(Конфигуратор!$B$43<>\"\",\"Да\",\"\")","v":"Да"}]
[]
[null,null,null,null,null,null,null,38,61,{"$f":"IF(Конфигуратор!$B$59=\"Нет\",0,$J$7)","v":" "}]
[]
[null,null,null,null,null,null,null,40,65,{"$f":"IF(Конфигуратор!$B$63=\"Нет\",0,$J$7)","v":0}]
[]
[null,null,null,null,null,null,null,42,74]

{"sheet":"Наименование","index":2,"n_rows":180,"n_cols":15,"rows_kept":180,"cut":false,"hidden":true,"merged":[]}
["Артикул","Наименование","1.Вид кнопки","8.С возможностью подсветки","2.Механизм","3.Цвет","4.Материал кольца","5. Тип зажима контактного блока","6.Наличие NO контактов","7.Наличие NC контактов","9.Напряжение сети","Положения",null,"Артикул","Ссылка"]
["M22P-FLLRP","Головка кнопки плоская прозрачная с фиксацией, красная","Плоская","Да","С фиксацией","Красный","Пластик",null,null,null,null,null,{"$f":"C2&E2&F2&G2&H2&I2&J2&D2&K2&L2","v":"ПлоскаяС фиксациейКрасныйПластикДа"},"M22P-FLLRP","https://www.dkc.ru/ru/catalog/2028/M22P-FLLRP/ "]
["M22P-FLLGP","Головка кнопки плоская прозрачная с фиксацией, зеленая","Плоская","Да","С фиксацией","Зелёный","Пластик",null,null,null,null,null,{"$f":"C3&E3&F3&G3&H3&I3&J3&D3&K3&L3","v":"ПлоскаяС фиксациейЗелёныйПластикДа"},"M22P-FLLGP","https://www.dkc.ru/ru/catalog/2028/M22P-FLLGP/ "]
["M22P-FLLBP","Головка кнопки плоская прозрачная с фиксацией, синяя","Плоская","Да","С фиксацией","Синий","Пластик",null,null,null,null,null,"ПлоскаяС фиксациейСинийПластикДа","M22P-FLLBP","https://www.dkc.ru/ru/catalog/2028/M22P-FLLBP/ "]
["M22P-FLLYP","Головка кнопки плоская прозрачная с фиксацией, жёлтая","Плоская","Да","С фиксацией","Жёлтый","Пластик",null,null,null,null,null,"ПлоскаяС фиксациейЖёлтыйПластикДа","M22P-FLLYP","https://www.dkc.ru/ru/catalog/2028/M22P-FLLYP/ "]
["M22P-FLLWP","Головка кнопки плоская прозрачная с фиксацией, белая","Плоская","Да","С фиксацией","Белый","Пластик",null,null,null,null,null,"ПлоскаяС фиксациейБелыйПластикДа","M22P-FLLWP","https://www.dkc.ru/ru/catalog/2028/M22P-FLLWP/ "]
["M22P-FMLRP","Головка кнопки плоская прозрачная без фиксации, красная","Плоская","Да","Без фиксации","Красный","Пластик",null,null,null,null,null,"ПлоскаяБез фиксацииКрасныйПластикДа","M22P-FMLRP","https://www.dkc.ru/ru/catalog/2028/M22P-FMLRP/ "]
["M22P-FMLGP","Головка кнопки плоская  прозрачная без фиксации, зеленая","Плоская","Да","Без фиксации","Зелёный","Пластик",null,null,null,null,null,"ПлоскаяБез фиксацииЗелёныйПластикДа","M22P-FMLGP","https://www.dkc.ru/ru/catalog/2028/M22P-FMLGP/ "]
["M22P-FMLYP","Головка кнопки плоская прозрачная без фиксации, желтая","Плоская","Да","Без фиксации","Жёлтый","Пластик",null,null,null,null,null,"ПлоскаяБез фиксацииЖёлтыйПластикДа","M22P-FMLYP","https://www.dkc.ru/ru/catalog/2028/M22P-FMLYP/ "]
["M22P-FMLBP","Головка кнопки плоская прозрачная без фиксации, синяя","Плоская","Да","Без фиксации","Синий","Пластик",null,null,null,null,null,"ПлоскаяБез фиксацииСинийПластикДа","M22P-FMLBP","https://www.dkc.ru/ru/catalog/2028/M22P-FMLBP/ "]
["M22P-FMLWP","Головка кнопки плоская прозрачная без фиксации, белая","Плоская","Да","Без фиксации","Белый","Пластик",null,null,null,null,null,"ПлоскаяБез фиксацииБелыйПластикДа","M22P-FMLWP","https://www.dkc.ru/ru/catalog/2028/M22P-FMLWP/ "]
["M22P-FMRP","Головка кнопки плоская без фиксации, красная","Плоская","Нет","Без фиксации","Красный","Пластик",null,null,null,null,null,"ПлоскаяБез фиксацииКрасныйПластикНет","M22P-FMRP","https://www.dkc.ru/ru/catalog/2028/M22P-FMRP/ "]
["M22P-FMGP","Головка кнопки плоская без фиксации, зеленая","Плоская","Нет","Без фиксации","Зелёный","Пластик",null,null,null,null,null,"ПлоскаяБез фиксацииЗелёныйПластикНет","M22P-FMGP","https://www.dkc.ru/ru/catalog/2028/M22P-FMGP/ "]
["M22P-FMBP","Головка кнопки плоская без фиксации, синяя","Плоская","Нет","Без фиксации","Синий","Пластик",null,null,null,null,null,"ПлоскаяБез фиксацииСинийПластикНет","M22P-FMBP","https://www.dkc.ru/ru/catalog/2028/M22P-FMBP/ "]
["M22P-FMWP","Головка кнопки плоская без фиксации, белая","Плоская","Нет","Без фиксации","Белый","Пластик",null,null,null,null,null,"ПлоскаяБез фиксацииБелыйПластикНет","M22P-FMWP","https://www.dkc.ru/ru/catalog/2028/M22P-FMWP/ "]
["M22P-FMYP","Головка кнопки плоская без фиксации, жёлтая","Плоская","Нет","Без фиксации","Жёлтый","Пластик",null,null,null,null,null,"ПлоскаяБез фиксацииЖёлтыйПластикНет","M22P-FMYP","https://www.dkc.ru/ru/catalog/2028/M22P-FMYP/ "]
["M22P-FMBLP","Головка кнопки плоская без фиксации, черная","Плоская","Нет","Без фиксации","Чёрный","Пластик",null,null,null,null,null,"ПлоскаяБез фиксацииЧёрныйПластикНет","M22P-FMBLP","https://www.dkc.ru/ru/catalog/2028/M22P-FMBLP/ "]
["M22E-MLLRP","Головка кнопки аварийная грибовидная поворотная д.40","Грибовидная","Да","С фиксацией","Красный","Пластик",null,null,null,null,null,"ГрибовиднаяС фиксациейКрасныйПластикДа","M22E-MLLRP","https://www.dkc.ru/ru/catalog/2028/M22E-MLLRP/ "]
["M22S-M2A","Головака переключателя на 2 положения с возвратом стандартная ручка, алюминий","Без ключа",null,"Без фиксации",null,"Алюминий",null,null,null,null,2,"Без ключаБез фиксацииАлюминий2","M22S-M2A","https://www.dkc.ru/ru/catalog/2028/M22S-M2A/"]
["M22S-L2A","Головака переключателя на 2 положения с фиксацией стандартная ручка, алюминий","Без ключа",null,"С фиксацией",null,"Алюминий",null,null,null,null,2,"Без ключаС фиксациейАлюминий2","M22S-L2A","https://www.dkc.ru/ru/catalog/2028/M22S-L2A/"]
["M22S-M3A","Головака переключателя на 3 положения с возвратом стандартная ручка, алюминий","Без ключа",null,"Без фиксации",null,"Алюминий",null,null,null,null,3,"Без ключаБез фиксацииАлюминий3","M22S-M3A","https://www.dkc.ru/ru/catalog/2028/M22S-M3A/"]
["M22S-L3A","Головака переключателя на 3 положения с фиксацией стандартная ручка, алюминий","Без ключа",null,"С фиксацией",null,"Алюминий",null,null,null,null,3,"Без ключаС фиксациейАлюминий3","M22S-L3A","https://www.dkc.ru/ru/catalog/2028/M22S-L3A/"]
["M22S-KM2A","Головака переключателя с ключом на 2 положения с возвратом стандартная ручка, алюминий","С ключом",null,"Без фиксации",null,"Алюминий",null,null,null,null,2,"С ключомБез фиксацииАлюминий2","M22S-KM2A","https://www.dkc.ru/ru/catalog/2028/M22S-KM2A/"]
["M22S-KL2A","Головака переключателя с ключом на 2 положения с фиксацией стандартная ручка, алюминий","С ключом",null,"С фиксацией",null,"Алюминий",null,null,null,null,2,"С ключомС фиксациейАлюминий2","M22S-KL2A","https://www.dkc.ru/ru/catalog/2028/M22S-KL2A/"]
["M22S-KM3A","Головака переключателя с ключом на 3 положения с возвратом стандартная ручка, алюминий","С ключом",null,"Без фиксации",null,"Алюминий",null,null,null,null,3,"С ключомБез фиксацииАлюминий3","M22S-KM3A","https://www.dkc.ru/ru/catalog/2028/M22S-KM3A/"]
["M22S-KL3A","Головака переключателя с ключом на 3 положения с фиксацией стандартная ручка, алюминий","С ключом",null,"С фиксацией",null,"Алюминий",null,null,null,null,3,"С ключомС фиксациейАлюминий3","M22S-KL3A","https://www.dkc.ru/ru/catalog/2028/M22S-KL3A/"]
["MC-NOPP","Контактный блок с клеммным безвинтовым  зажимом, нормально-открытый",null,null,null,null,null,"Безвинтовой Plug-In","Да","Нет",null,null,"Безвинтовой Plug-InДаНет","MC-NOPP","https://www.dkc.ru/ru/catalog/2028/MC-NOPP/"]
["MC-NCPP","Контактный блок  с клеммным безвинтовым зажимом, нормально-замкнутый",null,null,null,null,null,"Безвинтовой Plug-In","Нет","Да",null,null,"Безвинтовой Plug-InНетДа","MC-NCPP","https://www.dkc.ru/ru/catalog/2028/MC-NCPP/"]
["MC-L24RPP","Контактный  блок с клеммным безвинтовым зажимом со светодиодом на 9-24В, красный",null,"Да",null,"Красный",null,"Безвинтовой Plug-In",null,null,"9-24 В",null,"КрасныйБезвинтовой Plug-InДа9-24 В","MC-L24RPP","https://www.dkc.ru/ru/catalog/2028/MC-L24RPP/"]
["MC-L24GPP","Контактный  блок с клеммным безвинтовым зажимом со светодиодом на 9-24В, зелёный",null,"Да",null,"Зелёный",null,"Безвинтовой Plug-In",null,null,"9-24 В",null,"ЗелёныйБезвинтовой Plug-InДа9-24 В","MC-L24GPP","https://www.dkc.ru/ru/catalog/2028/MC-L24GPP/"]
["MC-L24BPP","Контактный  блок с клеммным безвинтовым зажимом со светодиодом на 9-24В, синий",null,"Да",null,"Синий",null,"Безвинтовой Plug-In",null,null,"9-24 В",null,"СинийБезвинтовой Plug-InДа9-24 В","MC-L24BPP","https://www.dkc.ru/ru/catalog/2028/MC-L24BPP/"]
["MC-L24YPP","Контактный  блок с клеммным безвинтовым зажимом со светодиодом на 9-24В, жёлтый",null,"Да",null,"Жёлтый",null,"Безвинтовой Plug-In",null,null,"9-24 В",null,"ЖёлтыйБезвинтовой Plug-InДа9-24 В","MC-L24YPP","https://www.dkc.ru/ru/catalog/2028/MC-L24YPP/"]
["MC-L24WPP","Контактный  блок с клеммным безвинтовым зажимом со светодиодом на 9-24В, белый",null,"Да",null,"Белый",null,"Безвинтовой Plug-In",null,null,"9-24 В",null,"БелыйБезвинтовой Plug-InДа9-24 В","MC-L24WPP","https://www.dkc.ru/ru/catalog/2028/MC-L24WPP/"]
["MC-L220RPP","Контактный  блок с клеммным безвинтовым зажимом со светодиодом на 220В, красный",null,"Да",null,"Красный",null,"Безвинтовой Plug-In",null,null,"220 В",null,"КрасныйБезвинтовой Plug-InДа220 В","MC-L220RPP","https://www.dkc.ru/ru/catalog/2028/MC-L220RPP/"]
["MC-L220GPP","Контактный  блок с клеммным безвинтовым зажимом со светодиодом на 220В, зелёный",null,"Да",null,"Зелёный",null,"Безвинтовой Plug-In",null,null,"220 В",null,"ЗелёныйБезвинтовой Plug-InДа220 В","MC-L220GPP","https://www.dkc.ru/ru/catalog/2028/MC-L220GPP/"]
["MC-L220BPP","Контактный  блок с клеммным безвинтовым зажимом со светодиодом на 220В, синий",null,"Да",null,"Синий",null,"Безвинтовой Plug-In",null,null,"220 В",null,"СинийБезвинтовой Plug-InДа220 В","MC-L220BPP","https://www.dkc.ru/ru/catalog/2028/MC-L220BPP/"]
["MC-L220YPP","Контактный  блок с клеммным безвинтовым зажимом со светодиодом на 220В, жёлтый",null,"Да",null,"Жёлтый",null,"Безвинтовой Plug-In",null,null,"220 В",null,"ЖёлтыйБезвинтовой Plug-InДа220 В","MC-L220YPP","https://www.dkc.ru/ru/catalog/2028/MC-L220YPP/"]
["MC-L220WPP","Контактный  блок с клеммным безвинтовым зажимом со светодиодом на 220В, белый",null,"Да",null,"Белый",null,"Безвинтовой Plug-In",null,null,"220 В",null,"БелыйБезвинтовой Plug-InДа220 В","MC-L220WPP","https://www.dkc.ru/ru/catalog/2028/MC-L220WPP/"]
["MC-NOPS","Контактный блок с клеммными зажимами под винт, нормально-открытый",null,null,null,null,null,"Винтовой","Да","Нет",null,null,"ВинтовойДаНет","MC-NOPS","https://www.dkc.ru/ru/catalog/2028/MC-NOPS/"]
["MC-NCPS","Контактный блок с клеммными зажимами под винт, нормально-замкнутый",null,null,null,null,null,"Винтовой","Нет","Да",null,null,"ВинтовойНетДа","MC-NCPS","https://www.dkc.ru/ru/catalog/2028/MC-NCPS/"]
["MC-L24RPS","Контактный блок с клеммными зажимами под винт со светодиодом на  9-24В, красный",null,"Да",null,"Красный",null,"Винтовой",null,null,"9-24 В",null,"КрасныйВинтовойДа9-24 В","MC-L24RPS","https://www.dkc.ru/ru/catalog/2028/MC-L24RPS/"]
["MC-L24GPS","Контактный блок с клеммными зажимами под винт со светодиодом на  9-24В, зелёный",null,"Да",null,"Зелёный",null,"Винтовой",null,null,"9-24 В",null,"ЗелёныйВинтовойДа9-24 В","MC-L24GPS","https://www.dkc.ru/ru/catalog/2028/MC-L24GPS/"]
["MC-L24BPS","Контактный блок с клеммными зажимами под винт со светодиодом на  9-24В, синий",null,"Да",null,"Синий",null,"Винтовой",null,null,"9-24 В",null,"СинийВинтовойДа9-24 В","MC-L24BPS","https://www.dkc.ru/ru/catalog/2028/MC-L24BPS/"]
["MC-L24YPS","Контактный блок с клеммными зажимами под винт со светодиодом на  9-24В, жёлтый",null,"Да",null,"Жёлтый",null,"Винтовой",null,null,"9-24 В",null,"ЖёлтыйВинтовойДа9-24 В","MC-L24YPS","https://www.dkc.ru/ru/catalog/2028/MC-L24YPS/"]
["MC-L24WPS","Контактный блок с клеммными зажимами под винт со светодиодом на  9-24В, белый",null,"Да",null,"Белый",null,"Винтовой",null,null,"9-24 В",null,"БелыйВинтовойДа9-24 В","MC-L24WPS","https://www.dkc.ru/ru/catalog/2028/MC-L24WPS/"]
["MC-L220RPS","Контактный блок с клеммными зажимами под винт со светодиодом на  220В, красный",null,"Да",null,"Красный",null,"Винтовой",null,null,"220 В",null,"КрасныйВинтовойДа220 В","MC-L220RPS","https://www.dkc.ru/ru/catalog/2028/MC-L220RPS/"]
["MC-L220GPS","Контактный блок с клеммными зажимами под винт со светодиодом на  220В, зелёный",null,"Да",null,"Зелёный",null,"Винтовой",null,null,"220 В",null,"ЗелёныйВинтовойДа220 В","MC-L220GPS","https://www.dkc.ru/ru/catalog/2028/MC-L220GPS/"]
["MC-L220BPS","Контактный блок с клеммными зажимами под винт со светодиодом на  220В, синий",null,"Да",null,"Синий",null,"Винтовой",null,null,"220 В",null,"СинийВинтовойДа220 В","MC-L220BPS","https://www.dkc.ru/ru/catalog/2028/MC-L220BPS/"]
["MC-L220YPS","Контактный блок с клеммными зажимами под винт со светодиодом на  220В, жёлтый",null,"Да",null,"Жёлтый",null,"Винтовой",null,null,"220 В",null,"ЖёлтыйВинтовойДа220 В","MC-L220YPS","https://www.dkc.ru/ru/catalog/2028/MC-L220YPS/"]
["MC-L220WPS","Контактный блок с клеммными зажимами под винт со светодиодом на  220В, белый",null,"Да",null,"Белый",null,"Винтовой",null,null,"220 В",null,"БелыйВинтовойДа220 В","MC-L220WPS","https://www.dkc.ru/ru/catalog/2028/MC-L220WPS/"]
["M22MF","Монтажное основание для крепления головок кнопок, переключателей и контактных блоков",1,null,null,null,null,null,null,null,null,null,"1","M22MF ","https://www.dkc.ru/ru/catalog/2028/M22MF/"]
["M22ML","Маркировочная табличка",1,null,null,null,null,null,null,null,null,null,"1","M22ML","https://www.dkc.ru/ru/catalog/2028/M22ML/"]
["M22EP","Защита грибовидной кнопки",1,null,null,null,null,null,null,null,null,null,"1","M22EP","https://www.dkc.ru/ru/catalog/2028/M22EP/"]
["M22EPC","Защита грибовидной кнопки с крышкой",1,null,null,null,null,null,null,null,null,null,"1","M22EPC","https://www.dkc.ru/ru/catalog/2028/M22EPC/"]
["MC01","Корпус под кнопочный пост, 1 место",1,null,null,null,null,null,null,null,null,null,"1","MC01","https://www.dkc.ru/ru/catalog/2028/MC01/"]
["MC02","Корпус под кнопочный пост, 2 места",1,null,null,null,null,null,null,null,null,null,"1","MC02","https://www.dkc.ru/ru/catalog/2028/MC02/"]
["MC03","Корпус под кнопочный пост, 3 места",1,null,null,null,null,null,null,null,null,null,{"$f":"C57&E57&F57&G57&H57&I57&J57&D57&K57&L57","v":"1"},"MC03","https://www.dkc.ru/ru/catalog/2028/MC03/"]
["MC04","Корпус под кнопочный пост, 4 места",1,null,null,null,null,null,null,null,null,null,"1","MC04","https://www.dkc.ru/ru/catalog/2028/MC04/"]
["MC06","Корпус под кнопочный пост, 6 мест",1,null,null,null,null,null,null,null,null,null,"1","MC06","https://www.dkc.ru/ru/catalog/2028/MC06/"]
["M22P-FLLRA","Головка кнопки плоская прозрачная с фиксацией, красная, алюминий","Плоская","Да","С фиксацией","Красный","Алюминий",null,null,null,null,null,{"$f":"C60&E60&F60&G60&H60&I60&J60&D60&K60&L60","v":"ПлоскаяС фиксациейКрасныйАлюминийДа"},"M22P-FLLRA","https://www.dkc.ru/ru/catalog/2028/M22P-FLLRA/"]
["M22P-FLLGA","Головка кнопки плоская прозрачная с фиксацией, зеленая, алюминий","Плоская","Да","С фиксацией","Зелёный","Алюминий",null,null,null,null,null,{"$f":"C61&E61&F61&G61&H61&I61&J61&D61&K61&L61","v":"ПлоскаяС фиксациейЗелёныйАлюминийДа"},"M22P-FLLGA","https://www.dkc.ru/ru/catalog/2028/M22P-FLLGA/"]
["M22P-FLLBA","Головка кнопки плоская прозрачная с фиксацией, синяя, алюминий","Плоская","Да","С фиксацией","Синий","Алюминий",null,null,null,null,null,"ПлоскаяС фиксациейСинийАлюминийДа","M22P-FLLBA","https://www.dkc.ru/ru/catalog/2028/M22P-FLLBA/"]
["M22P-FLLYA","Головка кнопки плоская прозрачная с фиксацией, жёлтая, алюминий","Плоская","Да","С фиксацией","Жёлтый","Алюминий",null,null,null,null,null,"ПлоскаяС фиксациейЖёлтыйАлюминийДа","M22P-FLLYA","https://www.dkc.ru/ru/catalog/2028/M22P-FLLYA/"]
["M22P-FLLWA","Головка кнопки плоская прозрачная с фиксацией, белая, алюминий","Плоская","Да","С фиксацией","Белый","Алюминий",null,null,null,null,null,"ПлоскаяС фиксациейБелыйАлюминийДа","M22P-FLLWA","https://www.dkc.ru/ru/catalog/2028/M22P-FLLWA/"]
["M22P-FMLRA","Головка кнопки плоская прозрачная без фиксации, красная, алюминий","Плоская","Да","Без фиксации","Красный","Алюминий",null,null,null,null,null,"ПлоскаяБез фиксацииКрасныйАлюминийДа","M22P-FMLRA","https://www.dkc.ru/ru/catalog/2028/M22P-FMLRA/"]
["M22P-FMLGA","Головка кнопки плоская прозрачная без фиксации, зеленая, алюминий","Плоская","Да","Без фиксации","Зелёный","Алюминий",null,null,null,null,null,"ПлоскаяБез фиксацииЗелёныйАлюминийДа","M22P-FMLGA","https://www.dkc.ru/ru/catalog/2028/M22P-FMLGA/"]
["M22P-FMLYA","Головка кнопки плоская прозрачная без фиксации, желтая, алюминий","Плоская","Да","Без фиксации","Жёлтый","Алюминий",null,null,null,null,null,"ПлоскаяБез фиксацииЖёлтыйАлюминийДа","M22P-FMLYA","https://www.dkc.ru/ru/catalog/2028/M22P-FMLYA/"]
["M22P-FMLBA","Головка кнопки плоская прозрачная без фиксации, синяя, алюминий","Плоская","Да","Без фиксации","Синий","Алюминий",null,null,null,null,null,"ПлоскаяБез фиксацииСинийАлюминийДа","M22P-FMLBA","https://www.dkc.ru/ru/catalog/2028/M22P-FMLBA/"]
["M22P-FMLWA","Головка кнопки плоская прозрачная без фиксации, белая, алюминий","Плоская","Да","Без фиксации","Белый","Алюминий",null,null,null,null,null,"ПлоскаяБез фиксацииБелыйАлюминийДа","M22P-FMLWA","https://www.dkc.ru/ru/catalog/2028/M22P-FMLWA/"]
["M22P-FMRA","Головка кнопки плоская без фиксации, красная, алюминий","Плоская","Нет","Без фиксации","Красный","Алюминий",null,null,null,null,null,"ПлоскаяБез фиксацииКрасныйАлюминийНет","M22P-FMRA","https://www.dkc.ru/ru/catalog/2028/M22P-FMRA/"]
["M22P-FMGA","Головка кнопки плоская без фиксации, зеленая, алюминий","Плоская","Нет","Без фиксации","Зелёный","Алюминий",null,null,null,null,null,"ПлоскаяБез фиксацииЗелёныйАлюминийНет","M22P-FMGA","https://www.dkc.ru/ru/catalog/2028/M22P-FMGA/"]
["M22P-FMBA","Головка кнопки плоская без фиксации, синяя, алюминий","Плоская","Нет","Без фиксации","Синий","Алюминий",null,null,null,null,null,"ПлоскаяБез фиксацииСинийАлюминийНет","M22P-FMBA","https://www.dkc.ru/ru/catalog/2028/M22P-FMBA/"]
["M22P-FMWA","Головка кнопки плоская без фиксации, белая, алюминий","Плоская","Нет","Без фиксации","Белый","Алюминий",null,null,null,null,null,"ПлоскаяБез фиксацииБелыйАлюминийНет","M22P-FMWA","https://www.dkc.ru/ru/catalog/2028/M22P-FMWA/"]
["M22P-FMYA","Головка кнопки плоская без фиксации, жёлтая, алюминий","Плоская","Нет","Без фиксации","Жёлтый","Алюминий",null,null,null,null,null,"ПлоскаяБез фиксацииЖёлтыйАлюминийНет","M22P-FMYA","https://www.dkc.ru/ru/catalog/2028/M22P-FMYA/"]
["M22P-FMBLA","Головка кнопки плоская без фиксации, черная, алюминий","Плоская","Нет","Без фиксации","Чёрный","Алюминий",null,null,null,null,null,"ПлоскаяБез фиксацииЧёрныйАлюминийНет","M22P-FMBLA","https://www.dkc.ru/ru/catalog/2028/M22P-FMBLA/"]
["M22E-MLLRA","Головка кнопки аварийная грибовидная поворотная д.40, алюминий","Грибовидная","Да","С фиксацией","Красный","Алюминий",null,null,null,null,null,"ГрибовиднаяС фиксациейКрасныйАлюминийДа","M22E-MLLRA","https://www.dkc.ru/ru/catalog/2028/M22E-MLLRA/"]
["M22S-KL2P","Головака переключателя с ключом на 2 положения с фиксацией стандартная ручка, черный","С ключом",null,"С фиксацией",null,"Пластик",null,null,null,null,2,{"$f":"C77&E77&F77&G77&H77&I77&J77&D77&K77&L77","v":"С ключомС фиксациейПластик2"},"M22S-KL2P","https://www.dkc.ru/ru/catalog/2028/M22S-KL2P/"]
["M22S-KM2P","Головака переключателя с ключом на 2 положения с возвратом стандартная ручка, черный","С ключом",null,"Без фиксации",null,"Пластик",null,null,null,null,2,{"$f":"C78&E78&F78&G78&H78&I78&J78&D78&K78&L78","v":"С ключомБез фиксацииПластик2"},"M22S-KM2P","https://www.dkc.ru/ru/catalog/2028/M22S-KM2P/"]
["M22S-KL3P","Головака переключателя с ключом на 3 положения с фиксацией стандартная ручка, черный","С ключом",null,"С фиксацией",null,"Пластик",null,null,null,null,3,"С ключомС фиксациейПластик3","M22S-KL3P","https://www.dkc.ru/ru/catalog/2028/M22S-KL3P/"]
["M22S-KM3P","Головака переключателя с ключом на 3 положения с возвратом стандартная ручка, черный","С ключом",null,"Без фиксации",null,"Пластик",null,null,null,null,3,"С ключомБез фиксацииПластик3","M22S-KM3P","https://www.dkc.ru/ru/catalog/2028/M22S-KM3P/"]
["M22S-M2P","Головака переключателя на 2 положения с возвратом стандартная ручка, черный","Без ключа",null,"Без фиксации",null,"Пластик",null,null,null,null,2,"Без ключаБез фиксацииПластик2","M22S-M2P","https://www.dkc.ru/ru/catalog/2028/M22S-M2P/"]
["M22S-L2P","Головака переключателя на 2 положения с фиксацией стандартная ручка, черный","Без ключа",null,"С фиксацией",null,"Пластик",null,null,null,null,2,"Без ключаС фиксациейПластик2","M22S-L2P","https://www.dkc.ru/ru/catalog/2028/M22S-L2P/"]
["M22S-L3P","Головака переключателя на 3 положения с фиксацией стандартная ручка, черный","Без ключа",null,"С фиксацией",null,"Пластик",null,null,null,null,3,"Без ключаС фиксациейПластик3","M22S-L3P","https://www.dkc.ru/ru/catalog/2028/M22S-L3P/"]
["M22S-M3P","Головака переключателя на 3 положения с возвратом стандартная ручка, черный","Без ключа",null,"Без фиксации",null,"Пластик",null,null,null,null,3,"Без ключаБез фиксацииПластик3","M22S-M3P","https://www.dkc.ru/ru/catalog/2028/M22S-M3P/"]
["M22L-F220RAP","Сигнальная лампа со встроенным диодом 220В, красная, алюминиевое кольцо, зажим Plug-In",null,null,null,"Красный","Алюминий","Безвинтовой Plug-In",null,null,"220 В",null,{"$f":"C85&E85&F85&G85&H85&I85&J85&D85&K85&L85","v":"КрасныйАлюминийБезвинтовой Plug-In220 В"},"M22L-F220RAP","https://www.dkc.ru/ru/catalog/2028/M22L-F220RAP/"]
["M22L-F24RAP","Сигнальная лампа со встроенным диодом 9-24В, красная, алюминиевое кольцо, зажим Plug-In",null,null,null,"Красный","Алюминий","Безвинтовой Plug-In",null,null,"9-24 В",null,"КрасныйАлюминийБезвинтовой Plug-In9-24 В","M22L-F24RAP","https://www.dkc.ru/ru/catalog/2028/M22L-F24RAP/"]
["M22L-F220GAP","Сигнальная лампа со встроенным диодом 220В, зеленая, алюминиевое кольцо, зажим Plug-In",null,null,null,"Зелёный","Алюминий","Безвинтовой Plug-In",null,null,"220 В",null,"ЗелёныйАлюминийБезвинтовой Plug-In220 В","M22L-F220GAP","https://www.dkc.ru/ru/catalog/2028/M22L-F220GAP/"]
["M22L-F24GAP","Сигнальная лампа со встроенным диодом 9-24В, зеленая, алюминиевое кольцо, зажим Plug-In",null,null,null,"Зелёный","Алюминий","Безвинтовой Plug-In",null,null,"9-24 В",null,"ЗелёныйАлюминийБезвинтовой Plug-In9-24 В","M22L-F24GAP","https://www.dkc.ru/ru/catalog/2028/M22L-F24GAP/"]
["M22L-F220YAP","Сигнальная лампа со встроенным диодом 220В, желтая, алюминиевое кольцо, зажим Plug-In",null,null,null,"Жёлтый","Алюминий","Безвинтовой Plug-In",null,null,"220 В",null,"ЖёлтыйАлюминийБезвинтовой Plug-In220 В","M22L-F220YAP","https://www.dkc.ru/ru/catalog/2028/M22L-F220YAP/"]
["M22L-F24YAP","Сигнальная лампа со встроенным диодом 9-24В, желтая, алюминиевое кольцо, зажим Plug-In",null,null,null,"Жёлтый","Алюминий","Безвинтовой Plug-In",null,null,"9-24 В",null,"ЖёлтыйАлюминийБезвинтовой Plug-In9-24 В","M22L-F24YAP","https://www.dkc.ru/ru/catalog/2028/M22L-F24YAP/"]
["M22L-F220WAP","Сигнальная лампа со встроенным диодом 220В, белая, алюминиевое кольцо, зажим Plug-In",null,null,null,"Белый","Алюминий","Безвинтовой Plug-In",null,null,"220 В",null,"БелыйАлюминийБезвинтовой Plug-In220 В","M22L-F220WAP","https://www.dkc.ru/ru/catalog/2028/M22L-F220WAP/"]
["M22L-F24WAP","Сигнальная лампа со встроенным диодом 9-24В, белая, алюминиевое кольцо, зажим Plug-In",null,null,null,"Белый","Алюминий","Безвинтовой Plug-In",null,null,"9-24 В",null,"БелыйАлюминийБезвинтовой Plug-In9-24 В","M22L-F24WAP","https://www.dkc.ru/ru/catalog/2028/M22L-F24WAP/"]
["M22L-F220BAP","Сигнальная лампа со встроенным диодом 220В, синяя, алюминиевое кольцо, зажим Plug-In",null,null,null,"Синий","Алюминий","Безвинтовой Plug-In",null,null,"220 В",null,"СинийАлюминийБезвинтовой Plug-In220 В","M22L-F220BAP","https://www.dkc.ru/ru/catalog/2028/M22L-F220BAP/"]
["M22L-F24BAP","Сигнальная лампа со встроенным диодом 9-24В, синяя, алюминиевое кольцо, зажим Plug-In",null,null,null,"Синий","Алюминий","Безвинтовой Plug-In",null,null,"9-24 В",null,"СинийАлюминийБезвинтовой Plug-In9-24 В","M22L-F24BAP","https://www.dkc.ru/ru/catalog/2028/M22L-F24BAP/"]
["M22L-F220RPP","Сигнальная лампа со встроенным диодом 220В, красная, зажим Plug-In",null,null,null,"Красный","Пластик","Безвинтовой Plug-In",null,null,"220 В",null,"КрасныйПластикБезвинтовой Plug-In220 В","M22L-F220RPP","https://www.dkc.ru/ru/catalog/2028/M22L-F220RPP/"]
["M22L-F24RPP","Сигнальная лампа со встроенным диодом 9-24В, красная, зажим Plug-In",null,null,null,"Красный","Пластик","Безвинтовой Plug-In",null,null,"9-24 В",null,"КрасныйПластикБезвинтовой Plug-In9-24 В","M22L-F24RPP","https://www.dkc.ru/ru/catalog/2028/M22L-F24RPP/"]
["M22L-F220GPP","Сигнальная лампа со встроенным диодом 220В, зеленая, зажим Plug-In",null,null,null,"Зелёный","Пластик","Безвинтовой Plug-In",null,null,"220 В",null,"ЗелёныйПластикБезвинтовой Plug-In220 В","M22L-F220GPP","https://www.dkc.ru/ru/catalog/2028/M22L-F220GPP/"]
["M22L-F24GPP","Сигнальная лампа со встроенным диодом 9-24В, зеленая, зажим Plug-In",null,null,null,"Зелёный","Пластик","Безвинтовой Plug-In",null,null,"9-24 В",null,"ЗелёныйПластикБезвинтовой Plug-In9-24 В","M22L-F24GPP","https://www.dkc.ru/ru/catalog/2028/M22L-F24GPP/"]
["M22L-F220YPP","Сигнальная лампа со встроенным диодом 220В, желтая, зажим Plug-In",null,null,null,"Жёлтый","Пластик","Безвинтовой Plug-In",null,null,"220 В",null,"ЖёлтыйПластикБезвинтовой Plug-In220 В","M22L-F220YPP","https://www.dkc.ru/ru/catalog/2028/M22L-F220YPP/"]
["M22L-F24YPP","Сигнальная лампа со встроенным диодом 9-24В, желтая, зажим Plug-In",null,null,null,"Жёлтый","Пластик","Безвинтовой Plug-In",null,null,"9-24 В",null,"ЖёлтыйПластикБезвинтовой Plug-In9-24 В","M22L-F24YPP","https://www.dkc.ru/ru/catalog/2028/M22L-F24YPP/"]
["M22L-F220WPP","Сигнальная лампа со встроенным диодом 220В, белая, зажим Plug-In",null,null,null,"Белый","Пластик","Безвинтовой Plug-In",null,null,"220 В",null,"БелыйПластикБезвинтовой Plug-In220 В","M22L-F220WPP","https://www.dkc.ru/ru/catalog/2028/M22L-F220WPP/"]
["M22L-F24WPP","Сигнальная лампа со встроенным диодом 9-24В, белая, зажим Plug-In",null,null,null,"Белый","Пластик","Безвинтовой Plug-In",null,null,"9-24 В",null,"БелыйПластикБезвинтовой Plug-In9-24 В","M22L-F24WPP","https://www.dkc.ru/ru/catalog/2028/M22L-F24WPP/"]
["M22L-F220BPP","Сигнальная лампа со встроенным диодом 220В, синяя, зажим Plug-In",null,null,null,"Синий","Пластик","Безвинтовой Plug-In",null,null,"220 В",null,"СинийПластикБезвинтовой Plug-In220 В","M22L-F220BPP","https://www.dkc.ru/ru/catalog/2028/M22L-F220BPP/"]
["M22L-F24BPP","Сигнальная лампа со встроенным диодом 9-24В, синяя, зажим Plug-In",null,null,null,"Синий","Пластик","Безвинтовой Plug-In",null,null,"9-24 В",null,"СинийПластикБезвинтовой Plug-In9-24 В","M22L-F24BPP","https://www.dkc.ru/ru/catalog/2028/M22L-F24BPP/"]
["M22L-F24RPU","Сигнальная лампа со встроенным диодом 9-24В, красная, зажим Push-In",null,null,null,"Красный","Пластик","Безвинтовой Push-In",null,null,"9-24 В",null,{"$f":"C105&E105&F105&G105&H105&I105&J105&D105&K105&L105","v":"КрасныйПластикБезвинтовой Push-In9-24 В"},"M22L-F24RPU","https://www.dkc.ru/ru/catalog/2028/M22L-F24RPU/"]
["M22L-F24GPU","Сигнальная лампа со встроенным диодом 9-24В, зеленая, зажим Push-In",null,null,null,"Зелёный","Пластик","Безвинтовой Push-In",null,null,"9-24 В",null,"ЗелёныйПластикБезвинтовой Push-In9-24 В","M22L-F24GPU","https://www.dkc.ru/ru/catalog/2028/M22L-F24GPU/"]
["M22L-F24BPU","Сигнальная лампа со встроенным диодом 9-24В, синяя, зажим Push-In",null,null,null,"Синий","Пластик","Безвинтовой Push-In",null,null,"9-24 В",null,"СинийПластикБезвинтовой Push-In9-24 В","M22L-F24BPU","https://www.dkc.ru/ru/catalog/2028/M22L-F24BPU/"]
["M22L-F24WPU","Сигнальная лампа со встроенным диодом 9-24В, белая, зажим Push-In",null,null,null,"Белый","Пластик","Безвинтовой Push-In",null,null,"9-24 В",null,"БелыйПластикБезвинтовой Push-In9-24 В","M22L-F24WPU","https://www.dkc.ru/ru/catalog/2028/M22L-F24WPU/"]
["M22L-F24YPU","Сигнальная лампа со встроенным диодом 9-24В, желтая, зажим Push-In",null,null,null,"Жёлтый","Пластик","Безвинтовой Push-In",null,null,"9-24 В",null,"ЖёлтыйПластикБезвинтовой Push-In9-24 В","M22L-F24YPU","https://www.dkc.ru/ru/catalog/2028/M22L-F24YPU/"]
["M22L-F220RPU","Сигнальная лампа со встроенным диодом 220В, красная, зажим Push-In",null,null,null,"Красный","Пластик","Безвинтовой Push-In",null,null,"220 В",null,"КрасныйПластикБезвинтовой Push-In220 В","M22L-F220RPU","https://www.dkc.ru/ru/catalog/2028/M22L-F220RPU/"]
["M22L-F220GPU","Сигнальная лампа со встроенным диодом 220В, зеленая, зажим Push-In",null,null,null,"Зелёный","Пластик","Безвинтовой Push-In",null,null,"220 В",null,"ЗелёныйПластикБезвинтовой Push-In220 В","M22L-F220GPU","https://www.dkc.ru/ru/catalog/2028/M22L-F220GPU/"]
["M22L-F220BPU","Сигнальная лампа со встроенным диодом 220В, синяя, зажим Push-In",null,null,null,"Синий","Пластик","Безвинтовой Push-In",null,null,"220 В",null,"СинийПластикБезвинтовой Push-In220 В","M22L-F220BPU","https://www.dkc.ru/ru/catalog/2028/M22L-F220BPU/"]
["M22L-F220WPU","Сигнальная лампа со встроенным диодом 220В, белая, зажим Push-In",null,null,null,"Белый","Пластик","Безвинтовой Push-In",null,null,"220 В",null,"БелыйПластикБезвинтовой Push-In220 В","M22L-F220WPU","https://www.dkc.ru/ru/catalog/2028/M22L-F220WPU/"]
["M22L-F220YPU","Сигнальная лампа со встроенным диодом 220В, желтая, зажим Push-In",null,null,null,"Жёлтый","Пластик","Безвинтовой Push-In",null,null,"220 В",null,"ЖёлтыйПластикБезвинтовой Push-In220 В","M22L-F220YPU","https://www.dkc.ru/ru/catalog/2028/M22L-F220YPU/"]
["M22L-F24RAU","Сигнальная лампа со встроенным диодом 9-24В, красная, алюминиевое кольцо, зажим Push-In",null,null,null,"Красный","Алюминий","Безвинтовой Push-In",null,null,"9-24 В",null,"КрасныйАлюминийБезвинтовой Push-In9-24 В","M22L-F24RAU","https://www.dkc.ru/ru/catalog/2028/M22L-F24RAU/"]
["M22L-F24GAU","Сигнальная лампа со встроенным диодом 9-24В, зеленая, алюминиевое кольцо, зажим Push-In",null,null,null,"Зелёный","Алюминий","Безвинтовой Push-In",null,null,"9-24 В",null,"ЗелёныйАлюминийБезвинтовой Push-In9-24 В","M22L-F24GAU","https://www.dkc.ru/ru/catalog/2028/M22L-F24GAU/"]
["M22L-F24BAU","Сигнальная лампа со встроенным диодом 9-24В, синяя, алюминиевое кольцо, зажим Push-In",null,null,null,"Синий","Алюминий","Безвинтовой Push-In",null,null,"9-24 В",null,"СинийАлюминийБезвинтовой Push-In9-24 В","M22L-F24BAU","https://www.dkc.ru/ru/catalog/2028/M22L-F24BAU/"]
["M22L-F24WAU","Сигнальная лампа со встроенным диодом 9-24В, белая, алюминиевое кольцо, зажим Push-In",null,null,null,"Белый","Алюминий","Безвинтовой Push-In",null,null,"9-24 В",null,"БелыйАлюминийБезвинтовой Push-In9-24 В","M22L-F24WAU","https://www.dkc.ru/ru/catalog/2028/M22L-F24WAU/"]
["M22L-F24YAU","Сигнальная лампа со встроенным диодом 9-24В, желтая, алюминиевое кольцо, зажим Push-In",null,null,null,"Жёлтый","Алюминий","Безвинтовой Push-In",null,null,"9-24 В",null,"ЖёлтыйАлюминийБезвинтовой Push-In9-24 В","M22L-F24YAU","https://www.dkc.ru/ru/catalog/2028/M22L-F24YAU/"]
["M22L-F220RAU","Сигнальная лампа со встроенным диодом 220В, красная, алюминиевое кольцо, зажим Push-In",null,null,null,"Красный","Алюминий","Безвинтовой Push-In",null,null,"220 В",null,"КрасныйАлюминийБезвинтовой Push-In220 В","M22L-F220RAU","https://www.dkc.ru/ru/catalog/2028/M22L-F220RAU/"]
["M22L-F220GAU","Сигнальная лампа со встроенным диодом 220В, зеленая, алюминиевое кольцо, зажим Push-In",null,null,null,"Зелёный","Алюминий","Безвинтовой Push-In",null,null,"220 В",null,"ЗелёныйАлюминийБезвинтовой Push-In220 В","M22L-F220GAU","https://www.dkc.ru/ru/catalog/2028/M22L-F220GAU/"]
["M22L-F220BAU","Сигнальная лампа со встроенным диодом 220В, синяя, алюминиевое кольцо, зажим Push-In",null,null,null,"Синий","Алюминий","Безвинтовой Push-In",null,null,"220 В",null,"СинийАлюминийБезвинтовой Push-In220 В","M22L-F220BAU","https://www.dkc.ru/ru/catalog/2028/M22L-F220BAU/"]
["M22L-F220WAU","Сигнальная лампа со встроенным диодом 220В, белая, алюминиевое кольцо, зажим Push-In",null,null,null,"Белый","Алюминий","Безвинтовой Push-In",null,null,"220 В",null,"БелыйАлюминийБезвинтовой Push-In220 В","M22L-F220WAU","https://www.dkc.ru/ru/catalog/2028/M22L-F220WAU/"]
["M22L-F220YAU","Сигнальная лампа со встроенным диодом 220В, желтая, алюминиевое кольцо, зажим Push-In",null,null,null,"Жёлтый","Алюминий","Безвинтовой Push-In",null,null,"220 В",null,"ЖёлтыйАлюминийБезвинтовой Push-In220 В","M22L-F220YAU","https://www.dkc.ru/ru/catalog/2028/M22L-F220YAU/"]
["M22P-CLLRP","Головка кнопки выпуклая прозрачная с фиксацией, красная","Выпуклая","Да","С фиксацией","Красный","Пластик",null,null,null,null,null,"ВыпуклаяС фиксациейКрасныйПластикДа","M22P-CLLRP","https://www.dkc.ru/ru/catalog/2028/M22P-CLLRP/"]
["M22P-CLLGP","Головка кнопки выпуклая прозрачная с фиксацией, зеленая","Выпуклая","Да","С фиксацией","Зелёный","Пластик",null,null,null,null,null,"ВыпуклаяС фиксациейЗелёныйПластикДа","M22P-CLLGP","https://www.dkc.ru/ru/catalog/2028/M22P-CLLGP/"]
["M22P-CLLBP","Головка кнопки выпуклая прозрачная с фиксацией, синяя","Выпуклая","Да","С фиксацией","Синий","Пластик",null,null,null,null,null,"ВыпуклаяС фиксациейСинийПластикДа","M22P-CLLBP","https://www.dkc.ru/ru/catalog/2028/M22P-CLLBP/"]
["M22P-CLLYP","Головка кнопки выпуклая прозрачная с фиксацией, жёлтая","Выпуклая","Да","С фиксацией","Жёлтый","Пластик",null,null,null,null,null,"ВыпуклаяС фиксациейЖёлтыйПластикДа","M22P-CLLYP","https://www.dkc.ru/ru/catalog/2028/M22P-CLLYP/"]
["M22P-CLLWP","Головка кнопки выпуклая прозрачная с фиксацией, белая","Выпуклая","Да","С фиксацией","Белый","Пластик",null,null,null,null,null,"ВыпуклаяС фиксациейБелыйПластикДа","M22P-CLLWP","https://www.dkc.ru/ru/catalog/2028/M22P-CLLWP/"]
["M22P-CMLRP","Головка кнопки выпуклая прозрачная без фиксации, красная","Выпуклая","Да","Без фиксации","Красный","Пластик",null,null,null,null,null,"ВыпуклаяБез фиксацииКрасныйПластикДа","M22P-CMLRP","https://www.dkc.ru/ru/catalog/2028/M22P-CMLRP/"]
["M22P-CMLGP","Головка кнопки выпуклая прозрачная без фиксации, зеленая","Выпуклая","Да","Без фиксации","Зелёный","Пластик",null,null,null,null,null,"ВыпуклаяБез фиксацииЗелёныйПластикДа","M22P-CMLGP","https://www.dkc.ru/ru/catalog/2028/M22P-CMLGP/"]
["M22P-CMLBP","Головка кнопки выпуклая прозрачная без фиксации, синяя","Выпуклая","Да","Без фиксации","Синий","Пластик",null,null,null,null,null,"ВыпуклаяБез фиксацииСинийПластикДа","M22P-CMLBP","https://www.dkc.ru/ru/catalog/2028/M22P-CMLBP/"]
["M22P-CMLYP","Головка кнопки выпуклая прозрачная без фиксации, желтая","Выпуклая","Да","Без фиксации","Жёлтый","Пластик",null,null,null,null,null,"ВыпуклаяБез фиксацииЖёлтыйПластикДа","M22P-CMLYP","https://www.dkc.ru/ru/catalog/2028/M22P-CMLYP/"]
["M22P-CMLWP","Головка кнопки выпуклая прозрачная без фиксации, белая","Выпуклая","Да","Без фиксации","Белый","Пластик",null,null,null,null,null,"ВыпуклаяБез фиксацииБелыйПластикДа","M22P-CMLWP","https://www.dkc.ru/ru/catalog/2028/M22P-CMLWP/"]
["M22P-CLLRA","Головка кнопки выпуклая прозрачная с фиксацией, красная, алюминий","Выпуклая","Да","С фиксацией","Красный","Алюминий",null,null,null,null,null,"ВыпуклаяС фиксациейКрасныйАлюминийДа","M22P-CLLRA","https://www.dkc.ru/ru/catalog/2028/M22P-CLLRA/"]
["M22P-CLLGA","Головка кнопки выпуклая прозрачная с фиксацией, зеленая, алюминий","Выпуклая","Да","С фиксацией","Зелёный","Алюминий",null,null,null,null,null,"ВыпуклаяС фиксациейЗелёныйАлюминийДа","M22P-CLLGA","https://www.dkc.ru/ru/catalog/2028/M22P-CLLGA/"]
["M22P-CLLBA","Головка кнопки выпуклая прозрачная с фиксацией, синяя, алюминий","Выпуклая","Да","С фиксацией","Синий","Алюминий",null,null,null,null,null,"ВыпуклаяС фиксациейСинийАлюминийДа","M22P-CLLBA","https://www.dkc.ru/ru/catalog/2028/M22P-CLLBA/"]
["M22P-CLLYA","Головка кнопки выпуклая прозрачная с фиксацией, жёлтая, алюминий","Выпуклая","Да","С фиксацией","Жёлтый","Алюминий",null,null,null,null,null,"ВыпуклаяС фиксациейЖёлтыйАлюминийДа","M22P-CLLYA","https://www.dkc.ru/ru/catalog/2028/M22P-CLLYA/"]
["M22P-CLLWA","Головка кнопки выпуклая прозрачная с фиксацией, белая, алюминий","Выпуклая","Да","С фиксацией","Белый","Алюминий",null,null,null,null,null,"ВыпуклаяС фиксациейБелыйАлюминийДа","M22P-CLLWA","https://www.dkc.ru/ru/catalog/2028/M22P-CLLWA/"]
["M22P-CMLRA","Головка кнопки выпуклая прозрачная без фиксации, красная, алюминий","Выпуклая","Да","Без фиксации","Красный","Алюминий",null,null,null,null,null,"ВыпуклаяБез фиксацииКрасныйАлюминийДа","M22P-CMLRA","https://www.dkc.ru/ru/catalog/2028/M22P-CMLRA/"]
["M22P-CMLGA","Головка кнопки выпуклая прозрачная без фиксации, зеленая, алюминий","Выпуклая","Да","Без фиксации","Зелёный","Алюминий",null,null,null,null,null,"ВыпуклаяБез фиксацииЗелёныйАлюминийДа","M22P-CMLGA","https://www.dkc.ru/ru/catalog/2028/M22P-CMLGA/"]
["M22P-CMLBA","Головка кнопки выпуклая прозрачная без фиксации, синяя, алюминий","Выпуклая","Да","Без фиксации","Синий","Алюминий",null,null,null,null,null,"ВыпуклаяБез фиксацииСинийАлюминийДа","M22P-CMLBA","https://www.dkc.ru/ru/catalog/2028/M22P-CMLBA/"]
["M22P-CMLYA","Головка кнопки выпуклая прозрачная без фиксации, желтая, алюминий","Выпуклая","Да","Без фиксации","Жёлтый","Алюминий",null,null,null,null,null,"ВыпуклаяБез фиксацииЖёлтыйАлюминийДа","M22P-CMLYA","https://www.dkc.ru/ru/catalog/2028/M22P-CMLYA/"]
["M22P-CMLWA","Головка кнопки выпуклая прозрачная без фиксации, белая, алюминий","Выпуклая","Да","Без фиксации","Белый","Алюминий",null,null,null,null,null,"ВыпуклаяБез фиксацииБелыйАлюминийДа","M22P-CMLWA","https://www.dkc.ru/ru/catalog/2028/M22P-CMLWA/"]
["M22P-CLRP","Головка кнопки выпуклая с фиксацией, красная","Выпуклая","Нет","С фиксацией","Красный","Пластик",null,null,null,null,null,"ВыпуклаяС фиксациейКрасныйПластикНет","M22P-CLRP","https://www.dkc.ru/ru/catalog/2028/m22p-clrp/"]
["M22P-CLGP","Головка кнопки выпуклая с фиксацией, зеленая","Выпуклая","Нет","С фиксацией","Зелёный","Пластик",null,null,null,null,null,"ВыпуклаяС фиксациейЗелёныйПластикНет","M22P-CLGP","https://www.dkc.ru/ru/catalog/2028/m22p-clgp/"]
["M22P-CLBP","Головка кнопки выпуклая с фиксацией, синяя","Выпуклая","Нет","С фиксацией","Синий","Пластик",null,null,null,null,null,"ВыпуклаяС фиксациейСинийПластикНет","M22P-CLBP","https://www.dkc.ru/ru/catalog/2028/m22p-clbp/"]
["M22P-CLWP","Головка кнопки выпуклая с фиксацией, белая","Выпуклая","Нет","С фиксацией","Белый","Пластик",null,null,null,null,null,"ВыпуклаяС фиксациейБелыйПластикНет","M22P-CLWP","https://www.dkc.ru/ru/catalog/2028/m22p-clwp/"]
["M22P-CLBLP","Головка кнопки выпуклая с фиксацией, черная","Выпуклая","Нет","С фиксацией","Чёрный","Пластик",null,null,null,null,null,"ВыпуклаяС фиксациейЧёрныйПластикНет","M22P-CLBLP","https://www.dkc.ru/ru/catalog/2028/m22p-clblp/"]
["M22P-CLYP","Головка кнопки выпуклая с фиксацией, жёлтая","Выпуклая","Нет","С фиксацией","Жёлтый","Пластик",null,null,null,null,null,"ВыпуклаяС фиксациейЖёлтыйПластикНет","M22P-CLYP","https://www.dkc.ru/ru/catalog/2028/m22p-clyp/"]
["M22P-CMRP","Головка кнопки выпуклая без фиксации, красная","Выпуклая","Нет","Без фиксации","Красный","Пластик",null,null,null,null,null,"ВыпуклаяБез фиксацииКрасныйПластикНет","M22P-CMRP","https://www.dkc.ru/ru/catalog/2028/m22p-cmrp/"]
["M22P-CMGP","Головка кнопки выпуклая без фиксации, зеленая","Выпуклая","Нет","Без фиксации","Зелёный","Пластик",null,null,null,null,null,"ВыпуклаяБез фиксацииЗелёныйПластикНет","M22P-CMGP","https://www.dkc.ru/ru/catalog/2028/m22p-cmgp/"]
["M22P-CMBP","Головка кнопки выпуклая без фиксации, синяя","Выпуклая","Нет","Без фиксации","Синий","Пластик",null,null,null,null,null,"ВыпуклаяБез фиксацииСинийПластикНет","M22P-CMBP","https://www.dkc.ru/ru/catalog/2028/m22p-cmbp/"]
["M22P-CMWP","Головка кнопки выпуклая без фиксации, белая","Выпуклая","Нет","Без фиксации","Белый","Пластик",null,null,null,null,null,"ВыпуклаяБез фиксацииБелыйПластикНет","M22P-CMWP","https://www.dkc.ru/ru/catalog/2028/m22p-cmwp/"]
["M22P-CMBLP","Головка кнопки выпуклая без фиксации, черная","Выпуклая","Нет","Без фиксации","Чёрный","Пластик",null,null,null,null,null,"ВыпуклаяБез фиксацииЧёрныйПластикНет","M22P-CMBLP","https://www.dkc.ru/ru/catalog/2028/m22p-cmblp/"]
["M22P-CMYP","Головка кнопки выпуклая без фиксации, жёлтая","Выпуклая","Нет","Без фиксации","Жёлтый","Пластик",null,null,null,null,null,"ВыпуклаяБез фиксацииЖёлтыйПластикНет","M22P-CMYP","https://www.dkc.ru/ru/catalog/2028/m22p-cmyp/"]
["M22P-CLRA","Головка кнопки выпуклая с фиксацией, красная, алюминиевое кольцо","Выпуклая","Нет","С фиксацией","Красный","Алюминий",null,null,null,null,null,"ВыпуклаяС фиксациейКрасныйАлюминийНет","M22P-CLRA","https://www.dkc.ru/ru/catalog/2028/m22p-clra/"]
["M22P-CLGA","Головка кнопки выпуклая с фиксацией, зеленая, алюминиевое кольцо","Выпуклая","Нет","С фиксацией","Зелёный","Алюминий",null,null,null,null,null,"ВыпуклаяС фиксациейЗелёныйАлюминийНет","M22P-CLGA","https://www.dkc.ru/ru/catalog/2028/m22p-clga/"]
["M22P-CLBA","Головка кнопки выпуклая с фиксацией, синяя, алюминиевое кольцо","Выпуклая","Нет","С фиксацией","Синий","Алюминий",null,null,null,null,null,"ВыпуклаяС фиксациейСинийАлюминийНет","M22P-CLBA","https://www.dkc.ru/ru/catalog/2028/m22p-clba/"]
["M22P-CLWA","Головка кнопки выпуклая с фиксацией, белая, алюминиевое кольцо","Выпуклая","Нет","С фиксацией","Белый","Алюминий",null,null,null,null,null,"ВыпуклаяС фиксациейБелыйАлюминийНет","M22P-CLWA","https://www.dkc.ru/ru/catalog/2028/m22p-clwa/"]
["M22P-CLBLA","Головка кнопки выпуклая с фиксацией, черная, алюминиевое кольцо","Выпуклая","Нет","С фиксацией","Чёрный","Алюминий",null,null,null,null,null,"ВыпуклаяС фиксациейЧёрныйАлюминийНет","M22P-CLBLA","https://www.dkc.ru/ru/catalog/2028/m22p-clbla/"]
["M22P-CLYA","Головка кнопки выпуклая с фиксацией, жёлтая, алюминиевое кольцо","Выпуклая","Нет","С фиксацией","Жёлтый","Алюминий",null,null,null,null,null,"ВыпуклаяС фиксациейЖёлтыйАлюминийНет","M22P-CLYA","https://www.dkc.ru/ru/catalog/2028/m22p-clya/"]
["M22P-CMRA","Головка кнопки выпуклая без фиксации, красная, алюминиевое кольцо","Выпуклая","Нет","Без фиксации","Красный","Алюминий",null,null,null,null,null,"ВыпуклаяБез фиксацииКрасныйАлюминийНет","M22P-CMRA","https://www.dkc.ru/ru/catalog/2028/m22p-cmra/"]
["M22P-CMGA","Головка кнопки выпуклая без фиксации, зеленая, алюминиевое кольцо","Выпуклая","Нет","Без фиксации","Зелёный","Алюминий",null,null,null,null,null,"ВыпуклаяБез фиксацииЗелёныйАлюминийНет","M22P-CMGA","https://www.dkc.ru/ru/catalog/2028/m22p-cmga/"]
["M22P-CMBA","Головка кнопки выпуклая без фиксации, синяя, алюминиевое кольцо","Выпуклая","Нет","Без фиксации","Синий","Алюминий",null,null,null,null,null,"ВыпуклаяБез фиксацииСинийАлюминийНет","M22P-CMBA","https://www.dkc.ru/ru/catalog/2028/m22p-cmba/"]
["M22P-CMWA","Головка кнопки выпуклая без фиксации, белая, алюминиевое кольцо","Выпуклая","Нет","Без фиксации","Белый","Алюминий",null,null,null,null,null,"ВыпуклаяБез фиксацииБелыйАлюминийНет","M22P-CMWA","https://www.dkc.ru/ru/catalog/2028/m22p-cmwa/"]
["M22P-CMBLA","Головка кнопки выпуклая без фиксации, черная, алюминиевое кольцо","Выпуклая","Нет","Без фиксации","Чёрный","Алюминий",null,null,null,null,null,"ВыпуклаяБез фиксацииЧёрныйАлюминийНет","M22P-CMBLA","https://www.dkc.ru/ru/catalog/2028/m22p-cmbla/"]
["M22P-CMYA","Головка кнопки выпуклая без фиксации, жёлтая, алюминиевое кольцо","Выпуклая","Нет","Без фиксации","Жёлтый","Алюминий",null,null,null,null,null,"ВыпуклаяБез фиксацииЖёлтыйАлюминийНет","M22P-CMYA","https://www.dkc.ru/ru/catalog/2028/m22p-cmya/"]
["M22P-FLRP","Головка кнопки плоская с фиксацией, красная","Плоская","Нет","С фиксацией","Красный","Пластик",null,null,null,null,null,{"$f":"C169&E169&F169&G169&H169&I169&J169&D169&K169&L169","v":"ПлоскаяС фиксациейКрасныйПластикНет"},"M22P-FLRP","https://www.dkc.ru/ru/catalog/2028/m22p-flrp/"]
["M22P-FLGP","Головка кнопки плоская с фиксацией, зеленая","Плоская","Нет","С фиксацией","Зелёный","Пластик",null,null,null,null,null,"ПлоскаяС фиксациейЗелёныйПластикНет","M22P-FLGP","https://www.dkc.ru/ru/catalog/2028/m22p-flgp/"]
["M22P-FLBP","Головка кнопки плоская с фиксацией, синяя","Плоская","Нет","С фиксацией","Синий","Пластик",null,null,null,null,null,"ПлоскаяС фиксациейСинийПластикНет","M22P-FLBP","https://www.dkc.ru/ru/catalog/2028/m22p-flbp/"]
["M22P-FLWP","Головка кнопки плоская с фиксацией, белая","Плоская","Нет","С фиксацией","Белый","Пластик",null,null,null,null,null,"ПлоскаяС фиксациейБелыйПластикНет","M22P-FLWP","https://www.dkc.ru/ru/catalog/2028/m22p-flwp/"]
["M22P-FLBLP","Головка кнопки плоская с фиксацией, черная","Плоская","Нет","С фиксацией","Чёрный","Пластик",null,null,null,null,null,"ПлоскаяС фиксациейЧёрныйПластикНет","M22P-FLBLP","https://www.dkc.ru/ru/catalog/2028/m22p-flblp/"]
["M22P-FLYP","Головка кнопки плоская с фиксацией, жёлтая","Плоская","Нет","С фиксацией","Жёлтый","Пластик",null,null,null,null,null,"ПлоскаяС фиксациейЖёлтыйПластикНет","M22P-FLYP","https://www.dkc.ru/ru/catalog/2028/m22p-flyp/"]
["M22P-FLRA","Головка кнопки плоская с фиксацией, красная, алюминиевое кольцо","Плоская","Нет","С фиксацией","Красный","Алюминий",null,null,null,null,null,"ПлоскаяС фиксациейКрасныйАлюминийНет","M22P-FLRA","https://www.dkc.ru/ru/catalog/2028/m22p-flra/"]
["M22P-FLGA","Головка кнопки плоская с фиксацией, зеленая, алюминиевое кольцо","Плоская","Нет","С фиксацией","Зелёный","Алюминий",null,null,null,null,null,"ПлоскаяС фиксациейЗелёныйАлюминийНет","M22P-FLGA","https://www.dkc.ru/ru/catalog/2028/m22p-flga/"]
["M22P-FLBA","Головка кнопки плоская с фиксацией, синяя, алюминиевое кольцо","Плоская","Нет","С фиксацией","Синий","Алюминий",null,null,null,null,null,"ПлоскаяС фиксациейСинийАлюминийНет","M22P-FLBA","https://www.dkc.ru/ru/catalog/2028/m22p-flba/"]
["M22P-FLWA","Головка кнопки плоская с фиксацией, белая, алюминиевое кольцо","Плоская","Нет","С фиксацией","Белый","Алюминий",null,null,null,null,null,"ПлоскаяС фиксациейБелыйАлюминийНет","M22P-FLWA","https://www.dkc.ru/ru/catalog/2028/m22p-flwa/"]
["M22P-FLBLA","Головка кнопки плоская с фиксацией, черная, алюминиевое кольцо","Плоская","Нет","С фиксацией","Чёрный","Алюминий",null,null,null,null,null,"ПлоскаяС фиксациейЧёрныйАлюминийНет","M22P-FLBLA","https://www.dkc.ru/ru/catalog/2028/m22p-flbla/"]
["M22P-FLYA","Головка кнопки плоская с фиксацией, жёлтая, алюминиевое кольцо","Плоская","Нет","С фиксацией","Жёлтый","Алюминий",null,null,null,null,null,{"$f":"C180&E180&F180&G180&H180&I180&J180&D180&K180&L180","v":"ПлоскаяС фиксациейЖёлтыйАлюминийНет"},"M22P-FLYA","https://www.dkc.ru/ru/catalog/2028/m22p-flya/"]

{"sheet":"Списки","index":3,"n_rows":28,"n_cols":10,"rows_kept":28,"cut":false,"hidden":true,"merged":[]}
["Кнопка"]
["1.Вид кнопки","2.Механизм","3.Цвет","4.Материал кольца","5. Тип зажима контактного блока","6.Наличие NO контактов","7.Наличие NC контактов","8.С возможностью подсветки","9.Напряжение сети","8. Количество NO контактов"]
["Плоская","С фиксацией","Красный","Пластик","Винтовой","Да","Да","Да","9-24 В",0]
["Грибовидная","Без фиксации","Зелёный","Алюминий","Безвинтовой Plug-In","Нет","Нет","Нет","220 В",1]
["Выпуклая",null,"Синий",null,null,null,null,null,"Нет",2]
[null,null,"Белый",null,null,null,null,null,null,3]
[null,null,"Жёлтый",null,null,null,null,null,null,4]
[null,null,"Чёрный",null,null,null,null,null,null,5]
[null,null,null,null,null,null,null,null,null,6]
[]
[]
[]
["Переклчатель"]
["1. Тип переключателя","2. Количество положений","3. Механизм","4.Материал","5.С возможностью подсветки","6.Напряжение сети","7.Цвет подсветки","8.Наличие NO контактов","9.Наличие NC контактов","8. Количество NO контактов"]
["С ключом",2,"С фиксацией","Пластик","Да","9-24 В","Красный","Да","Да",0]
["Без ключа",3,"Без фиксации","Алюминий",null,"220 В","Зелёный","Нет","Нет",1]
[null,null,null,null,null,null,"Синий",null,null,2]
[null,null,null,null,null,null,"Белый",null,null,3]
[null,null,null,null,null,null,"Жёлтый",null,null,4]
[null,null,null,null,null,null,null,null,null,5]
[null,null,null,null,null,null,null,null,null,6]
["Сигнальный инидкатор"]
["1.Цвет лампы","2.Напряжение сети","3.Тип зажима","4.Материал"]
["Красный","9-24 В","Безвинтовой Plug-In","Пластик"]
["Зелёный","220 В","Безвинтовой Push-In","Алюминий"]
["Синий"]
["Белый"]
["Жёлтый"]